Workbook

Sheet ŠKOLSTVÍ
A1: I. ŠKOLSTVÍ
A3: č. | B3: Název dle zřizovací listiny | C3: IČ | D3: Adresa místa pojištění | G3: Parc. | I3: Zastavěná plocha (m2) | J3: Obestavěný | K3: Vlastník | L3: Počet | M3: Typ | N3: Nosná | O3: Typ | P3: Krytina | Q3: Provozní | R3: Technologie | S3: Celkový | T3: Nebezpečné | U3: Zabezpečení | V3: Zabezpečení | W3: Trvale | X3: Okna / dveře | Y3: Vnější | Z3: Pojistná částka - nová
D4: Ulice/č.p. | E4: Místo | F4: PSČ | G4: číslo | J4: prostor (m3) | K4: nemovitosti | L4: podlaží | M4: budovy | N4: konstrukce | O4: střechy | P4: střechy | Q4: účel stavby | S4: stav (1-5) | T4: látky | U4: protipožární | V4: proti krádeži | W4: využíváno | Y4: nebezpečí | Z4: hodnota nemovitosti
A5: 1 | B5: Centrum celoživotního vzdělávání-zařízení pro další vzdělávání pedagog. pracovníků Pk | C5: 75061074 | D5: Mozartova 449 | E5: Pardubice | F5: 53002 | G5: 6872 | H5: 4300 | I5: 5207 | K5: Pardubický kraj | L5: 3 | M5: budova | N5: zděná | O5: plochá | P5: střešní folie | Q5: centrum vzdělávání - pronajaté prostory školy | R5: ne | S5: 2 | T5: ne | U5: RHP, hydranty | V5: EZS | W5: ano | X5: skleněná s dřevěným rámem / kovové s prosklením | Y5: vandalismus | Z5: budova pojištěna - Gymnázium Pardubice, Mozartova 449
A6: 2 | B6: Dětský domov Dolní Čermná | C6: 70857717 | D6: č.p.74 | E6: Dolní Čermná | F6: 56153 | G6: 323 | H6: 4300 | I6: 344 | J6: 5100 | K6: Pardubický kraj | L6: 2 | M6: budova | N6: betonový základ, zděná | O6: sedlová | P6: lepenka | Q6: dětský domov | R6: gastro-technologie, klimatizace, vzduchotechnika - kuchyně | S6: 1 | T6: ne | U6: vnitřní hydrant, RHP | V6: EZS, oplocení objektu | W6: ano | X6: skleněná s plastovým rámem / plastové s prosklením | Y6: minimální | Z6: 24561600
G7: 1052 | H7: 4300 | I7: 460 | J7: 3042 | K7: Pardubický kraj | L7: 1 | M7: budova | N7: zděná | O7: valbová | P7: šindel | Q7: dětský domov, rodinná buňka | R7: ne | S7: 1 | T7: ne | U7: standartní (RHP) | V7: stálá přítomnost zaměstnanců | W7: ano | X7: skleněná s plastovým rámem / plastové s prosklením | Y7: minimální | Z7: 14650272
G8: 1053 | H8: 4300 | I8: 259 | J8: 1645 | K8: Pardubický kraj | L8: 1 | M8: budova | N8: zděná | O8: valbová | P8: šindel | Q8: administrativní budova | R8: klimatizace | S8: 1 | T8: ne | U8: standartní (RHP) | V8: EZS, oplocení objektu | W8: ano | X8: skleněná s plastovým rámem / plastové s prosklením | Y8: minimální | Z8: 7922320
A9: =+A6+1 -> 3 | B9: Dětský domov Holice, Husova 623 | C9: 48159638 | D9: Husova 623 | E9: Holice | F9: 534 11 | G9: 392/1 | H9: 5400 | I9: 780 | J9: 3756 | K9: Pardubický kraj | L9: 2 | M9: budova | N9: zděná | O9: valbová, sedllová | P9: pálená taška | Q9: administrativní budova,dětský domov,posilovna a dílny | R9: ne | S9: 1 | T9: ne | U9: RHP, vnitřní hydrant, protipožární dveře | V9: EZS | W9: ano | X9: skleněná s plastovým rámem / plastové s prosklením | Y9: vzrostlý strom | Z9: 20971232
D10: bez č.p. | E10: Holice | F10: 534 11 | G10: 392/3 | H10: 4300 | I10: 41 | J10: 102 | K10: Pardubický kraj | L10: 1 | M10: garáž | N10: zděná | O10: pultová | P10: střešní folie | Q10: garáž | R10: ne | S10: 1 | T10: ne | U10: standartní (RHP) | V10: minimální(oplocení areálu) | W10: ano | X10: skleněná s dřevěným rámem / plechová vrata | Y10: minimální | Z10: 569506
D11: Husova 378 | E11: Holice | F11: 534 11 | G11: 393/1 | H11: 4300 | I11: 352 | J11: 2022 | K11: Pardubický kraj | L11: 1 | M11: budova | N11: zděná | O11: sedlová | P11: plech,střešní tašky | Q11: kuchyně,jidelna dětského domova | R11: gastro-technologie, vzduchotechnika | S11: 2 | T11: ne | U11: RHP, vnitřní hydrant | V11: EZS | W11: ano | X11: skleněná s dřevěným rámem / dřevěné s prosklením | Y11: minimální | Z11: 11289625
D12: bez č.p. | E12: Holice | F12: 534 11 | G12: 391/5,391/6 | H12: 4300 | J12: 150 | K12: Pardubický kraj | N12: dřevěná | Q12: dětské hřiště | R12: ne | S12: 2 | T12: ne | U12: ne | V12: plocení areálu | W12: ano | X12: ne | Y12: minimální | Z12: 837509
A13: =+A9+1 -> 4 | B13: Dětský domov Horní Čermná 188 | C13: 70857695 | D13: č.p.188 | E13: Horní Čermná | F13: 56156 | G13: 117/2 | H13: 4300 | I13: 700 | J13: 3080 | K13: Pardubický kraj | L13: 2 | M13: budova | N13: zděná | O13: valbová | P13: eternit | Q13: dětský domov | R13: ne | S13: 2 | T13: ne | U13: vnitřní hydrant, RHP | V13: stálá přítomnost zaměstnanců, zámek FAB | W13: ano | X13: skleněná s plastovým rámem / dřevěné s prosklením | Y13: vandalismus | Z13: 14833280
A14: =+A13+1 -> 5 | B14: Dětský domov Moravská Třebová | C14: 63609177 | D14: J. K. Tyla 570/65 | E14: Moravská Třebová | F14: 57101 | G14: 2650 | H14: 4300 | I14: 199 | J14: 3250 | K14: Pardubický kraj | L14: 3 | M14: budova | N14: zděná | O14: sedlová | P14: plechová | Q14: dětský domov | R14: ne | S14: 2 | T14: ne | U14: standartní (RHP) | V14: bezpečnostní zámek vchodových dveří, oplocení areálu | W14: ano | X14: skleněná s plastovým rámem / plastové | Y14: vzrostlý strom,vandalismus | Z14: 15652500
D15: bez č.p. | E15: Moravská Třebová | F15: 57101 | G15: 2651 | H15: 4300 | I15: 100 | J15: 710 | K15: Pardubický kraj | L15: 2 | M15: budova | N15: zděná | O15: pultová | P15: plechová | Q15: technické zázemí dětského domova, kancelář | R15: ne | S15: 2 | T15: ne | U15: standartní (RHP) | V15: bezpečnostní zámek dveří a bezpečnostní skla oken, oplocení areálu | W15: ano | X15: skleněná s plastovým rámem / plastové se skleněnou výplní | Y15: minimální | Z15: 3418860
A16: =+A14+1 -> 6 | B16: Dětský domov Pardubice | C16: 48160865 | D16: Ke Tvrzi 235 | E16: Pardubice | F16: 530 03 | G16: 1100 | H16: 4300 | I16: 702 | J16: 4914 | K16: Pardubický kraj | L16: 2 | M16: budova | N16: zděná | O16: sedlová | P16: pálená taška | Q16: děstský domov | R16: gastro-technologie | S16: 2 | T16: ne | U16: standartní (RHP) | V16: oplocení areálu(vstup uzamčen-domovní audiotelefon) | W16: ano | X16: skleněná s dřevěným rámem / dřevěné s prosklením | Y16: vzrostlé stromy | Z16: 23665824
D17: bez č.p. | E17: Pardubice | F17: 530 03 | G17: 10070 | H17: 4300 | I17: 80 | J17: 240 | K17: Pardubický kraj | L17: 1 | M17: budova | N17: dřevěná | O17: sedlová | P17: šindel | Q17: garáž, sklad, kolárna | R17: žádná | S17: 2 | T17: ne | U17: standartní (RHP) | V17: oplocení areálu(vstup uzamčen-domovní audiotelefon) | W17: ano | X17: skleněná s dřevěným rámem / dřevěné | Y17: vzrostlé stromy | Z17: 1155840
A18: =+A16+1 -> 7 | B18: Dětský domov Polička | C18: 63609291 | D18: A. Lidmilové 505 | E18: Polička | F18: 57201 | G18: 1244 | H18: 4300 | I18: 245 | J18: 3456 | K18: Pardubický kraj | L18: 2 | M18: budova | N18: zděná | O18: valbová | P18: plech | Q18: dětský domov | R18: ne | S18: 2 | T18: ne | U18: standartní (RHP) | V18: stálá přítomnost zaměstnanců | W18: ano | X18: skleněná s dřevěným rámem / dřevěné s prosklením | Y18: vandalismus | Z18: 16644096
A19: =+A18+1 -> 8 | B19: Domov mládeže a školní jídelna Pardubice | C19: 48161071 | D19: Rožkova 331 | E19: Pardubice | F19: 530 02 | G19: 3773 | H19: 4300 | I19: 1037 | J19: 13447 | K19: Pardubický kraj | L19: 4 | M19: budova | N19: zděná | O19: valbová | P19: plech | Q19: ředitelství | R19: ne | S19: 2 | T19: ne | U19: EPS, RHP | V19: EZS, oplocena zadní část objektu | W19: ano | X19: skleněná s plastovým rámem / plastové s prosklením | Y19: vandalismus | Z19: 64760752
D20: Rožkova 2432 | E20: Pardubice | F20: 530 02 | G20: 5084 | H20: 4300 | I20: 917 | J20: 14960 | K20: Pardubický kraj | L20: 4 | M20: budova | N20: zděná | O20: valbová | P20: plech | Q20: domov mládeže | R20: ne | S20: 2 | T20: ne | U20: standartní (RHP) | V20: minimální(oplocena zadní část objektu) | W20: ano | X20: skleněná s plastovým rámem / kovové s prosklením | Y20: vzrostlé stromy | Z20: 72047360
D21: Gorkého 350 | E21: Pardubice | F21: 530 02 | G21: 5083 | H21: 4300 | I21: 2800 | J21: 31310 | K21: Pardubický kraj | L21: 4 | M21: budova | N21: zděná | O21: valbová | P21: střešní tašky | Q21: domov mládeže a školní jídelna | R21: gastro-technologie,klimatizace | S21: 1 | T21: ne | U21: EPS, RHP | V21: EZS, oplocena zadní část objedktu | W21: ano | X21: skleněná s plastovým rámem / plastové se skleněnou výplní | Y21: vzrostlé stromy | Z21: 150788960
A22: =+A19+1 -> 9 | B22: Domov mládeže a školní jídelna Vysoké Mýto | C22: 49314688 | D22: Gen. Závady 118 | E22: Vysoké Mýto | F22: 56601 | G22: 1214/2 | H22: 4300 | I22: 1527 | J22: 13625 | K22: Pardubický kraj | L22: 3 | M22: budova | N22: zděná | O22: plochá | P22: střešní folie | Q22: škola, ubytovna, kuchyň, jídelna | R22: gastro-technologie | S22: 2 | T22: ne | U22: RHP, vnitřní hydranty, protipožární dveře | V22: minimální | W22: ano | X22: skleněná s plastovým rámem / kovové s prosklením | Y22: vandalismus | Z22: 67169928
D23: bez č.p. | E23: Vysoké Mýto | F23: 56601 | G23: 1206/2 | H23: 4300 | I23: 1349 | J23: 7200 | K23: Pardubický kraj | L23: 1 | M23: hala | N23: zděná | O23: pultová | P23: vlnitý plech | Q23: sportovní hala | R23: ne | S23: 1 | T23: ne | U23: RHP, vnitřní hydrant | V23: minimální | W23: ano | X23: skleněná s kovovým rámem / kovové s prosklením | Y23: vandalismus | Z23: 35495335
D24: Gen. Závady 383 | E24: Vysoké Mýto | F24: 56601 | G24: 1222 | H24: 4700 | I24: 582 | J24: 7100 | K24: Pardubický kraj | L24: 2 | M24: budova | N24: zděná | O24: valbová | P24: břidlice | Q24: domov mládeže | R24: ne | S24: v rekonstrukci | T24: ne | U24: standartní (RHP) | V24: minimální | W24: ne | X24: skleněná s dřevěným rámem / dřevěná s prosklením | Y24: vandalismus | Z24: 35002337
A25: 10 | B25: Gymnázium Aloise Jiráska, Litomyšl, T. G. Masaryka 590 | C25: 62032348 | D25: T. G. Masaryka 590 | E25: Litomyšl | F25: 57001 | G25: 875 | H25: 4300 | I25: 2207 | J25: 16519 | K25: Pardubický kraj | L25: 3 | M25: budova | N25: zděná | O25: valbová | P25: střešní tašky | Q25: škola | R25: ne | S25: 1 | T25: ne | U25: RHP, hydranty | V25: minimální (oplocení areálu) | W25: ano | X25: skleněná s dřevěným rámem / dřevěné | Y25: minimální | Z25: 79555504
G26: 875/5 | H26: 4300 | I26: 27 | J26: 108 | K26: Pardubický kraj | L26: 1 | M26: budova | N26: zděná | O26: plochá | P26: plech | Q26: trafostanice | R26: ne | S26: 2 | T26: ne | U26: standartní (RHP) | V26: zadní část objektu oplocena, FAB, vicací zámky | W26: ano | X26: plechová vrata | Y26: vandalismus | Z26: 520128
A27: 11 | B27: Gymnázium, Česká Třebová, Tyršovo náměstí 970 | C27: 49314670 | D27: Tyršovo nám. 970 | E27: Česká Třebová | F27: 56002 | G27: 1046 | H27: 4300 | I27: 1840 | K27: v majetku města | L27: 3 | M27: budova | N27: zděná | O27: sedlová | P27: šindel | Q27: škola | R27: gastro-technologie | S27: 1 | T27: ne | U27: RHP, hydranty | V27: minimální (oplocení areálu) | W27: ano | X27: skleněná s dřevěným rámem / dřevěná s prosklením | Y27: minimální
A28: 12 | B28: Gymnázium Dr. Emila Holuba, Holice, Na Mušce 1110 | C28: 48161101 | D28: Na Mušce 1110 | E28: Holice | F28: 534 01 | G28: 2020/55 | H28: 4300 | I28: 3045 | J28: 30450 | K28: Pardubický kraj | L28: 4 | M28: budova | N28: zděná | O28: plochá | P28: střešní folie | Q28: škola | R28: gastro-technologie | S28: 1 | T28: ne | U28: standartní (RHP) | V28: minimální (oplocení zadní části objektu) | W28: ano | X28: skleněná s plastovým rámem / plastová s prosklením | Y28: vandalismus | Z28: 146676149
D29: Oplocení sportoviště | E29: Holice | G29: 2011/1 | K29: Pardubický kraj | N29: kovová | Q29: oplocení sportoviště | S29: 2 | V29: minimální | Y29: vandalismus | Z29: 241243
A30: 13 | B30: Gymnázium a Jazyková škola s právem státní jazykové zkoušky Svitavy | C30: 62033026 | D30: Sokolovská 1638 | E30: Svitavy | F30: 56802 | G30: 1744/1 | H30: 4300 | I30: 3400 | J30: 21736 | K30: Pardubický kraj | L30: 2 | M30: budova | N30: zděná | O30: pultová | P30: plech | Q30: škola, jídelna, kuchyně | R30: gastro-technologie,klimatizace | S30: 3 | T30: ne | U30: RHP, hydranty | V30: minimální | W30: ano | X30: skleněná s dřevěnýma plastovým rámem / plastové s prosklením | Y30: vandalismus, vzrostlé stromy | Z30: 104680576
D31: Pražská 2/2162 | E31: Svitavy | F31: 56802 | G31: 524/2 | H31: 4300 | I31: 3253 | J31: 20212 | K31: Pardubický kraj | L31: 1 | M31: hala | N31: želeobeton | O31: oblouková | P31: střešní folie | Q31: sportovní hala | R31: vzduchotechnika | S31: 1 | T31: ne | U31: standartní (RHP) | V31: minimální | W31: ano | X31: skleněná s plastovým rámem / plastové s prosklením | Y31: vandalismus | Z31: 97340992
A32: 14 | B32: Gymnázium, Jevíčko, A. K. Vitáka 452 | C32: 62032011 | D32: A. K. Vitáka 452 | E32: Jevíčko | F32: 56943 | G32: 322, 175/3 | H32: 4300 | I32: 1450 | J32: 21498 | K32: Pardubický kraj | L32: 3 | M32: budova | N32: zděná | O32: valbová | P32: střešní tašky | Q32: škola, sportovní hřiště | R32: ne | S32: 1 | T32: ne | U32: standartní (RHP) | V32: minimální | W32: ano | X32: skleněná s dřevěným rámem / dřevěné s prosklením | Y32: vandalismus | Z32: 103534368
D33: Nerudova 557 | E33: Jevíčko | F33: 56943 | G33: 507 | H33: 4300 | I33: 1320 | J33: 11200 | K33: Pardubický kraj | L33: 3 | M33: budova | N33: zděná | O33: plochá | P33: střešní folie | Q33: domov mládeže | R33: ne | S33: 2 | T33: ne | U33: standartní (RHP) | V33: minimální | W33: ano | X33: skleněná s dřevěným rámem / dřevěné s prosklením | Y33: vandalismus | Z33: 53939200
A34: 15 | B34: Gymnázium Josefa Ressela, Chrudim, Olbrachtova 291 | C34: 60103337 | D34: Olbrachtova 291 | E34: Chrudim | F34: 53701 | G34: 1025 | H34: 4300 | I34: 2065 | J34: 36126 | K34: Pardubický kraj | L34: 4 | M34: budova | N34: zděná | O34: valbová | P34: plechová | Q34: škola | R34: gastro-technologie, vzduchotechnika, klimatizace | S34: 3 | T34: minimální množství v laboratoři | U34: RHP, hydranty | V34: EZS, oplocení areálu | W34: ano | X34: skleněná s dřevěným rámem / dřevěné | Y34: vandalismus | Z34: 173982816
A35: 16 | B35: Gymnázium K. V. Raise, Hlinsko, Adámkova 55 | C35: 60103329 | D35: Adámkova 55 | E35: Hlinsko | F35: 53901 | G35: 452 | H35: 4300 | I35: 1430 | J35: 13600 | K35: Pardubický kraj | L35: 3 | M35: budova | N35: zděná | O35: sedlová | P35: střešní tašky | Q35: škola | R35: ne | S35: 2 | T35: ne | U35: RHP, hydranty | V35: minimální | W35: ano | X35: skleněná s plastovým, dřevěným rámem / plastové s prosklením | Y35: vandalismus | Z35: 65497600
D36: Čelakovského 469 | E36: Hlinsko | F36: 539 01 | G36: 445 | H36: 4300 | I36: 120 | J36: 1080 | K36: Pardubický kraj | L36: 2 | M36: budova | N36: zděná | O36: sedlová | P36: plech | Q36: učebna jazyků | R36: ne | S36: 2 | T36: ne | U36: standartní (RHP) | V36: minimální | W36: ano | X36: skleněná s dřevěným rámem / dřevěné s prosklením | Y36: vandalismus | Z36: 5201280
A37: 17 | B37: Gymnázium, Lanškroun, nám. Jana Marka Marků 113 | C37: 49314653 | D37: nám. J. M. Marků 113 | E37: Lanškroun | F37: 56312 | G37: 85 | H37: 4300 | I37: 1095 | K37: v majetku města | L37: 3 | M37: budova | N37: zděná | O37: valbová | P37: střešní tašky | Q37: škola | R37: vzduchotechnika - sklepní prostory | S37: 2 | T37: ne | U37: RHP, hydrant | V37: minimální | W37: ano | X37: skleněná s dřevěným rámem / dřevěné | Y37: vandalismus
A38: =+A37+1 -> 18 | B38: Gymnázium, Moravská Třebová, Svitavská 310 | C38: 62033131 | D38: Svitavská 310 | E38: Moravská Třebová | F38: 57101 | G38: 440/2 | H38: 4300 | I38: 1392 | J38: 12298 | K38: Pardubický kraj | L38: 4 | M38: budova | N38: zděná | O38: plochá, sedlová | P38: střešní folie, plech | Q38: škola | R38: ne | S38: 2 | T38: minimální množství chemických látek v laboratoři | U38: RHP, vnitřní hydranty, protipožární dveře | V38: minimální (oplocení objektu) | W38: ano | X38: skleněná s plastovým rámem / plechové se skleněnou výplní | Y38: minimální | Z38: 59227168
D39: Svitavská 310 | E39: Moravská Třebová | F39: 57101 | G39: 456 | H39: 4300 | I39: 550 | J39: 9360 | K39: Pardubický kraj | L39: 3 | M39: budova | N39: zděná | O39: valbová | P39: plechová | Q39: škola | R39: ne | S39: 3 | T39: minimální množství chemických látek v laboratoři | U39: RHP, vnitřní hydranty | V39: minimální (oplocení areálu) | W39: ano | X39: skleněná s dřevěným rámem / dřevěné s prosklením | Y39: minimální | Z39: 45077760
A40: =+A38+1 -> 19 | B40: Gymnázium, Pardubice, Dašická 1083 | C40: 48160989 | D40: Dašická 1083 | E40: Pardubice | F40: 530 03 | G40: 8083 | H40: 4300 | I40: 2521 | J40: 35750 | K40: Pardubický kraj | L40: 5 | M40: budova | N40: zděná | O40: pultová | P40: střešní fólie | Q40: učebny, tělocvična školy | R40: serverovna - klimatizace | S40: 2 | T40: ne | U40: vnitřní hydranty | V40: vstup na čipové karty, kamerový systém, videotelefon | W40: ano | X40: skleněná s plastovým rámem / kovová s prosklením | Y40: vandalismus | Z40: 172172000
D41: Dašická 1888 | E41: Pardubice | F41: 531 03 | G41: 10974 | I41: 1758 | J41: 11058 | K41: Pardubický kraj | L41: 1 | M41: hala | N41: želeobeton | O41: oblouková | P41: střešní fólie | Q41: sportovní hala | R41: vzduchotechnika | S41: 1 | T41: ne | U41: EPS, RHP | V41: minimální | W41: ano | X41: skleněná s plastovým rámem / plastová s prosklením | Y41: vandalismus | Z41: 53258485
D42: bez č.p. | E42: Pardubice | F42: 530 03 | G42: 8084 | H42: 4300 | I42: 990 | J42: 6930 | K42: Pardubický kraj | L42: 2 | M42: budova | N42: zděná | O42: plochá | P42: střešní fólie | Q42: školní jídelna, kuchyně | R42: gastro-technologie,klimatizace | S42: 3 | T42: ne | U42: standartní (RHP) | V42: kamerový systém | W42: ano | X42: skleněná s plastovým rámem / plastové s prosklením | Y42: vandalismus, vzrostlé stromy | Z42: 33374880
D43: bez č.p. | E43: Pardubice | F43: 530 03 | G43: 8085 | H43: 4300 | I43: 194 | J43: 776 | K43: Pardubický kraj | L43: 1 | M43: budova | N43: zděná | O43: plochá | P43: střešní fólie | Q43: sklad | R43: ne | S43: 2 | T43: ne | U43: standartní (RHP) | V43: minimální (oplocení areálu) | W43: ano | X43: skleněná s dřevěným rámeme / dřevěné | Y43: vzrostlé stromy | Z43: 3737216
A44: 20 | B44: Gymnázium, Pardubice, Mozartova 449 | C44: 48161063 | D44: Mozartova 449 | E44: Pardubice | F44: 530 09 | G44: 6872 | H44: 4300 | I44: 5207 | J44: 21235 | K44: Pardubický kraj | L44: 3 | M44: budova | N44: zděná | O44: plochá | P44: střešní fólie | Q44: škola | R44: vzduchotechnika - kuchyně | S44: 2 | T44: minimální množství chemických látek v laboratoři | U44: RHP, hydranty | V44: EZS | W44: ano | X44: skleněná s dřevěným rámem / kovové s prosklením | Y44: vandalismus | Z44: 102270578
A45: 21 | B45: Gymnázium, Polička, Nábřeží svobody 306 | C45: 62032178 | D45: Nábřeží svobody 306 | E45: Polička | F45: 57201 | G45: 909, 3489 | H45: 4300 | I45: 1548, 360 | J45: 21784 | K45: Pardubický kraj | L45: 3 | M45: budova | N45: zděná | O45: valbová | P45: plech | Q45: škola, tělocvična školy | R45: vzduchotechnika, klimatizace | S45: 1 | T45: minimální množství chemických látek ve skladu (pro laboratoř) | U45: RHP, hydranty | V45: bezpečnostní vchodové dveře, kódové zabezpečení dveří - učebna fyziky a PC | W45: ano | X45: skleněná s dřevěným,plastovým rámem / dřevěné s prosklením | Y45: minimální | Z45: 178307584
A46: 22 | B46: Gymnázium a Střední odborná škola Přelouč | C46: 72543159 | D46: Obránců míru 1025 | E46: Přelouč | F46: 535 01 | G46: 1044, 1946 | H46: 4300 | I46: 2182, 46 | J46: 28539 | K46: Pardubický kraj | L46: 3 | M46: budova | N46: zděná | O46: valbová | P46: střešní tašky | Q46: učebny školy | R46: ne | S46: 3 | T46: ne | U46: RHP, hydranty | V46: EZS | W46: ano | X46: skleněná s dřevěným rámem / dřevěné s prosklením | Y46: vandalismus | Z46: 137443824
D47: bez č.p. | E47: Přelouč | F47: 535 01 | G47: 2147 | H47: 4300 | I47: 870 | J47: 4950 | K47: Pardubický kraj | L47: 2 | M47: budova | N47: zděná | O47: plochá | P47: střešní fólie | Q47: učebny školy | R47: ne | S47: 2 | T47: ne | U47: RHP, vnitřní hydrant | V47: EZS, oplocení zadní části objektu | W47: ano | X47: skleněná s dřevěným rámem / kovové s prosklením | Y47: vandalismus | Z47: 23839200
D48: bez č.p. | E48: Přelouč | F48: 535 01 | G48: 2148 | H48: 4300 | I48: 47 | J48: 140 | K48: Pardubický kraj | L48: 1 | M48: budova | N48: zděná | O48: plochá | P48: střešní fólie | Q48: trafostanice | R48: ne | S48: 2 | T48: ne | U48: standartní (RHP) | V48: oplocení objektu | W48: ano | X48: ne / plechové | Y48: vandalismus | Z48: 674240
D49: Dukelské nám. 1513 | E49: Přelouč | F49: 535 01 | G49: 2162/1,2162/2,2162/3 | H49: 4300 | I49: 595 | J49: 5200 | K49: Pardubický kraj | L49: 3 | M49: budova | N49: zděná | O49: plochá | P49: střešní fólie | Q49: škola | R49: ne | S49: 1 | T49: ne | U49: RHP, hydranty | V49: oplocení objektu | W49: ne, částečně pronajaté | X49: skleněná s dřevěným rámem / dřevěné s prosklením | Y49: vandalismus | Z49: 25043200
D50: bez č.p. | E50: Přelouč | F50: 535 01 | G50: 540/1 | H50: 4300 | I50: 971 | J50: 5900 | K50: Pardubický kraj | L50: 1 | M50: budova | N50: zděná | O50: pultová | P50: plech, eternit | Q50: sklad, dílny | R50: ne | S50: 3 | T50: ne | U50: standartní (RHP) | V50: oplocení areálu | W50: ne | X50: skleněné s dřevěným, kovovým rámem / dřevěné, kovové s prosklením | Y50: vandalismus, vzrostlé stromy | Z50: 28414400
D51: bez č.p. | E51: Přelouč | F51: 535 01 | G51: 1938 | H51: 4300 | I51: 326 | J51: 1400 | K51: Pardubický kraj | L51: 1 | M51: budova | N51: zděná | O51: sedlová | P51: vlnitý plech | Q51: dílny, šatny | R51: ne | S51: 3 | T51: ne | U51: standartní (RHP) | V51: okenní mříže, oplocení pozemku | W51: ne | X51: skleněné s dřevěným rámem / dřevěné | Y51: minimální | Z51: 6142400
D52: bez č.p. | E52: Přelouč | F52: 535 01 | G52: 2152 | H52: 4300 | I52: 63 | J52: 190 | K52: Pardubický kraj | L52: 1 | M52: garáž | N52: kovová | O52: sedlová | P52: vlnitý plech | Q52: garáž | R52: ne | S52: 3 | T52: ne | U52: ne | V52: oplocení objektu | W52: ne | X52: plastová v kovovém rámu / plechová vrata | Y52: vzrostlé stromy, vandalismus | Z52: 915040
D53: Jaselská 1499 | E53: Přelouč | F53: 535 01 | G53: 542/1 | H53: 4300 | I53: 2592 | J53: 14100 | K53: Pardubický kraj | L53: 2 | M53: budova | N53: zděná | O53: plochá | P53: střešní fólie | Q53: učebny SOU, dílny OV | R53: strojírenská | S53: 2 | T53: minimální množství acetonu, svařovací soupravy | U53: RHP, hydranty | V53: EZS, oplocení areálu | W53: ano | X53: skleněná s dřevěným rámem / kovové s prosklením | Y53: minimální | Z53: 25043200
D54: Jaselská 1505 | E54: Přelouč | F54: 535 01 | G54: 542/7 | H54: 4300 | I54: 38 | J54: 115 | K54: Pardubický kraj | L54: 1 | M54: budova | N54: zděná | O54: sedlová | P54: střešní tašky | Q54: sklad | R54: ne | S54: 3 | T54: ne | U54: standartní (RHP) | V54: oplocení areálu, visací zámek | W54: ano | X54: skleněná s dřevěným rámem / dřevěné | Y54: vandalismus, vzrostlé stromy | Z54: 553840
D55: Jaselská 1506 | E55: Přelouč | F55: 535 01 | G55: 542/8 | H55: 4300 | I55: 508 | J55: 3100 | K55: Pardubický kraj | L55: 1 | M55: budova | N55: zděná | O55: sedlová | P55: plech | Q55: budova pro volný čas | R55: ne | S55: 3 | T55: ne | U55: standartní (RHP) | V55: oplocení areálu | W55: ano | X55: skleněná s dřevěným rámem / dřevěné | Y55: vandalismus | Z55: 14929600
D56: Jaselská 1507 | E56: Přelouč | F56: 535 01 | G56: 542/6 | H56: 4300 | I56: 916 | J56: 14200 | K56: Pardubický kraj | L56: 3 | M56: budova | N56: zděná | O56: plochá | P56: střešní fólie | Q56: domov mládeže | R56: ne | S56: 3 | T56: ne | U56: RHP, vnitřní hydranty | V56: oplocení areálu, částečně mříže na oknech | W56: ano | X56: skleněná s dřevěným nebo plastovým rámem / kovová | Y56: minimální | Z56: 68387200
A57: 23 | B57: Gymnázium, Ústí nad Orlicí , T. G. Masaryka 106 | C57: 00401081 | D57: T. G. Masaryka 106 | E57: Ústí nad Orlicí | F57: 56201 | G57: 726 | H57: 4300 | I57: 1424 | J57: 22800 | K57: Pardubický kraj | L57: 3 | M57: budova | N57: zděná | O57: valbová | P57: střešní tašky | Q57: škola | R57: ne | S57: 2 | T57: ne | U57: RHP, hydranty | V57: minimální | W57: ano | X57: skleněná s dřevěným rámem / dřevěné | Y57: vandalismus, vzrostlé stromy | Z57: 13484800
D58: T. G. Masaryka 101 | E58: Ústí nad Orlicí | F58: 56201 | G58: 727 | H58: 4300 | I58: 588 | J58: 4700 | K58: Pardubický kraj | L58: 2 | M58: budova | N58: zděná | O58: valbová | P58: střešní tašky | Q58: tělocvična školy | R58: ne | S58: 3 | T58: ne | U58: standartní (RHP) | V58: minimální (oplocení areálu) | W58: ano | X58: skleněná s dřevěným rámem / dřevěné s prosklením | Y58: minimální | Z58: 22635200
D59: bez č.p. | E59: Ústí nad Orlicí | F59: 56201 | G59: 3583 | H59: 4300 | I59: 65 | J59: 160 | K59: Pardubický kraj | L59: 1 | M59: budova | N59: zděná | O59: valbová | P59: pálená taška | Q59: altán | R59: ne | S59: 2 | T59: ne | U59: standartní (RHP) | V59: minimální (oplocení areálu) | W59: ano | X59: ne | Y59: vzrostlé stromy | Z59: 770560
A60: 24 | B60: Gymnázium Vysoké Mýto | C60: 49314645 | D60: nám. Vaňorného 163 | E60: Vysoké Mýto | F60: 56601 | G60: 226.227 | H60: 4300 | I60: 568, 854 | K60: v majetku města | L60: 3 | M60: budova | N60: zděná | O60: valbová | P60: kanadský šindel | Q60: škola | R60: ne | S60: 2 | T60: minimální množství chemických látek v laboratoři | U60: RHP, hydranty | V60: EZS | W60: ano | X60: skleněná s dřevěným rámem / dřevěné s prosklením | Y60: vandalismus
A61: 25 | B61: Gymnázium, Žamberk, Nádražní 48 | C61: 49314891 | D61: Nádražní 48 | E61: Žamberk | F61: 56401 | G61: 799/1 | H61: 4300 | I61: 816 | J61: 13100 | K61: Pardubický kraj | L61: 3 | M61: budova | N61: zděná | O61: valbová | P61: střešní tašky | Q61: škola, tělocvična školy | R61: vzduchotechnika | S61: 2 | T61: ne | U61: RHP, hydranty | V61: minimální (osvětlení objektu) | W61: ano | X61: skleněná s dřevěným rámem / dřevěné s prosklením | Y61: vandalismus | Z61: 63089600
D62: Komenského 1136 | E62: Žamberk | F62: 56401 | G62: 791/1 | H62: 4300 | I62: 1325 | J62: 9976 | K62: Pardubický kraj | L62: 2 | M62: hala | N62: zděná | O62: plochá | P62: střešní fólie | Q62: tělocvična školy | R62: vzduchotechnika | S62: 3 | T62: ne | U62: standartní (RHP) | V62: mříže na dveřích, oplocení zadní části objektu | W62: ano | X62: skleněná s dřevěným rámem / kovové s prosklením | Y62: vandalismus | Z62: 48044416
A63: 26 | B63: Sportovní gymnázium, Pardubice, Dašická 268 | C63: 48161012 | D63: Dašická 268 | E63: Pardubice | F63: 530 03 | G63: 1244/1 | H63: 4300 | I63: 1756 | J63: 19688 | K63: Pardubický kraj | L63: 3 | M63: budova | N63: zděná | O63: valbová | P63: plech, střešní tašky | Q63: učebny | R63: ne | S63: 3 | T63: ne | U63: RHP, hydranty | V63: minimální (zadní část objektu oplocena) | W63: ano | X63: skleněná s dřevěným rámem / dřevěné s prosklením | Y63: vandalismus | Z63: 94817408
D64: bez čp. | E64: Pardubice | F64: 530 03 | G64: 10109 | H64: 4300 | I64: 995 | J64: 15360 | K64: Pardubický kraj | L64: 1 | M64: hala | N64: zděná | O64: plochá | P64: střešní fólie | Q64: tělocvična školy | R64: ne | S64: 3 | T64: ne | U64: standartní (RHP) | V64: minimální (oplocení objektu) | W64: ano | X64: skleněná s dřevěným rámem + prosklení stěn / kovové s prosklením | Y64: minimální | Z64: 73973760
A65: 27 | B65: Integrovaná střední škola Moravská Třebová | C65: 15034496 | D65: Brněnská 41 | E65: Moravská Třebová | F65: 57101 | G65: 299/4 | H65: 4300 | I65: 427 | J65: 2340 | K65: Pardubický kraj | L65: 2 | M65: budova | N65: zděná | O65: plochá | P65: střešní fólie | Q65: škola | R65: ne | S65: 2 | T65: ne | U65: RHP, hydranty | V65: minimální | W65: ano | X65: skleněná s plastovým rámem / dřevěné | Y65: vandalismus | Z65: 11197829
D66: bez č.p. | E66: Moravská Třebová | F66: 57101 | G66: 300,301/1-2,303/3 | H66: 4300 | I66: 37, 480, 53, 486 | J66: 5465 | K66: Pardubický kraj | L66: 4 | M66: budova | N66: zděná | O66: plochá | P66: střešní fólie | Q66: škola, spojovací úseky | R66: ne | S66: 3 | T66: ne | U66: RHP, hydranty | V66: miniální | W66: ne | X66: skleněná s plastovým rámem / plastové se skleněnou výplní | Y66: vandalismus | Z66: 26152594
D67: bez č.p. | E67: Moravská Třebová | F67: 57101 | G67: 303/4-7, 303/14 | H67: 4300 | I67: 33, 292, 64, 287, 25 | J67: 7284 | K67: Pardubický kraj | L67: 4 | M67: budova | N67: zděná | O67: plochá | P67: střešní fólie | Q67: škola, spojovací úseky, garáž | R67: ne | S67: 3 | T67: ne | U67: RHP, hydranty | V67: minimální | W67: ano | X67: skleněná s plastovým rámem / plastové se skleněnou výplní | Y67: vandalismus | Z67: 34857363
D68: Milovy 35 | E68: Sněžné na Moravě | F68: 59202 | G68: 239 | H68: 4300 | I68: 233 | J68: 1165 | K68: Pardubický kraj | L68: 1 | M68: budova | N68: zděná | O68: valbová | P68: plech | Q68: školící a výcvikové středisko školy | R68: ne | S68: 3 | T68: ne | U68: standartní (RHP) | V68: minimální | W68: ano | X68: skleněná s dřevěným rámem / dřevěné se skleněnou výplní | Y68: vzrostlé stromy, vandalismus | Z68: 5575073
D69: Lanškrounská 5 | E69: Svitavy | F69: 568 02 | G69: 390/1 | H69: 4300 | I69: 440 | J69: 3845 | K69: Pardubický kraj | L69: 2 | M69: budova | N69: zděná | O69: sedlová | P69: střešní tašky | Q69: nevyužito | R69: ne | S69: 4 | T69: ne | U69: ne | V69: ne | W69: ne | X69: skleněná s dřevěným rámem / dřevěné s prosklením | Y69: vzrostlý strom,vandalismus | Z69: 18400132
D70: Dukelská 57 | E70: Moravská Třebová | F70: 57101 | G70: 436/2 | H70: 4300 | I70: 607 | J70: 8555 | K70: Pardubický kraj | L70: 3 | M70: budova | N70: zděná | O70: plochá | P70: střešní fólie | Q70: internát | R70: ne | S70: 3 | T70: ne | U70: RHP, hydranty | V70: minimální | W70: ano | X70: skeněná s plastovým rámem / plechové se skleněnou výplní | Y70: vandalismus | Z70: 40939696
D71: 9. května 5 | E71: Moravská Třebová | F71: 57101 | G71: 661/1 | H71: 4300 | I71: 1215 | J71: 14592 | K71: Pardubický kraj | L71: 3 | M71: budova | N71: zděná | O71: plochá | P71: střešní fólie | Q71: škola | R71: ne | S71: 3 | T71: ne | U71: RHP, hydranty | V71: minimální | W71: ano | X71: skleněná s dřevěným rámem / plechové se skleněnou výplní | Y71: vandalismus | Z71: 69829578
D72: J. K. Tyla 9 | E72: Moravská Třebová | F72: 57101 | G72: 1336/1,1338/2,1337 | H72: 4300 | I72: 1280, 78, 655 | J72: 7200 | K72: Pardubický kraj | L72: 2 | M72: budova | N72: zděná | O72: plochá | P72: střešní fólie | Q72: škola, tlaková stanice | R72: vzduchotechnika | S72: 3 | T72: tlakové láhve | U72: standartní (RHP) | V72: minimální (zadní část objektu oplocena) | W72: ano | X72: skleněná s dřevěným rámem / plastové se skleněnou výplní | Y72: vandalismus | Z72: 52889014
D73: bez č.p. | E73: Moravská Třebová | F73: 57101 | G73: 1347/3 | H73: 4300 | I73: 1076 | J73: 8560 | K73: Pardubický kraj | L73: 2 | M73: budova | N73: zděná | O73: plochá, sedlová | P73: plech | Q73: tělocvična | R73: ne | S73: 3 | T73: ne | U73: standartní (RHP) | V73: minimální (oplocení areálu) | W73: ano | X73: skleněná s dřevěným rámem / plastové se skleněnou výplní | Y73: minimální | Z73: 40963623
A74: 28 | B74: Integrovaná střední škola technická, Vysoké Mýto, Mládežnická 380 | C74: 15028585 | D74: Mládežnická 380 | E74: Vysoké Mýto | F74: 56601 | G74: 1917/1 | H74: 4300 | I74: 5478 | J74: 44696 | K74: Pardubický kraj | L74: 3 | M74: budova | N74: zděná | O74: plochá | P74: střešní fólie | Q74: škola, dílny, ubytovna, kuchyně, jídelna | R74: strojírenská,vzduchotechnicka,klimatizace | S74: 1 | T74: ne | U74: RHP, hydranty | V74: minimální | W74: ano | X74: skleněná s plastovým rámem / plastové s prosklením | Y74: vandalismus, vzrostlé stromy | Z74: 192192800
A75: 29 | B75: Konzervatoř, Pardubice, Sukova třída 1260 | C75: 48161110 | D75: Sukova třída 1260 | E75: Pardubice | F75: 530 02 | G75: 8119 | H75: 4300 | I75: 4389 | J75: 39900 | K75: Pardubický kraj | L75: 5 | M75: budova | N75: zděná | O75: plochá | P75: střešní fólie | Q75: konzervatoř | R75: ne | S75: 1 | T75: ne | U75: RHP, hydranty,EPS | V75: EZS | W75: ano | X75: skleněná s dřevěným rámem / kovové s prosklením | Y75: vandalismus | Z75: 193487616
D76: bez č.p. | E76: Pardubice | F76: 530 02 | G76: 8121 | H76: 4300 | I76: 69 | J76: 276 | K76: Pardubický kraj | L76: 1 | M76: budova | N76: zděná | O76: plochá | P76: střešní fólie,násyp | Q76: garáže, dílna | R76: ne | S76: 1 | T76: oleje, PHM | U76: standartní (RHP) | V76: minimální | W76: ano | X76: skleněná s dřevěným rámem / kovové s prosklením | Y76: vandalismus, vzrostlé stromy | Z76: 1329216
A77: 30 | B77: Obchodní akademie, Chrudim, Tyršovo náměstí 250 | C77: 60103345 | D77: Tyršovo nám. 250 | E77: Chrudim | F77: 53760 | G77: 991 | H77: 4300 | I77: 1110 | J77: 19800 | K77: Pardubický kraj | L77: 4 | M77: budova | N77: zděná | O77: sedlová | P77: plechová | Q77: škola | R77: ne | S77: 3 | T77: ne | U77: RHP, hydranty | V77: minimální | W77: ano | X77: skleněná s dřevěným rámem / dřevěná s prosklením | Y77: vandalismus | Z77: 95356800
A78: 31 | B78: Obchodní akademie a Jazyková škola s právem státní jazykové zkoušky, Pardubice, Štefánikova 325 | C78: 48161209 | D78: Štefánikova 325 | E78: Pardubice | F78: 530 43 | G78: 609/2 | H78: 4300 | I78: 684 | J78: 4518 | K78: Pardubický kraj | L78: 3 | M78: budova | N78: zděná | O78: sedlová | P78: střešní tašky | Q78: škola | R78: ne | S78: 2 | T78: ne | U78: RHP, hydranty | V78: minimální | W78: ano | X78: skleněná s dřevěným rámem / dřevěné | Y78: vandalismus | Z78: 21758688
A79: 32 | B79: Obchodní akademie a Střední odborná škola cestovního ruchu Choceň | C79: 49314661 | D79: T. G. Masaryka 1000 | E79: Choceň | F79: 56536 | G79: 1061 | H79: 4300 | I79: 980 | K79: v majetku města | L79: 3 | M79: budova | N79: zděná | O79: plochá | P79: plech | Q79: škola | R79: ne | S79: 2 | T79: ne | U79: RHP, hydranty | V79: minimální | W79: ano | X79: skleněná s dřevěným rámem / dřevěné s prosklením | Y79: vandalismus
D80: Bj. Krawce 1883 | E80: Choceň | F80: 565 36 | G80: 164/2,164/4 | I80: 997 | J80: 7840 | K80: Pardubický kraj | L80: 1 | M80: budova | N80: zděná | O80: sedlová, valbová | P80: plech, šindel | Q80: tělocvična | R80: ne | S80: 3 | T80: ne | U80: standartní (RHP) | V80: minimální | W80: ano | X80: skleněná s dřevěným rámem / plastové s prosklením | Y80: vandalismus
D81: Tyršovo nám. 220 | E81: Choceň | F81: 56536 | G81: 415 | H81: 4300 | I81: 789 | J81: 9300 | K81: Pardubický kraj | L81: 3 | M81: budova | N81: zděná | O81: pultová, sedlová | P81: eternit | Q81: škola | R81: ne | S81: 1 | T81: ne | U81: RHP, hydranty | V81: minimální | W81: ano | X81: skleněná s plastovým, dřevěným rámem / plastové s prosklením | Y81: vandalismus | Z81: 51670800
D82: Vysokomýtská 1206 | E82: Choceň | F82: 565 36 | G82: 682 | H82: 4300 | I82: 550 | J82: 4240 | K82: Pardubický kraj | L82: 1 | M82: budova | N82: zděná | O82: valbová | P82: šindel | Q82: odloučené pracoviště-odborná výuka | R82: gastro-technologie | S82: 3 | T82: ne | U82: standartní (RHP) | V82: oplocení areálu | W82: ano | X82: skleněná s dřevěným rámem / dřevěné s prosklením | Y82: vandalismus | Z82: 23557440
D83: bez č.p. | E83: Choceň | F83: 565 36 | G83: 624/2, 624/4 | H83: 4300 | I83: 156, 798 | J83: 670 | K83: Pardubický kraj | L83: 1 | M83: budova | N83: zděná | O83: pultová | P83: plech | Q83: odloučené pracoviště-dílny školy, sklad | R83: strojírenská | S83: 3 | T83: ne | U83: standartní (RHP) | V83: objekt v uzamčeném dvoře | W83: ano | X83: skleněná s dřevěným rámem / dřevěné | Y83: vzrostlé stromy | Z83: 3722520
D84: bez č.p. | E84: Choceň | F84: 565 36 | G84: 624/3 | H84: 4300 | I84: 946 | J84: 5120 | K84: Pardubický kraj | L84: 2 | M84: budova | N84: zděná | O84: plochá | P84: plech | Q84: škola | R84: ne | S84: 3 | T84: ne | U84: standartní (RHP) | V84: oplocení zadní části objektu | W84: ano | X84: skleněná s plastovým rámem / plastové s prosklením | Y84: vandalismus | Z84: 28446720
D85: bez č.p. | E85: Choceň | F85: 565 36 | G85: 624/1 | H85: 4300 | I85: 267 | J85: 1120 | K85: Pardubický kraj | L85: 1 | M85: budova | N85: zděná | O85: pultová | P85: plech | Q85: odloučené pracoviště-dílny školy | R85: strojírenská | S85: 3 | T85: ne | U85: standartní (RHP) | V85: objekt v uzavřeném dvoře | W85: ano | X85: skleněná s dřevěným rámem / dřevěné | Y85: vandalismus | Z85: 6222720
D86: Husova 146/IV | E86: Vysoké Mýto | F86: 566 01 | G86: 1515/6 | H86: 4300 | I86: 1439 | J86: 16965 | K86: Pardubický kraj | L86: 3 | M86: budova | N86: zděná | O86: valbová | P86: plech | Q86: odloučené pracoviště-škola | R86: ne | S86: 2 | T86: ne | U86: RHP, hydranty | V86: minimální | W86: ano | X86: skleněná s dřevěným rámem / dřevěné s prosklením | Y86: vandalismus | Z86: 94257540
D87: bez čp. | E87: Choceň | F87: 56536 | G87: 421/4 | H87: 4300 | I87: 118 | J87: 350 | K87: Pardubický kraj | L87: 1 | M87: přístřešek, garáž | N87: zděná | O87: pultová | P87: eternit | Q87: garáž | R87: ne | S87: 1 | T87: ne | U87: standartní (RHP) | V87: minimální | W87: ano | X87: skleněná s dřevěným rámem / dřevěná vrata | Y87: vzrostlé stromy | Z87: 1944600
D88: Komenského 435 | E88: Choceň | F88: 56536 | G88: 411 | H88: 4300 | I88: 161 | J88: 608 | K88: Pardubický kraj | L88: 1 | M88: garáž | N88: zděná | O88: plochá | P88: plech | Q88: garáž | R88: ne | S88: 3 | T88: ne | U88: standartní (RHP) | V88: minimální | W88: ano | X88: prosklení / plechová vrata | Y88: vandalismus | Z88: 3378048
D89: bez čp. | E89: Choceň | F89: 56536 | G89: 421/3 | H89: 4300 | I89: 62 | J89: 332 | K89: Pardubický kraj | L89: 1 | M89: garáž | N89: zděná | O89: pultová | P89: střešní fólie | Q89: garáž | R89: ne | S89: 4 | T89: ne | U89: standartní (RHP) | V89: minimální | W89: ano | X89: prosklení / plechová vrata | Y89: vzrostlé stromy | Z89: 1844592
D90: Paraple 2000 | E90: Choceň | F90: 56536 | G90: 3419 | H90: 4300 | I90: 652 | J90: 8589 | K90: Pardubický kraj | L90: 3.4 | M90: budova | N90: zděná | O90: plochá | P90: plech | Q90: domov mládeže, školní jídelna | R90: gastro-technologie,klimatizace | S90: 1 | T90: ne | U90: RHP, hyndranty | V90: oplocení areálu | W90: ano | X90: skleněná s plastovým rámem / plastové s prosklením | Y90: minimální | Z90: 47720484
A91: 33 | B91: Obchodní akademie a Vyšší odborná škola ekonomická, Svitavy, T. G. Masaryka 47 | C91: 62033077 | D91: T. G. Masaryka 47 | E91: Svitavy | F91: 56802 | G91: 492/1,492/3 | H91: 4300 | I91: 1636 | J91: 17224 | K91: Pardubický kraj,parcela č.492/3 v majetku jiné fyzické osoby | L91: 3 | M91: budova | N91: zděná | O91: sedlová | P91: střešní tašky | Q91: škola, jídelna, kuchyně, tělocvična školy | R91: vzduchotechnika, klimatizace, gastro-technologie | S91: 1 | T91: ne | U91: RHP, hydranty | V91: minimální | W91: ano | X91: skleněná s plastovým, dřevěným rámem / plastové s prosklením | Y91: vandalismus | Z91: 82950784
D92: bez č.p. | E92: Svitavy | F92: 56802 | G92: 492/2 | H92: 4300 | I92: 207 | J92: 872 | K92: Pardubický kraj | L92: 1 | M92: budova | N92: zděná | O92: pultová | P92: plech | Q92: sborovna, prádelna, kotelna, sklad | R92: strojní vybavení kotelny a prádelny | S92: 2 | T92: zemní plyn-kotelna | U92: RHP, hydranty | V92: objekt v uzavřeném dvoře | W92: ano | X92: skleněná s dřevěným rámem / dřevěné | Y92: minimální | Z92: 4199552
D93: Kijevská 1909 | E93: Svitavy | F93: 56802 | G93: 2568 | H93: 4300 | I93: 911 | J93: 5430 | K93: Pardubický kraj | L93: 2 | M93: budova | N93: zděná | O93: plochá | P93: střešní fólie | Q93: domov mládeže | R93: ne | S93: 1 | T93: ne | U93: RHP, hydranty | V93: oplocený areál | W93: ano | X93: skleněná s plastovým rámem / plastové s prosklením | Y93: vandalismus | Z93: 26150880
A94: 34 | B94: Pedagogicko-psychologická poradna Pardubice | C94: 48160806 | D94: Sukova třída 1260 | E94: Pardubice | F94: 53002 | G94: 8119 | H94: 4300 | I94: 4389 | J94: 39900 | K94: Pardubický kraj | L94: 5 | M94: budova | N94: zděná | O94: plochá | P94: střešní fólie | Q94: pedagogicko-psychologická poradna (pronajaté prostory konzervatoře) | R94: ne | S94: 1 | T94: ne | U94: EPS, RHP, hydranty | V94: EZS | W94: ano | X94: skleněná s dřevěným rámem / kovové s prosklením | Y94: vandalismus | Z94: budova pojištěna - Konzervatoř Pardubice
D95: Poděbradova 842 | E95: Chrudim | F95: 53701 | G95: 302/1 | H95: 4300 | I95: 1142 | J95: 19400 | K95: Pardubický kraj | L95: 6 | M95: budova | N95: zděná | O95: plochá | P95: střešní fólie | Q95: poradna / součást budovy domova mládeže / | R95: ne | S95: 3 | T95: ne | U95: RHP, hydranty | V95: minimální (oplocení areálu) | W95: ano | X95: skleněná s plastovým rámem / kovové s prosklením | Y95: vzrostlé stromy | Z95: budova pojištěna - SŠZ a VOŠ Chrudim
D96: Internátní 217 | E96: Třemošnice | F96: 53843 | G96: 219 | H96: 4300 | I96: 3760 | K96: v majetku města | L96: 3 | M96: budova | N96: zděná | O96: plochá | P96: střešní fólie | Q96: pedagogicko-psychologická poradna (součást budovy) | R96: ne | S96: 2 | T96: ne | U96: RHP, hydranty | V96: minimální | W96: ano | X96: skleněná s dřevěným rámem / dřevěné s prosklením | Y96: vandalismus
D97: Nádražní 548 | E97: Hlinsko | F97: 53901 | G97: 600/1 | H97: 4300 | I97: 851 | K97: v majetku města | L97: 2 | M97: budova | N97: zděná | O97: plochá | P97: střešní fólie | Q97: poradna | R97: ne | S97: 3 | T97: ne | U97: standartní (RHP) | V97: minimální | W97: ano | X97: skleněná s plastovým rámem / plastové s prosklením | Y97: vandalismus
A98: 35 | B98: Pedagogicko-psychologická poradna, Ústí nad Orlicí, Královéhradecká 513 | C98: 70847142 | D98: Královéhradecká 513 | E98: Ústí nad Orlicí | F98: 56201 | G98: 621 | H98: 4300 | I98: 139 | J98: 1362 | K98: Pardubický kraj | L98: 2 | M98: budova | N98: zděná | O98: sedlová | P98: pálená taška | Q98: poradna | R98: ne | S98: 2 | T98: ne | U98: standartní (RHP) | V98: minimální | W98: ano | X98: skleněná s dřevěným rámem / dřevěné | Y98: vandalismus | Z98: 9973926
D99: Dobrovského 630 | E99: Lanškroun | F99: 56301 | G99: 1275/1 | H99: 4300 | I99: 1125 | K99: v majetku města | L99: 2 | M99: budova | N99: zděná | O99: sedlová | P99: střešní tašky | Q99: pedagogicko-psychologická poradna (součást budovy) | R99: ne | S99: 1 | T99: ne | U99: standartní (RHP) | V99: minimální | W99: ano | X99: skleněná s dřevěným rámem / dřevěné s prosklením | Y99: vandalismus
D100: Královéhradecká 630 | E100: Ústí nad Orlicí | F100: 56201 | G100: 574/2 | H100: 12000 | I100: 312 | J100: 2576 | K100: Pardubický kraj | L100: 3 | M100: budova | N100: zděná | O100: pultová / sedlová | P100: plech | Q100: poradna | R100: ne | S100: 1 | T100: ne | U100: RHP, hydrant, EPS | V100: EZS | W100: ano | X100: skleněná s plastovým rámem / plastové s prosklením | Y100: vandalismus | Z100: 18864048
D101: Plk-B.Kohouta 914 | E101: Vysoké Mýto | F101: 566 01 | G101: 4664/105 | I101: 1219 | K101: v majetku města | L101: 3 | M101: budova | N101: zděná | O101: plochá | P101: střešní fólie | Q101: pedagogicko-psychologická poradna (součást budovy) | R101: klimatizace | S101: 1 | T101: ne | U101: RHP, EPS | V101: EZS | W101: ano | X101: skleněná s plastovým rámem / plastové s prosklením | Y101: vandalismus
D102: Riegrova 2063/11 | E102: Svitavy | F102: 56802 | G102: 2918/3 | H102: 4300 | I102: 331 | J102: 3864 | K102: Pardubický kraj | L102: 3 | M102: budova | N102: zděná | O102: plochá | P102: střešní fólie | Q102: poradna | R102: ne | S102: 2 | T102: ne | U102: RHP, hydrant | V102: minimální (oplocení objektu) | W102: ano | X102: skleněná s dřevěným rámem / kovové s prosklením | Y102: vzrostlé stromy | Z102: 28296072
D103: Riegrova 2063/11 | E103: Svitavy | F103: 568 02 | G103: 2919/2 | H103: 4300 | I103: 84 | J103: 252 | K103: Pardubický kraj | L103: 1 | M103: budova | N103: zděná | O103: pultová | P103: plech | Q103: garáž, sklad | R103: ne | S103: 2 | T103: ne | U103: standartní (RHP) | V103: minimální | W103: ano | X103: ne / plechová vrata | Y103: vandalismus | Z103: 1845396
D104: Nádražní 550 | E104: Žamberk | F104: 56401 | G104: 796 | H104: 4300 | I104: 178 | K104: Pardubický kraj | L104: 3 | M104: budova | N104: zděná | O104: sedlová | P104: asfaltový šindel | Q104: část objektu ve výpůjčce - poradna | R104: ne | S104: 3 | T104: ne | U104: RHP, hydranty | V104: minimální (zadní část objektu oplocena) | W104: ano | X104: skleněná s plastovým rámem / plastové s prosklením | Y104: vandalismus, vzrostlé stromy | Z104: budova pojištěna u Spec. SŠ a ZŠ Žamberk
D105: T.G. Masaryka 1160 | E105: Litomyšl | F105: 57001 | G105: 2247 | I105: 274 | K105: Pardubický kraj | L105: 1 | M105: budova | N105: zděná | O105: sedlová | P105: střešní tašky | Q105: poradna | R105: ne | S105: 2 | T105: ne | U105: standartní (RHP) | V105: minimální ( oplocení objektu ) | W105: ano | X105: skleněná s plastovým rámem / dřevěné s prosklením | Y105: vzrostlé stromy | Z105: budova pojištěna u SŠ zahradnické a technické Litomyšl
A106: 36 | B106: Průmyslová střední škola Letohrad | C106: 49314912 | D106: Komenského 472 | E106: Letohrad | F106: 56151 | G106: 530 | H106: 4300 | I106: 1609 | J106: 15700 | K106: Pardubický kraj | L106: 4 | M106: budova | N106: zděná | O106: plochá | P106: plech | Q106: škola | R106: ne | S106: 1 | T106: ne | U106: RHP, hydrant | V106: EZS, oplocení areálu | W106: ano | X106: skleněná s plastovým rámem / plastové s prosklením | Y106: vzrostlé stromy | Z106: 75611200
D107: Na Stráni 785 | E107: Letohrad | F107: 56151 | G107: 1254 | H107: 4300 | I107: 503 | J107: 6030 | K107: Pardubický kraj | L107: 3 | M107: budova | N107: zděná | O107: polovalbová | P107: střešní tašky | Q107: škola | R107: ne | S107: 2 | T107: ne | U107: RHP, hydrant | V107: minimální (oplocení areálu) | W107: ano | X107: skleněná s dřevěným rámem / dřevěné s prosklením | Y107: minimální | Z107: 29040480
D108: bez č.p. | E108: Letohrad | F108: 56151 | G108: 1154 | H108: 4300 | I108: 411 | J108: 6165 | K108: Pardubický kraj | L108: 2 | M108: budova | N108: zděná | O108: polovalbová | P108: střešní tašky | Q108: škola | R108: ne | S108: 1 | T108: ne | U108: RHP, hydrant | V108: minimální (oplocení areálu) | W108: ano | X108: skleněná s plastovým rámem / plastové s prosklením | Y108: minimální | Z108: 29680640
D109: bez č.p. | E109: Letohrad | F109: 56151 | G109: 1341 | H109: 4300 | I109: 954 | J109: 6700 | K109: Pardubický kraj | L109: 1, 2 | M109: budova | N109: zděná | O109: plochá | P109: plech | Q109: domov mládeže, tělocvična školy | R109: vzduchotechnika | S109: 1 | T109: ne | U109: RHP, hydrant | V109: minimální (oplocení areálu) | W109: ano | X109: skleněná s dřevěným rámem / kovové s prosklením | Y109: minimální | Z109: 32267200
D110: bez č.p. | E110: Letohrad | F110: 56151 | G110: 1340 | H110: 4300 | I110: 831 | J110: 7500 | K110: Pardubický kraj | L110: 2 | M110: budova | N110: zděná | O110: plochá | P110: plech | Q110: kuchyně, jídelna | R110: vzduchotechnika, gastro-technologie | S110: 2 | T110: ne | U110: RHP, hydrant | V110: oplocení areálu, částečně okenní mříže | W110: ano | X110: skleněná s dřevěným rámem / kovové s prosklením | Y110: vzrostlé stromy | Z110: 36120000
D111: bez č.p. | E111: Letohrad | F111: 56151 | G111: 1342 | H111: 4300 | I111: 24 | J111: 60 | K111: Pardubický kraj | L111: 1 | M111: přístřešek | N111: zděná | O111: pultová | P111: střešní fólie | Q111: sklad | R111: ne | S111: 3 | T111: ne | U111: standartní (RHP) | V111: minimální (oplocení areálu) | W111: ano | X111: skleněná s plastovým rámem / dřevěné | Y111: vzrostlé stromy | Z111: 288960
D112: Ústecká 36 | E112: Letohrad | F112: 56151 | G112: 293 | H112: 4300 | I112: 1333 | J112: 8800 | K112: Pardubický kraj | L112: 1 | M112: budova | N112: zděná | O112: pultová | P112: plech | Q112: dílny školy | R112: strojírenská | S112: 3 | T112: ne | U112: standartní (RHP) | V112: EZS, oplocení areálu | W112: ano | X112: skleněná s dřevěným rámem / dřevěné s prosklením | Y112: vzrostlé stromy, vodní toky | Z112: 42380800
D113: bez č.p. | E113: Letohrad | F113: 56151 | G113: 920/1 | H113: 4300 | I113: 340 | J113: 2900 | K113: Pardubický kraj | L113: 3 | M113: budova | N113: zděná | O113: sedlová | P113: plech | Q113: škola | R113: ne | S113: 2 | T113: ne | U113: standartní (RHP) | V113: minimální (oplocení areálu) | X113: skleněná s plastovým rámem | Y113: vzrostlé stromy, vodní toky | Z113: 13966400
D114: bez č.p. | E114: Letohrad | F114: 56151 | G114: 1255/1 | H114: 4300 | I114: 100 | J114: 455.1 | K114: Pardubický kraj | L114: 2 | M114: budova | N114: zděná | O114: plochá | P114: střešní fólie | Q114: trafostanice | R114: trafo | S114: 3 | T114: olej v transtormátoru | U114: standartní (RHP) | V114: minimální (oplocení areálu) | W114: ano | X114: prosklení / plechová vrata, dveře | Y114: vzrostlé stromy | Z114: 2191280
D115: bez č.p. | E115: Letohrad | F115: 56151 | G115: 480,1519, 64/2 | H115: 4300 | I115: 42, 2, 59 | J115: 495 | K115: Pardubický kraj | L115: 1 | M115: budova | N115: zděná | O115: sedlová | P115: střešní tašky | Q115: malá vodní elektrárna | R115: strojní vybavení elektrárny | S115: 3 | T115: ne | U115: standartní (RHP) | V115: minimální (oplocení areálu) | W115: ano | X115: skleněná s dřevěným rámem / dřevěné s prosklením | Y115: vzrostlé stromy, vodní toky | Z115: 2383920
A116: 37 | B116: Střední odborná škola elektrotechnická a strojní a Střední odborné učiliště, Pardubice, Do Nového 1131 | C116: 15050351 | D116: Do Nového 1131 | E116: Pardubice | F116: 530 03 | G116: 4881/1,3 | H116: 4300 | I116: 194, 976 | J116: 9300 | K116: Pardubický kraj | L116: 2.5 | M116: budova | N116: zděná | O116: plochá | P116: střešní fólie | Q116: škola, kotelna | R116: strojní vybavení kotelny | S116: 3 | T116: zemní plyn | U116: RHP, hydranty | V116: minimální (oplocení areálu) | W116: ano | X116: skleněná s dřevěným rámem / dřevěné s prosklením | Y116: minimální | Z116: 44258700
D117: bez č.p. | E117: Pardubice | F117: 530 03 | G117: 4881/2 | H117: 4300 | I117: 20 | J117: 50 | K117: Pardubický kraj | L117: 1 | M117: budova | N117: dřevěná | O117: sedlová | P117: eternit | Q117: vrátnice školy | R117: ne | S117: 3 | T117: ne | U117: standartní (RHP) | V117: minimální (oplocení areálu) | W117: ano | X117: skleněná s dřevěným rámem / dřevěné s prosklením | Y117: minimální | Z117: 237950
D118: bez č.p. | E118: Pardubice | F118: 530 03 | G118: 4882/3,4,5 | H118: 4300 | I118: 958, 15, 31 | J118: 2375 | K118: Pardubický kraj | L118: 1 | M118: budova | N118: dřevěná | O118: sedlová | P118: vlnitý plech | Q118: sklady, šatny, provozní úsek a spojovací chodba | R118: solární panely | S118: 3 | T118: ne | U118: standartní (RHP) | V118: minimální (oplocení areálu) | W118: ano | X118: skleněná s dřevěným rámem / dřevěné s prosklením | Y118: minimální | Z118: 11302625
D119: bez č.p. | E119: Pardubice | F119: 53003 | G119: 4881/4,5 | H119: 1055 | I119: 150, 29 | J119: 540 | K119: Pardubický kraj | L119: 1 | M119: budova | N119: zděná, dřevěná | O119: pultová, sedlová | P119: vlnitý plech, plech | Q119: sklad, sklad chemikálií | R119: ne | S119: 3 | T119: omezené množství chemických látek | U119: standartní (RHP) | V119: minimální (oplocení areálu) | W119: ano | X119: skleněná s dřevěným rámem / plechová vrata | Y119: vzrostlé stromy | Z119: 2569860
D120: Do Nového 94 | E120: Pardubice | F120: 530 03 | G120: 504/1 | H120: 4300 | I120: 347 | J120: 2720 | K120: Pardubický kraj | L120: 2 | M120: budova | N120: zděná | O120: valbová | P120: plech | Q120: škola | R120: ne | S120: 3 | T120: ne | U120: RHP, hydranty | V120: minimální (oplocení areálu) | W120: ano | X120: skleněná s dřevěným rámem / dřevěné s prosklením | Y120: minimální | Z120: 12944480
D121: bez č.p. | E121: Pardubice | F121: 530 03 | G121: 504/3, 504/8 | H121: 4300 | I121: 694, 524 | J121: 13398 | K121: Pardubický kraj | L121: 3 | M121: budova | N121: zděná | O121: plochá | P121: střešní fólie | Q121: škola | R121: ne | S121: 3 | T121: ne | U121: RHP, hydranty | V121: EZS, oplocení areálu | W121: ano | X121: skleněná s dřevěným rámem / dřevěné s prosklením | Y121: minimální | Z121: 63761082
D122: bez č.p. | E122: Pardubice | F122: 530 03 | G122: 504/4,504/9 | H122: 4300 | I122: 204, 44 | J122: 744 | K122: Pardubický kraj | L122: 1 | M122: budova | N122: zděná | O122: sedlová | P122: plech | Q122: sklad | R122: ne | S122: 3 | T122: ne | U122: standartní (RHP) | V122: oplocení areálu, částečně okenní mříže | W122: ano | X122: skleněná s dřevěným rámem / dřevěné s prosklením | Y122: vzrostlé stromy | Z122: 3540696
D123: bez č.p. | E123: Pardubice | F123: 53003 | G123: 8353/1,8353/2 | H123: 4300 | I123: 110, 29 | J123: 1100 | K123: Pardubický kraj | L123: 1 | M123: budova | N123: zděná | O123: pultová | P123: střešní fólie | Q123: budova trafostanice | R123: trafo | S123: 2 | T123: olej v transtormátoru | U123: standartní (RHP) | V123: minimální (oplocení areálu) | W123: ano | X123: ventilace / plechová vrata | Y123: minimální | Z123: 5234900
D124: Do Nového 1406 | E124: Pardubice | F124: 530 03 | G124: 4880/3, 4880/4 | H124: 4300 | I124: 146, 272 | J124: 3080 | K124: Pardubický kraj | L124: 2 | M124: budova | N124: zděná | O124: sedlová | P124: plech | Q124: učebny praktického výcviku, reklamní agentura | R124: ne | S124: 3 | T124: ne | U124: RHP, hydranty | V124: minimální (oplocení areálu) | W124: ano | X124: skleněná s dřevěným rámem / plastové s prosklením | Y124: vzrostlé stromy | Z124: 14657720
D125: č.p. 67 | E125: Benecko | F125: 512 37 | G125: 54 | H125: 4300 | I125: 215 | J125: 1075 | K125: Pardubický kraj | L125: 1 | M125: budova | N125: zděná, dřevěná | O125: sedlová | P125: plech | Q125: školící a výcvikové středisko | R125: ne | S125: 3 | T125: ne | U125: standartní (RHP) | V125: minimální | W125: ne | X125: skleněná s dřevěným rámem / dřevěné | Y125: vzrostlé stromy, vandalismus | Z125: 5115825
A126: =+A116+1 -> 38 | B126: Střední průmyslová škola stavební Pardubice | C126: 00191191 | D126: Sokolovská 148 | E126: Rybitví | F126: 533 54 | G126: 372-invent. č. 61 | H126: 4300 | I126: 377 | J126: 6409 | K126: Pardubický kraj | L126: 3 | M126: budova | N126: zděná | O126: sedlová | P126: plech | Q126: sklad | R126: ne | S126: 3 | T126: ne | U126: standartní (RHP) | V126: minimální (oplocení areálu) | W126: ne | X126: skleněná s dřevěným rámem / dřevěné | Y126: minimální | Z126: 30865744
D127: bez č.p. | E127: Rybitví | F127: 533 54 | G127: 822-invent. č. 58, 370-invent. č. 57 | H127: 4300 | I127: 723, 153 | J127: 8825 | K127: Pardubický kraj | L127: 3 | M127: budova | N127: zděná | O127: plochá, sedlová | P127: plech, vlnitý plech | Q127: PSV dílny, kovářské dílny, sklad plechu | R127: strojírenská, vzduchotechnika | S127: 3 | T127: ne | U127: standartní (RHP) | V127: EZS, oplocení areálu | W127: ano | X127: skleněná s plastovým rámem / plechová vrata | Y127: minimální | Z127: 42501200
D128: bez č.p. | E128: Rybitví | F128: 533 54 | G128: 823-invent. č. 59 | H128: 4300 | I128: 850 | J128: 2784 | K128: Pardubický kraj | L128: 2 | M128: budova | N128: zděná | O128: plochá | P128: střešní fólie | Q128: administrativní budova | R128: ne | S128: 2 | T128: ne | U128: standartní (RHP) | V128: kamerový systém, oplocení areálu | W128: ano | X128: skleněná s dřevěným rámem / dřevěné s prosklením | Y128: minimální | Z128: 13407744
D129: bez č.p. | E129: Rybitví | F129: 533 54 | G129: 370-invent. č. 170 a 203 | H129: 4300 | I129: 24, 24 | J129: 144 | K129: Pardubický kraj | L129: 1 | M129: garáž | N129: zděná | O129: plochá | P129: plech | Q129: sklad, garáž | R129: ne | S129: 3 | T129: invent. č. 170 - hořlaviny | U129: standartní (RHP) | V129: minimální (oplocení areálu) | W129: ano | X129: prosklení / plechová vrata | Y129: minimální | Z129: 693504
D130: bez č.p. | E130: Rybitví | F130: 533 54 | G130: 370-invent. č. 34 | H130: 4300 | I130: 875 | J130: 1872 | K130: Pardubický kraj | L130: 1 | M130: budova | N130: zděná | O130: plochá | P130: střešní fólie | Q130: tělocvična školy | R130: vzduchotechnika | S130: 2 | T130: ne | U130: standartní (RHP) | V130: kamerový systém,v přízemí okenní mříže,oplocení areálu | W130: ano | X130: skleněná v kovovém a dřevěném rámu / dřevěné | Y130: minimální | Z130: 9015552
D131: Sokolovská 147 | E131: Rybitví | F131: 533 54 | G131: 374-invent. č. 60 | H131: 4300 | I131: 379 | J131: 6443 | K131: Pardubický kraj | L131: 3 | M131: budova | N131: zděná | O131: sedlová | P131: plech | Q131: domov mládeže | R131: ne | S131: 3 | T131: ne | U131: RHP, hydranty | V131: minimální (oplocení areálu) | W131: ano | X131: skleněná s dřevěným rámem / dřevěné s prosklením | Y131: minimální | Z131: 31029488
D132: Sokolovská 164 | E132: Rybitví | F132: 533 54 | G132: 601-invent. č. 62 | H132: 4300 | I132: 528 | J132: 6912 | K132: Pardubický kraj | L132: 3 | M132: budova | N132: zděná | O132: sedlová | P132: plech | Q132: učebny, sklad, ubytovna | R132: ne | S132: 3 | T132: ne | U132: EPS, RHP, hydranty | V132: 1. patro EZS, oplocení areálu | W132: ano | X132: skleněná s dřevěným rámem / dřevěné s prosklením | Y132: minimální | Z132: 33288192
D133: bez č.p. | E133: Rybitví | F133: 533 54 | G133: 681-invent. č. 7727 | H133: 4300 | I133: 475 | J133: 6580 | K133: Pardubický kraj | L133: 4 | M133: budova | N133: zděná | O133: plochá | P133: střešní fólie | Q133: internát školy | R133: ne | S133: 2 | T133: ne | U133: protipožární dveře,RHP,hydrant | V133: minimální (oplocení areálu) | W133: ano | X133: skleněná s dřevěným,plastovým rámem / kovové s prosklením | Y133: minimální | Z133: 31689280
D134: bez č.p. | E134: Rybitví | F134: 533 54 | G134: 683-invent. č.55 a 218 | H134: 4300 | I134: 984 | J134: 5760 | K134: Pardubický kraj | L134: 1 | M134: budova | N134: zděná | O134: sedlová | P134: plech | Q134: kuchyně, jídelna školy | R134: gastro-technologie | S134: 2 | T134: zemní plyn | U134: RHP, hydrant | V134: částečně mříže na oknech a dveřích, oplocení areálu | W134: ano | X134: skleněná s plastovým rámem / dřevěné s prosklením | Y134: minimální | Z134: 27740160
D135: bez č.p. | E135: Rybitví | F135: 533 54 | G135: 684-invent. č. 7728 | H135: 4300 | I135: 489 | J135: 3010 | K135: Pardubický kraj | L135: 2 | M135: budova | N135: zděná | O135: plochá | P135: střešní fólie | Q135: vrátnice školy | R135: ne | S135: 3 | T135: ne | U135: RHP, hydrant | V135: minimální (zadní část objektu oplocena) | W135: ano | X135: skleněná s dřevěným rámem / dřevěné s prosklením | Y135: vandalismus | Z135: 14496160
D136: bez č.p. | E136: Rybitví | F136: 533 54 | G136: 370-invent. č. 56 | H136: 4300 | I136: 2172 | J136: 9383 | K136: Pardubický kraj | L136: 3 | M136: budova | N136: zděná | O136: plochá | P136: střešní fólie | Q136: škola | R136: ne | S136: 1 | T136: ne | U136: EPS, hydranty | V136: EZS, oplocení areálu | W136: ano | X136: skleněná s plastovým rámem / plastové s prosklením | Y136: minimální | Z136: 13407744
D137: Sokolovská 150 | E137: Rybitví | F137: 533 54 | G137: 682-inv.č.7729,7730,10032; 743-inv.č.10025 | H137: 4300 | I137: 1111; 1262 | J137: 9662 | K137: Pardubický kraj | L137: 1 | M137: budova | N137: zděná | O137: plochá | P137: střešní fólie | Q137: dílny školy | R137: strojírenská | S137: 3 | T137: ne | U137: standartní (RHP) | V137: EZS, oplocení areálu | W137: ano | X137: skleněná s dřevěným rámem / kovové s prosklením | Y137: minimální | Z137: 46532192
D138: J. Potůčka 260 | E138: Pardubice | F138: 530 09 | G138: 390-invent. č. 6795 | H138: 4300 | I138: 424 | J138: 3180 | K138: Pardubický kraj | L138: 2 | M138: budova | N138: zděná | O138: plochá | P138: střešní fólie | Q138: škola | R138: ne | S138: 3 | T138: ne | U138: RHP, hydrant | V138: minimální (oplocení areálu) | W138: ano | X138: skleněná s dřevěným rámem / kovové s prosklením | Y138: vzrostlé stromy | Z138: 15314880
D139: bez č.p. | E139: Pardubice | F139: 530 09 | G139: 394-invent. č. 6835 | H139: 4300 | I139: 94 | J139: 100 | K139: Pardubický kraj | L139: 1 | M139: přístřešek | N139: zděná | O139: pultová | P139: plech | Q139: sklad | R139: ne | S139: 3 | T139: ne | U139: ne | V139: minimální (oplocení areálu) | W139: ano | X139: ne / kovová vrata | Y139: vzrostlé stromy | Z139: 481600
D140: Na Lužci | E140: Lázně Bohdaneč | F140: 533 41 | G140: 2156-invent. č. 1801001 | H140: 4300 | I140: 377 | K140: Pardubický kraj | L140: 1 | M140: budova | N140: zděná | O140: plochá | P140: střešní fólie | Q140: do pronájmu | R140: ne | S140: 3 | T140: ne | U140: standartní (RHP) | V140: okenní mříže (oplocení zadní části objektu) | W140: ano | X140: skleněná s dřevěným rámem / dřevěné | Y140: vandalismus | Z140: 6236720
A141: 39 | B141: Střední odborná škola a Střední odborné učiliště Lanškroun | C141: 15028216 | D141: Kollárova 445 | E141: Lanškroun | F141: 56301 | G141: 1444 | H141: 4300 | I141: 408 | J141: 8976 | K141: Pardubický kraj | L141: 4 | M141: budova | N141: zděná | O141: plochá | P141: střešní fólie | Q141: škola | R141: ne | S141: 2 | T141: ne | U141: RHP, hydrant | V141: EZS | W141: ano | X141: skleněná s plastovým rámem / dřevěné s prosklením | Y141: vandalismus | Z141: 42362412
D142: Krátká 310 | E142: Lanškroun | F142: 56301 | G142: 3054 | H142: 4300 | I142: 1013 | J142: 6700 | K142: Pardubický kraj | L142: 2 | M142: budova | N142: zděná | O142: plochá | P142: střešní fólie | Q142: domov mládeže | R142: ne | S142: 3 | T142: ne | U142: RHP, hydrant | V142: EZS, oplocení areálu | W142: ano | X142: skleněná s plastovým rámem / plastové s prosklením | Y142: vzrostlé stromy | Z142: 31620784
D143: Krátká 310 | E143: Lanškroun | F143: 56301 | G143: 1801/5 | H143: 1000 | J143: 1247.647 | K143: Pardubický kraj | Q143: sportovní hřiště | R143: ne | S143: 2 | T143: ne | U143: hydrant | V143: oplocení | W143: ano | Y143: vandalismus, vzrostlé stromy | Z143: 5889961
D144: Lidická 199 | E144: Lanškroun | F144: 56301 | G144: 563/2 | H144: 4300 | I144: 436 | J144: 5930 | K144: Pardubický kraj | L144: 2 | M144: budova | N144: zděná | O144: plochá | P144: střešní fólie | Q144: škola | R144: ne | S144: 3 | T144: ne | U144: RHP, hydrant | V144: EZS | W144: ano | X144: skleněná s plastovým rámem / plastové s prosklením | Y144: vandalismus | Z144: 27986754
D145: Sokolská 288 | E145: Lanškroun | F145: 56301 | G145: 3347/1 | H145: 4300 | I145: 3120 | J145: 24960 | K145: Pardubický kraj | L145: 2 | M145: budova | N145: zděná | O145: sedlová | P145: vlnitý plech | Q145: škola | R145: gastro-technologie, vzduchotechnika, klimatizace | S145: 1 | T145: ne | U145: RHP, hydrant | V145: EZS, osvětlení a oplocení objektu | W145: ano | X145: skleněná s plastovým rámem / plastová s prosklením | Y145: vzrostlé stromy | Z145: 117799219
A146: 40 | B146: Střední odborná škola a Střední odborné učiliště obchodu a služeb, Chrudim, Čáslavská 205 | C146: 13582259 | D146: Čáslavská 205 | E146: Chrudim | F146: 53701 | G146: 328/1 | H146: 4300 | I146: 1852 | J146: 16281 | K146: Pardubický kraj | L146: 3 | M146: budova | N146: zděná | O146: sedlová | P146: pálená taška | Q146: škola | R146: gastro-technologie | S146: 2 | T146: ne | U146: RHP, EPS | V146: EZS, oplocení objektu | W146: ano | X146: skleněná s dřevěným rámem / dřevěné | Y146: vzrostlé stromy | Z146: 78409296
D147: bez č.p. | E147: Chrudim | F147: 53701 | G147: 328/3 | H147: 4300 | I147: 956 | J147: 8596 | K147: Pardubický kraj | L147: 1 | M147: hala | N147: dřevěná | O147: plochá | P147: asfaltová lepenka | Q147: sportovní hala školy | R147: vzduchotechnika | S147: 1 | T147: ne | U147: standartní (RHP) | V147: minimální (oplocení areálu) | W147: ano | X147: skleněná s plastovým rámem / plastové s prosklením | Y147: minimální | Z147: 41398336
A148: 41 | B148: Střední odborná škola a střední odborné učiliště, Polička, Čs. armády 485 | C148: 62031961 | D148: Čs. armády 485 | E148: Polička | F148: 57221 | G148: 1255/1 | H148: 4300 | I148: 1413 | J148: 15550 | K148: Pardubický kraj | L148: 3 | M148: budova | N148: zděná | O148: valbová | P148: plech | Q148: škola, jídelna, kotelna | R148: strojní vybavení kotelny, gastro-technologie, klimatizace | S148: 2 | T148: ne | U148: RHP, vnitřní hydranty | V148: bezpečnostní vložky zámku, oplocení areálu | W148: ano | X148: skleněná s plastovým rámem / plastové s prosklením | Y148: minimální | Z148: 74888800
D149: Mánesova 718 | E149: Polička | F149: 57221 | G149: 2119 | H149: 4300 | I149: 390 | J149: 2450 | K149: Pardubický kraj | L149: 1 | M149: budova | N149: zděná | O149: plochá | P149: střešní fólie | Q149: dílny školy | R149: ne | S149: v rekonstrukci | T149: ne | U149: ne | V149: minimální (oplocení objektu) | W149: v rekonstrukci | X149: ne | Y149: vzrostlé stromy | Z149: 11799200
D150: bez č.p. | E150: Polička | F150: 57221 | G150: 1255/2 | H150: 4300 | I150: 846 | J150: 8000 | K150: Pardubický kraj | L150: 3 | M150: budova | N150: zděná | O150: plochá | P150: střešní fólie | Q150: škola | R150: ne | S150: 1 | T150: ne | U150: RHP, hydranty | V150: minimální (oplocení objektu) | W150: ano | X150: skleněná s plastovým rámem / plastové s prosklením | Y150: minimální | Z150: 38528000
D151: bez č.p. | E151: Polička | F151: 57221 | G151: 1255/3 | H151: 4300 | I151: 403 | J151: 1782 | K151: Pardubický kraj | L151: 1 | M151: budova | N151: zděná | O151: sedlová | P151: plech | Q151: dílny školy | R151: ne | S151: 3 | T151: ne | U151: RHP, hydranty | V151: částečné mříže na oknech, oplocení zadní části objektu | W151: ano | X151: skleněná s dřevěným rámem / dřevěné s prosklením | Y151: vandalismus | Z151: 8582112
A152: 42 | B152: Střední odborná škola a Střední odborné učiliště technické, Třemošnice, Sportovní 322 | C152: 15052796 | D152: Sportovní 322 | E152: Třemošnice | F152: 53843 | G152: 408 | H152: 4300 | I152: 781 | J152: 9000 | K152: Pardubický kraj | L152: 4 | M152: budova | N152: zděná | O152: plochá | P152: lepenka | Q152: domov mládeže, správa školy, byty | R152: ne | S152: 1 | T152: ne | U152: RHP, hydranty, EPS | V152: EZS - učebna PC, spisovna; oplocení | W152: ano | X152: skleněná s plastovým rámem / plastové s prosklením | Y152: minimální | Z152: 38700000
D153: bez č.p. | E153: Třemošnice | F153: 53843 | G153: 404 | H153: 4300 | I153: 44 | J153: 132 | K153: Pardubický kraj | L153: 2 | M153: budova | N153: zděná | O153: plochá | P153: střešní fólie | Q153: trafostanice | R153: trafo | S153: 1 | T153: olej v transtormátoru | U153: standartní (RHP) | V153: minimální (oplocení areálu) | W153: ano | X153: prosklení / plechová vrata | Y153: vzrostlé stromy | Z153: 567600
D154: bez č.p. | E154: Třemošnice | F154: 53843 | G154: 405 | H154: 4300 | I154: 397 | J154: 1985 | K154: Pardubický kraj | L154: 1 | M154: budova | N154: zděná | O154: plochá | P154: střešní fólie | Q154: truhlářská dílna | R154: truhlářské technologie | S154: 2 | T154: ne | U154: RHP, hydrant, EPS | V154: minimální (oplocení objektu) | W154: ano | X154: skleněná s dřevěným rámem / dřevěné s prosklením | Y154: vzrostlé stromy, vodní toky | Z154: 8535500
D155: bez č.p. | E155: Třemošnice | F155: 53843 | G155: 406 | H155: 4300 | I155: 438 | J155: 4035 | K155: Pardubický kraj | L155: 3 | M155: budova | N155: zděná | O155: plochá | P155: střešní fólie | Q155: škola | R155: ne | S155: 1 | T155: ne | U155: RHP, hydrant, EPS | V155: EZS | W155: ano | X155: skleněná s plastovým rámem / bezpečnostní dveře | Y155: vandalismus | Z155: 17350500
D156: bez č.p. | E156: Třemošnice | F156: 53843 | G156: 407 | H156: 4300 | I156: 1041 | J156: 6924 | K156: Pardubický kraj | L156: 1 | M156: budova | N156: zděná | O156: pultová | P156: střešní fólie | Q156: tělocvična | R156: ne | S156: 2 | T156: ne | U156: standartní (RHP) | V156: minimální | W156: ano | X156: skleněná s dřevěným rámem / kovové s prosklením | Y156: vandalismus | Z156: 29773200
D157: bez č.p. | E157: Třemošnice | F157: 53843 | G157: 403 | H157: 4300 | I157: 1451 | J157: 10160 | K157: Pardubický kraj | L157: 2 | M157: budova | N157: zděná | O157: plochá | P157: střešní fólie | Q157: dílny | R157: strojírenská | S157: 2 | T157: ne | U157: RHP, hydrant, EPS | V157: EZS - učebna PC | W157: ano | X157: skleněná s dřevěným rámem / kovové s prosklením | Y157: vzrostlé stromy, vodní toky | Z157: 43688000
D158: bez č.p. | E158: Třemošnice | F158: 53843 | G158: 878 | H158: 4300 | I158: 80 | J158: 198 | K158: Pardubický kraj | L158: 1 | M158: budova | N158: zděná | O158: pultová | P158: střešní fólie | Q158: garáže | R158: ne | S158: 1 | T158: ne | U158: standartní (RHP) | V158: minimální | W158: ano | X158: prosklení / plechová | Y158: minimální | Z158: 851400
D159: bez č.p. | E159: Třemošnice | F159: 53843 | G159: 884 | H159: 4300 | I159: 58 | J159: 162 | K159: Pardubický kraj | L159: 1 | M159: budova | N159: zděná | O159: plochá | P159: střešní fólie | Q159: truhlářská dílna | R159: strojírenská | S159: 1 | T159: ne | U159: RHP, hydrant, EPS | V159: minimální | W159: ano | X159: skleněná s dřevěným rámem / plechové | Y159: vandalismus | Z159: 696600
A160: 43 | B160: Střední odborné učiliště opravárenské, Králiky, Předměstí 427 | C160: 00087939 | D160: Předměstí 427 | E160: Králíky | F160: 561 69 | G160: 580 | H160: 4300 | I160: 4726 | J160: 37536 | K160: Pardubický kraj | L160: 1, 2 | M160: budova | N160: zděná | O160: pultová | P160: plech | Q160: učebny školy, dílny školy | R160: vzduchotechnika | S160: 3 | T160: ne | U160: RHP, hydrant | V160: kamerový systém, bezpečnostní vložka zámku, oplocení | W160: ano | X160: skleněná s dřevěným rámem / dřevěné s prosklením | Y160: vandalismus | Z160: 180773376
D161: Předměstí 430, 431 | E161: Králíky | F161: 56169 | G161: 607.608 | H161: 4300 | I161: 149, 149 | J161: 2700 | K161: Pardubický kraj | L161: 2 | M161: budova | N161: zděná | O161: valbová | P161: eternit | Q161: ubytovna | R161: ne | S161: 3 | T161: ne | U161: RHP, hydrant | V161: kamerový systém, bezpečnostní vložka zámku, oplocení | W161: ano | X161: skleněná s dřevěným rámem / kovové s prosklením | Y161: vandalismus | Z161: 13003200
D162: bez č.p. | E162: Králíky | F162: 56169 | G162: 1056 | H162: 4300 | I162: 36 | J162: 200 | K162: Pardubický kraj | L162: 1 | M162: budova | N162: zděná | O162: pultová | P162: eternit | Q162: trafostanice | R162: trafo | S162: 3 | T162: olej v transtormátoru | U162: standartní (RHP) | V162: kamerový systém | W162: ano | X162: prosklení / plechové | Y162: vzrostlé stromy | Z162: 963200
D163: bez č.p. | E163: Králíky | F163: 56169 | G163: 1055 | H163: 4300 | I163: 333 | J163: 1733 | K163: Pardubický kraj | L163: 1 | M163: garáž | N163: zděná | O163: plochá | P163: plech | Q163: garáže | R163: ne | S163: 2 | T163: ne | U163: standartní (RHP) | V163: kamerový systém, bezpečnostní vložky zámků, oplocení | W163: ano | X163: prosklení / plechová vrata | Y163: vzrostlé stromy | Z163: 8346128
D164: bez č.p. | E164: Králíky | F164: 56169 | G164: 1436 | H164: 4300 | I164: 282 | J164: 1740 | K164: Pardubický kraj | L164: 1 | M164: hala | N164: železobeton, ocel | O164: sedlová | P164: plech | Q164: sklad | R164: ne | S164: 3 | T164: ne | U164: standartní (RHP) | V164: kamerový systém, bezpečnostní vložka zámku, oplocení | W164: ano | X164: skleněná s kovovým rámem / plechová vrata | Y164: vzrostlé stromy | Z164: 8379840
D165: bez č.p. | E165: Králíky | F165: 56169 | G165: 610 | H165: 4300 | I165: 226 | J165: 968 | K165: Pardubický kraj | L165: 1 | M165: budova | N165: zděná | O165: sedlová | P165: eternit | Q165: sklad | R165: ne | S165: 3 | T165: omezené množství HK | U165: standartní (RHP) | V165: kamerový systém, bezpečnostní vložka zámku, oplocení | W165: ano | X165: skleněná s dřevěným rámem / plechové | Y165: vzrostlé stromy | Z165: 4661888
D166: Předměstí 432 | E166: Králíky | F166: 56169 | G166: 581 | H166: 4300 | I166: 319 | J166: 2560 | K166: Pardubický kraj | L166: 2 | M166: budova | N166: zděná | O166: valbová,pultová | P166: eternit, plech | Q166: jídelna | R166: gastro-technologie,klimatizace | S166: 1 | T166: ne | U166: RHP, hydrant | V166: kamerový systém, bezpečnostní vložka zámku, oplocení | W166: ano | X166: skleněná s dřevěným rámem / dřevěné s prosklením | Y166: vzrostlé stromy | Z166: 12328960
D167: Předměstí 428 | E167: Králíky | F167: 56169 | G167: 582 | H167: 4300 | I167: 254 | J167: 2340 | K167: Pardubický kraj | L167: 2 | M167: budova | N167: zděná | O167: valbová | P167: eternit | Q167: ubytovna | R167: ne | S167: 3 | T167: ne | U167: RHP, hydrant | V167: kamerový systém, bezpečnostní vložka zámku, oplocení | W167: ano | X167: skleněná s dřevěným rámem / dřevěné s prosklením | Y167: vzrostlé stromy | Z167: 11269440
D168: Předměstí 205 | E168: Králíky | F168: 56169 | G168: 1 | H168: 4300 | I168: 482 | J168: 3750 | K168: Pardubický kraj | L168: 1 | M168: budova | N168: zděná | O168: sedlová | P168: eternit | Q168: tělocvična | R168: ne | S168: 3 | T168: ne | U168: RHP, hydrant | V168: kamerový systém, bezpečnostní vložka zámku, oplocení | W168: ano | X168: skleněná s dřevěným rámem / dřevěné s prosklením | Y168: vzrostlé stromy | Z168: 18060000
D169: Předměstí 429 | E169: Králíky | F169: 56169 | G169: 4 | H169: 4300 | I169: 749 | J169: 4895 | K169: Pardubický kraj | L169: 3 | M169: budova | N169: zděná | O169: sedlová | P169: eternit | Q169: domov mládeže | R169: ne | S169: 3 | T169: ne | U169: RHP, hydrant | V169: kamerový systém, bezpečnostní vložka zámku, oplocení | W169: ano | X169: skleněná s dřevěným rámem / dřevěné s prosklením | Y169: vandalismus | Z169: 23574320
A170: =+A160+1 -> 44 | B170: Střední odborné učiliště plynárenské Pardubice | C170: 15050670 | D170: Poděbradská 93 | E170: Pardubice | F170: 530 09 | G170: 7030 | H170: 4300 | I170: 989 | J170: 8000 | K170: Pardubický kraj | L170: 7 | M170: budova | N170: zděná, železobetonové panely-domov mládeže | O170: plochá | P170: střešní fólie | Q170: domov mládeže, administrativní budova, učebny a šatny | R170: ne | S170: 2 | T170: ne | U170: RHP, hydranty vnitřní a vnější, protipožární dveře | V170: EZS | W170: ano | X170: skleněná s plastovým rámem | Y170: vandlismus | Z170: 38528000
D171: bez č.p. | E171: Pardubice | F171: 530 09 | G171: 7031 | H171: 4300 | I171: 1061 | J171: 6450 | K171: Pardubický kraj | L171: 1 | M171: budova | N171: zděná | O171: plochá | P171: střešní fólie | Q171: dílny školy | R171: strojírenská | S171: 2 | T171: omezené množství hořlavin, technické plyny | U171: RHP, hydranty vnitřní a vnější | V171: EZS | W171: ano | X171: skleněná s kovovým rámem / kovové se skleněnou výplní | Y171: minimální | Z171: 31063200
D172: bez č.p. | E172: Pardubice | F172: 530 09 | G172: 7032 | H172: 4300 | I172: 171 | J172: 430 | K172: Pardubický kraj | L172: 1 | M172: budova | N172: zděná | O172: plochá | P172: střešní fólie | Q172: kancelár, dílny, sklad, garáže | R172: ne | S172: 2 | T172: ne | U172: RHP, hydranty vnitřní a vnější | V172: EZS | W172: ano | X172: skleněná s dřevěným rámem / plechová vrata | Y172: minimální | Z172: 2070880
D173: bez č.p. | E173: Pardubice | F173: 530 09 | G173: 8111 | H173: 4300 | I173: 376 | J173: 1880 | K173: Pardubický kraj | L173: 1 | M173: budova | N173: zděná | O173: plochá | P173: střešní fólie | Q173: jídelna | R173: gastro-technologie | S173: 2 | T173: ne | U173: RHP, hydranty vnitřní a vnější, protipožární dveře | V173: EZS | W173: ano | X173: skleněná s dřevěným rámem / dřevěné | Y173: vandalismus, vzrostlé stromy | Z173: 9054080
D174: bez č.p. | E174: Pardubice | F174: 530 09 | G174: 8665 | H174: 4300 | I174: 1196 | J174: 8400 | K174: Pardubický kraj | L174: 2 | M174: budova | N174: zděná | O174: plochá | P174: střešní fólie | Q174: dílny a tělocvična školy | R174: vzduchotechnika | S174: 2 | T174: omezené množství hořlavin, technické plyny | U174: RHP, hydranty vnitřní a vnější | V174: EZS | W174: ano | X174: skleněná s dřevěným rámem / kovové se skleněnou výplní | Y174: minimální | Z174: 40454400
D175: bez č.p. | E175: Pardubice | F175: 530 09 | G175: 8666 | H175: 4300 | I175: 91 | J175: 273 | K175: Pardubický kraj | L175: 1 | M175: přístřešek | N175: zděná | O175: částečně pultová | P175: plech | Q175: přístřešek - kolárna | R175: ne | S175: 3 | T175: ne | U175: ne | V175: minimální | W175: ano | X175: ne | Y175: vzrostlé stromy, vandalismus | Z175: 1314768
A176: =+A170+1 -> 45 | B176: Střední odborné učiliště Svitavy | C176: 15034569 | D176: Nádražní 1083/8 | E176: Svitavy | F176: 56802 | G176: 995 | H176: 4300 | I176: 1749 | J176: 2367 | K176: Pardubický kraj | L176: 2.1 | M176: budova | N176: zděná | O176: sedlová, plochá | P176: eternit, střešní fólie | Q176: škola, dílna pro OV, tlaková stanice na svařovací plyny | R176: strojírenská | S176: 1 | T176: svařovací soupravy, technické plyny | U176: RHP, vnitřní hydranty | V176: EZS, pohybová čidla, částečně mříže na oknech, dveřích | W176: ano | X176: skleněná s dřevěným rámem / dřevěné s prosklením | Y176: vandalismus, vzrostlé stromy, vodní toky | Z176: 10125858
D177: bez č.p. | E177: Svitavy | F177: 56802 | G177: 3459 | H177: 1055 | I177: 23 | J177: 105 | K177: Pardubický kraj | L177: 1 | M177: garáž | N177: dřevěná | O177: sedlová | P177: střešní tašky | Q177: garáž | R177: ne | S177: 1 | T177: ne | U177: ne | V177: visasí zámek, oplocení objektu | W177: ano | X177: ne / dřevěná vrata | Y177: vodní toky | Z177: 415161
D178: Alešova 1329, 1330 | E178: Svitavy | F178: 56802 | G178: 1258.1259 | H178: 4300 | I178: 157, 156 | J178: 3130 | K178: Pardubický kraj | L178: 3 | M178: budova | N178: zděná | O178: sedlová | P178: eternit | Q178: škola | R178: ne | S178: 1 | T178: ne | U178: standartní (RHP) | V178: zámek FAB, oplocení areálu | W178: ano | X178: skleněná s plastovým rámem / dřevěné s prosklením | Y178: vzrostlé stromy | Z178: 12375753
D179: Richarda Kloudy 1134 | E179: Svitavy | F179: 56802 | G179: 1028 | H179: 4300 | I179: 306 | J179: 4950 | K179: Pardubický kraj | L179: 2 | M179: budova | N179: zděná | O179: valbová | P179: střešní tašky | Q179: škola | R179: ne | S179: 1 | T179: ne | U179: RHP, vnitřní hydranty | V179: EZS, pohybová čidla | W179: ano | X179: skleněná s dřevěným rámem / dřevěné s prosklením | Y179: vandalismus | Z179: 19571878
D180: Brněnská 307 | E180: Svitavy | F180: 56802 | G180: 215 | H180: 4300 | I180: 813 | J180: 6480 | K180: Pardubický kraj | L180: 2 | M180: budova | N180: zděná | O180: sedlová | P180: střešní tašky | Q180: škola | R180: ne | S180: 2 | T180: ne | U180: RHP, vnitřní hydranty | V180: nepřetržitý provoz, oplocení areálu | W180: ano | X180: skleněná s plastovým rámem / dřevěné s prosklením | Y180: vandalismus | Z180: 25621367
A181: 46 | B181: Střední odborné učiliště zemědělské, Chvaletice, Žižkova 139 | C181: 00087840 | D181: Žižkova 139 | E181: Chvaletice | F181: 533 12 | G181: 371 | H181: 4300 | I181: 1633 | J181: 15558 | K181: Pardubický kraj | L181: 3 | M181: budova | N181: zděná | O181: sedlová | P181: vlnitý plech | Q181: škola | R181: gastro-technologie | S181: 1 | T181: ne | U181: RHP, hydrant | V181: minimální (oplocení areálu) | W181: ano | X181: skleněná s plastovým rámem / plastové s prosklením | Y181: vandalismus | Z181: 74927328
D182: bez č.p. | E182: Chvaletice | F182: 533 12 | G182: 372 | H182: 4300 | I182: 1343 | J182: 9352 | K182: Pardubický kraj | L182: 1 | M182: budova | N182: zděná | O182: sedlová | P182: plech | Q182: učebny pro odborný výcvik | R182: strojírenská, vzduchotechnika | S182: 1 | T182: minimální množství HK | U182: RHP, hydrant | V182: minimální (oplocení areálu) | W182: ano | X182: skleněná s plastovým rámem / plechová vrata, zásuvná vrata s prosklením | Y182: vzrostlé stromy | Z182: 45039232
D183: bez č.p. | E183: Chvaletice | F183: 533 12 | G183: 373 | H183: 4300 | I183: 245 | J183: 756 | K183: Pardubický kraj | L183: 1 | M183: garáže | N183: zděná | O183: sedlová | P183: plech | Q183: garáže | R183: ne | S183: 2 | T183: ne | U183: standartní (RHP) | V183: minimální (oplocení areálu) | W183: ano | X183: prosklení / plechová vrata | Y183: vzrostlé stromy | Z183: 3640896
D184: bez č.p. | E184: Chvaletice | F184: 533 12 | G184: 374, 1237 | H184: 4300 | I184: 280, 185 | J184: 1836 | K184: Pardubický kraj | L184: 1 | M184: hala | N184: zděná | O184: plochá, oblouková | P184: plech | Q184: dílny školy | R184: strojírenská | S184: 1 | T184: minimální množství HK | U184: standartní (RHP) | V184: minimální (oplocení areálu) | W184: ano | X184: skleněná s plastovým rámem / plechová vrata, zásuvná vrata s prosklením | Y184: vzrostlé stromy | Z184: 8842176
D185: bez č.p. | E185: Chvaletice | F185: 533 12 | G185: 1236 | H185: 4300 | I185: 322 | J185: 736 | K185: Pardubický kraj | L185: 1 | M185: hala | N185: kovová | O185: sedlová | P185: plech | Q185: dílny školy | R185: strojírenská | S185: 2 | T185: minimální množství HK | U185: standartní (RHP) | V185: EZS, osvětlení a oplocení areálu | W185: ano | X185: skleněná s kovovým rámem / plechová vrata | Y185: vandalismus, vzrostlé stromy | Z185: 6742400
A186: 47 | B186: Střední průmyslová škola elektrotechnická a Vyšší odborná škola, Pardubice, Karla IV. 13 | C186: 48161217 | D186: Karla IV. 13 | E186: Pardubice | F186: 531 69 | G186: 314/1 | H186: 4300 | I186: 2380 | J186: 40000 | K186: Pardubický kraj | L186: 3 | M186: budova | N186: zděná | O186: pultová | P186: plechová, lepenka | Q186: škola | R186: vzduchotechnika, klimatizace | S186: 2 | T186: ne | U186: RHP, vnitřní hydrant | V186: EZS, oplocení zadní části areálu, kamerový systém, v přízemí okenní mříže | W186: ano | X186: skleněná s plastovým rámem / dřevěné s prosklením | Y186: vandalismus | Z186: 192400000
D187: bez č.p. | E187: Pardubice | F187: 531 69 | G187: 314/2 | H187: 4300 | I187: 290 | J187: 3100 | K187: Pardubický kraj | L187: 1 | M187: budova | N187: zděná | O187: valbová | P187: eternit | Q187: škola | R187: vzduchotechnika, klimatizace | S187: 2 | T187: ne | U187: RHP, vnitřní hydrant | V187: EZS | W187: ano | X187: skleněná s dřevěným rámem / dřevěné s prosklením | Y187: vzrostlé stromy | Z187: 14911000
D188: bez č.p. | E188: Pardubice | F188: 531 69 | G188: 314/3 | H188: 4300 | I188: 122 | J188: 490 | K188: Pardubický kraj | L188: 1 | M188: budova | N188: zděná | O188: plochá | P188: plech | Q188: sklad | R188: ne | S188: 2 | T188: ne | U188: standartní (RHP) | V188: oplocení areálu, kamerový systém | W188: ano | X188: prosklení / plechové | Y188: minimální | Z188: 2356900
D189: bez č.p. | E189: Pardubice | F189: 531 69 | G189: 6803.7311 | H189: 4300 | I189: 499, 77 | J189: 4500 | K189: Pardubický kraj | L189: 3 | M189: budova | N189: zděná | O189: plochá | P189: střešní fólie, plech | Q189: škola, trafostanice | R189: trafo | S189: 1 | T189: olej v transtormátoru | U189: standartní ( RHP ) | V189: EZS, oplocení zadní části objektu a kamerový systém | W189: ano | X189: skleněná s plastovým rámem / plastové s prosklením, plechová vrata | Y189: vandalismus | Z189: 21645000
A190: =+A186+1 -> 48 | B190: Střední průmyslová škola chemická Pardubice | C190: 48161179 | D190: Poděbradská 94 | E190: Pardubice | F190: 530 09 | G190: 7026 | H190: 4300 | I190: 3051 | J190: 16622 | K190: Pardubický kraj | L190: 3 | M190: budova | N190: zděná | O190: pultová | P190: střešní fólie | Q190: škola, kuchyně, jídelna | R190: gastro-technologie | S190: 2 | T190: ne | U190: RHP, hydrant | V190: EZS | W190: ano | X190: skleněná s dřevěným rámem / kovové s prosklením | Y190: vzrostlé stromy | Z190: 80051552
D191: bez č.p. | E191: Pardubice | F191: 530 09 | G191: 7029 | H191: 4300 | I191: 1768 | J191: 11352 | K191: Pardubický kraj | L191: 3 | M191: budova | N191: zděná | O191: plochá | P191: střešní fólie | Q191: škola | R191: vzduchotechnika | S191: 2 | T191: ne | U191: RHP, hydrant | V191: EZS | W191: ano | X191: skleněná s dřevěným rámem / kovové s prosklením | Y191: vandalismus, vzrostlé stromy | Z191: 54671232
D192: bez č.p. | E192: Pardubice | F192: 530 09 | G192: 7027 | H192: 4300 | I192: 667 | J192: 6800 | K192: Pardubický kraj | L192: 3 | M192: budova | N192: zděná | O192: plochá | P192: střešní fólie | Q192: tělocvična, škola | R192: ne | S192: 2 | T192: ne | U192: RHP, hydrant | V192: EZS | W192: ano | X192: skleněná s dřevěným rámem / kovové s prosklením | Y192: vandalismus | Z192: 32748800
D193: bez č.p. | E193: Pardubice | F193: 530 09 | G193: 7028, 9282 | H193: 4300 | I193: 73, 82 | J193: 532 | K193: Pardubický kraj | L193: 1 | M193: sklad, garáž | N193: zděná | O193: pultová | P193: plech | Q193: sklad, garáž | R193: ne | S193: 3 | T193: omezené množství HK | U193: standartní (RHP) | V193: minimální | W193: ano | X193: skleněná s dřevěným rámem / plechová vrata | Y193: vandalismus, vzrostlé stromy | Z193: 2562112
A194: 49 | B194: Střední průmyslová škola Chrudim | C194: 15052591 | D194: Čáslavská 973 | E194: Chrudim | F194: 53701 | G194: 3739 | H194: 4300 | I194: 7011 | J194: 61797 | K194: Pardubický kraj | L194: 5,3,1 | M194: budova | N194: zděná | O194: plochá | P194: střešní fólie | Q194: škola, internát, dílny, kuchyně | R194: gastro-technologie | S194: 3 | T194: ne | U194: standartní (RHP), hydranty | V194: minimální (oplocení objektu) | W194: ano | X194: skleněná s dřevěným rámem / kovové s prosklením | Y194: vzrostlé stromy | Z194: 257003916
D195: Čáslavská | E195: Chrudim | F195: 537 01 | G195: 985/12, 13, 14 | H195: 4300 | I195: 797, 2376, 163 | J195: 22819 | K195: areál Transporty Chrudim | L195: 2 | M195: budova | N195: zděná | O195: sedlová | P195: plech | Q195: dílny školy | R195: strojírenská | S195: 2 | T195: minimální množství HK | U195: standartní (RHP) | V195: EPS | W195: ano | X195: skleněná s plastovým rámem / plastové s prosklením | Y195: minimální | Z195: 103398720
D196: Vršov 24 | E196: Horní Bradlo | F196: 538 25 | G196: 119 | H196: 4300 | I196: 320 | J196: 1880 | K196: Pardubický kraj | L196: 1 | M196: budova | N196: zděná | O196: polovalbová | P196: střešní tašky | Q196: rekreační chata | R196: ne | S196: 2 | T196: ne | U196: standartní (RHP) | V196: okenní mříže, oplocení objektu | W196: ne | X196: skleněná s dřevěným rámem / dřevěné | Y196: vzrostlé stromy, vandalismus | Z196: 8544600
A197: 50 | B197: Střední škola automobilní Holice | C197: 13582909 | D197: Nádražní 301 | E197: Holice | F197: 534 01 | G197: 213/2 | H197: 4300 | I197: 853 | J197: 7200 | K197: Pardubický kraj | L197: 3 | M197: budova | N197: zděná | O197: valbová | P197: střešní tašky | Q197: škola, jídelna, kuchyně | R197: gastro-technologie | S197: 1 | T197: ne | U197: RHP, hydrant | V197: EZS | W197: ano | X197: skleněná s plastovým rámem / plastové s prosklením | Y197: vandalismus | Z197: 39189600
D198: bez č.p. | E198: Holice | F198: 534 01 | G198: 213/1 | H198: 4300 | I198: 1201 | J198: 6000 | K198: Pardubický kraj | L198: 1 | M198: budova | N198: zděná | O198: pultová | P198: plech | Q198: dílna | R198: strojírenská, vzduchotechnika | S198: 1 | T198: omezené množství HK | U198: standartní (RHP) | V198: EZS | W198: ano | X198: skleněná s plastovým rámem / plastové s prosklením a kovová vrata | Y198: minimální | Z198: 32658000
D199: bez č.p. | E199: Holice | F199: 534 01 | G199: 212/2 | H199: 4300 | I199: 343 | J199: 1715 | K199: Pardubický kraj | L199: 1 | M199: budova | N199: zděná | O199: sedlová, pultová | P199: plech | Q199: dílny | R199: solární panely | S199: 2 | T199: oleje a PHM | U199: standartní (RHP) | V199: EZS | W199: ano | X199: skleněná s plastovým rámem / plechová vrata | Y199: minimální | Z199: 9334745
D200: bez č.p. | E200: Holice | F200: 534 01 | G200: 214/1 | H200: 4300 | I200: 972 | J200: 3600 | K200: Pardubický kraj | L200: 1 | M200: budova | N200: zděná | O200: sedlová | P200: plech | Q200: dílny | R200: ne | S200: 2 | T200: ne | U200: standartní (RHP) | V200: EZS | W200: ano | X200: skleněná s plastovým rámem / plastové s prosklením | Y200: minimální | Z200: 19594800
D201: Nádražní 601 | E201: Holice | F201: 534 01 | G201: 215/1 | H201: 4300 | I201: 451 | J201: 2890 | K201: Pardubický kraj | L201: 2 | M201: budova | N201: zděná | O201: sedlová | P201: betonová taška | Q201: administrativní budova školy | R201: klimatizace | S201: 3 | T201: ne | U201: standartní (RHP) | V201: EZS | W201: ano | X201: skleněná s dřevěným rámem / dřevěné s prosklením | Y201: vandalismus | Z201: 15730270
... 177 more rows

Sheet KULTURA
A2: II. KULTURA
A4: č. | B4: Název dle zřizovací listiny | C4: IČ | D4: Adresa místa pojištění | G4: Parc. | I4: Zastavěná plocha (m2) | J4: Obestavěný | K4: Vlastník | L4: Počet | M4: Typ | N4: Nosná | O4: Typ | P4: Krytina | Q4: Provozní | R4: Technologie | S4: Celkový | T4: Nebezpečné | U4: Zabezpečení | V4: Zabezpečení | W4: Trvale | X4: Okna / dveře | Y4: Vnější | Z4: Pojistná částka - nová
D5: Ulice/č.p. | E5: Místo | F5: PSČ | G5: číslo | J5: prostor (m3) | K5: nemovitosti | L5: podlaží | M5: budovy | N5: konstrukce | O5: střechy | P5: střechy | Q5: účel stavby | S5: stav (1-5) | T5: látky | U5: protipožární | V5: proti krádeži | W5: využíváno | Y5: nebezpečí | Z5: hodnota nemovitosti
A6: =+A5+1 -> 1 | B6: Východočeské muzeum v Pardubicích | C6: 14450542 | D6: Zámek 2 | E6: Pardubice | F6: 530 02 | G6: 2/1 | H6: 5900 | I6: 1380 | J6: 8000 | K6: Pardubický kraj | L6: 2 | M6: budova | N6: zděná | O6: sedlová | P6: střešní tašky | Q6: muzeum | R6: ne | S6: 1 | T6: ne | U6: EPS, RHP, vnější a vnitřní hydranty | V6: CCTV, EZS | W6: ano | X6: skleněná s dřevěným rámem / kovová vrata, dřevěné | Y6: vzrostlé stromy, vandalismus, terorismus | Z6: 50760000
D7: Zámek 1 | E7: Pardubice | F7: 530 02 | G7: 1 | H7: 5900 | I7: 4393 | J7: 96000 | K7: Pardubický kraj | L7: 3 | M7: budova | N7: zděná | O7: sedlová, kopule | P7: střešní tašky, měď | Q7: muzeum, kulturní památka | R7: ne | S7: 1 | T7: ne | U7: EPS, RHP, vnější hydranty | V7: CCTV, EZS | W7: ano | X7: skleněná s dřevěným rámem / kovaná vrata | Y7: vzrostlé stromy, vandalismus, terorismus | Z7: 609128313
D8: Zámek 3 | E8: Pardubice | F8: 530 02 | G8: 2/2 | H8: 5900 | I8: 2345 | J8: 11600 | K8: Pardubický kraj | L8: 2 | M8: budova | N8: zděná | O8: sedlová | P8: střešní tašky | Q8: muzeum | R8: ne | S8: 2 | T8: ne | U8: EPS, RHP, vnější hydranty | V8: CCTV, EZS | W8: ano | X8: skleněná s dřevěným rámem / dřevěné | Y8: vzrostlé stromy, vandalismus, terorismus | Z8: 73602000
D9: Zámek 4 | E9: Pardubice | F9: 530 02 | G9: 3 | H9: 5900 | I9: 689 | J9: 5900 | K9: Pardubický kraj | L9: 2 | M9: budova | N9: zděná | O9: sedlová | P9: střešní tašky | Q9: vstupní brána | R9: ne | S9: 2 | T9: ne | U9: EPS, RHP, vnější hydranty | V9: CCTV, EZS | W9: ano | X9: skleněná s dřevěným rámem / dřevěné | Y9: vzrostlé stromy, vandalismus, terorismus | Z9: 37435500
D10: Semtínská 157 | E10: Pardubice | F10: 533 53 | G10: 450 | H10: 4300 | I10: 2918 | J10: 26902 | K10: Pardubický kraj | L10: 1, 2, 3 | M10: budova | N10: zděná | O10: plochá, sedlová | P10: střešní fólie, vlnitý plech | Q10: škola, kuchyně, jídelna | R10: gastro-technologie | S10: 3 | T10: ne | U10: RHP, hydrant | V10: minimální (oplocení areálu) | W10: ano | X10: skleněná s dřevěným rámem / dřevěné s prosklením | Y10: vzrostlé stromy | Z10: 129560032
A11: =+A6+1 -> 2 | B11: Východočeská galerie v Pardubicích | C11: 00085278 | D11: Pernštýnské náměstí 50 | E11: Pardubice | F11: 530 02 | G11: 100 | H11: 5900 | I11: 508 | J11: 6100 | K11: Pardubický kraj | L11: 3 | M11: budova | N11: zděná | O11: sedlová | P11: střešní tašky | Q11: galerie | R11: ne | S11: 1 | T11: ne | U11: EPS, RHP | V11: EZS, FAB | W11: ano | X11: skleněná s dřevěným rámem / dřevěné s prosklením | Y11: vandalismus | Z11: 40308800
D12: Zámek 3 | E12: Pardubice | F12: 530 02 | G12: 2/2 | H12: 5900 | I12: 2345 | J12: 11600 | K12: Pardubický kraj | L12: 2 | M12: budova | N12: zděná | O12: sedlová | P12: střešní tašky | Q12: muzeum ( část Východoč. galerie) | R12: ne | S12: 2 | T12: ne | U12: EPS, RHP, vnější hydranty | V12: CCTV, EZS | W12: ano | X12: skleněná s dřevěným rámem / dřevěné | Y12: vzrostlé stromy, vandalismus, terorismus | Z12: v pojištění Východočeského muzea
D13: Poděbradská 94 | E13: Pardubice | F13: 53002 | G13: 450 | I13: 2918 | J13: 26902 | K13: Pardubický kraj | L13: 3 | M13: budova | N13: zděná | O13: plochá | P13: střešní fólie | Q13: učebny | R13: ne | S13: 2 | T13: ne | U13: standartní (RHP) | V13: minimální (oplocení areálu) | W13: ano | X13: skleněná s dřevěným rámem / dřevěné s prosklením | Y13: vzrostlé stromy | Z13: budova v hospodaření Střední školy potravinářství a služeb,Pardubice,Poděbradská
A14: =+A11+1 -> 3 | B14: Krajská knihovna v Pardubicích | C14: 00085219 | D14: Pernštýnské nám. 77 | E14: Pardubice | F14: 530 02 | G14: 67 | H14: 5900 | I14: 517 | J14: 9300 | K14: Pardubický kraj | L14: 3 | M14: budova | N14: zděná | O14: sedlová | P14: střešní tašky | Q14: knihovna | R14: ne | S14: 1 | T14: ne | U14: EPS, RHP, hydrant vnější | V14: EZS, magnetické brány | W14: ano | X14: skleněná s dřevěným rámem / dřevěné s prosklením | Y14: vandalismus | Z14: 61454400
D15: Pernštýnské nám. 78 | E15: Pardubice | F15: 530 02 | G15: 66 | H15: 5900 | I15: 204 | J15: 3600 | K15: Pardubický kraj | L15: 3 | M15: budova | N15: zděná | O15: sedlová | P15: střešní tašky | Q15: knihovna | R15: ne | S15: 1 | T15: ne | U15: EPS, RHP, hydrant vnější | V15: EZS, magnetické brány | W15: ano | X15: skleněná s dřevěným rámem / kovové s prosklením | Y15: vandalismus | Z15: 23788800
D16: Pernštýnské nám. 79 | E16: Pardubice | F16: 530 02 | G16: 63 | H16: 5900 | I16: 341 | J16: 6700 | K16: Pardubický kraj | L16: 4 | M16: budova | N16: zděná | O16: sedlová | P16: střešní tašky | Q16: knihovna | R16: ne | S16: 1 | T16: ne | U16: EPS, RHP, hydrant vnější | V16: EZS, magnetické brány | W16: ano | X16: skleněná s dřevěným rámem / dřevěné s prosklením | Y16: vandalismus | Z16: 44273600
A17: =+A14+1 -> 4 | B17: Regionální muzeum v Chrudimi | C17: 00370941 | D17: Široká 86 | E17: Chrudim | F17: 537 01 | G17: 235 | H17: 5900 | I17: 571 | K17: v majetku města | L17: 3 | M17: budova | N17: zděná | O17: sedlová | P17: šindel | Q17: muzeum | R17: ne | S17: 2 | T17: ne | U17: EPS, RHP | V17: EZS | W17: ano | X17: skleněná s dřevěným rámem / dřevěné s prosklením | Y17: vodní toky, vandalismus
D18: Široká 85 | E18: Chrudim | F18: 537 01 | G18: 236 | I18: 2173 | K18: v majetku města | L18: 3 | M18: budova | N18: zděná | O18: sedlová | P18: plechová | Q18: muzeum | R18: ne | S18: 2 | T18: ne | U18: EPS, RHP | V18: EZS | W18: ano | X18: skleněná s dřevěným rámem / dřevěné s prosklením | Y18: vodní toky, vandalismus
D19: Rybičkova 10 | E19: Chrudim | F19: 537 01 | G19: 10 | H19: 5900 | I19: 229 | J19: 3600 | K19: Pardubický kraj | L19: 3 | M19: budova | N19: zděná | O19: sedlová | P19: pálená taška | Q19: muzeum | R19: ne | S19: 3 | T19: ne | U19: standartní (RHP) | V19: bezpečnostní vložka zámku | W19: ano | X19: skleněná s plastovým rámem / dřevěné bez prosklení | Y19: vandalismus | Z19: 22122000
D20: K Ploché dráze 688 | E20: Chrudim | F20: 53701 | G20: 2148 | H20: 4300 | I20: 589 | J20: 5870 | K20: Pardubický kraj | L20: 2 | M20: budova | N20: zděná | O20: valbová | P20: betonová taška | Q20: škola | R20: ne | S20: 2 | T20: ne | U20: RHP, hydrant | V20: minimální (oplocení zadní části objektu) | W20: ano | X20: skleněná s dřevěným nebo plastovým rámem / plastové s prosklením | Y20: vandalismus | Z20: 26677506
A21: =+A17+1 -> 5 | B21: Regionální muzeum ve Vysokém Mýtě | C21: 00372331 | D21: Šemberova 125/1, 126, 127 | E21: Vysoké Mýto | F21: 566 01 | G21: 35, 38, 40 | H21: 6600 | I21: 405, 331, 341 | J21: 9710 | K21: Pardubický kraj | L21: 2 | M21: budova | N21: zděná | O21: valbová, sedlová | P21: střešní tašky | Q21: muzeum | R21: ne | S21: 2 | T21: ne | U21: RHP, vnější hydranty | V21: minimální | W21: ano | X21: skleněná s dřevěným rámem / dřevěné s prosklením | Y21: vandalismus | Z21: 71859200
A22: 6 | B22: Regionální muzeum v Litomyšli | C22: 71191283 | D22: Jiráskova 9 | E22: Litomyšl | F22: 570 01 | G22: 246 | H22: 4300 | I22: 880 | J22: 8640 | K22: Pardubický kraj | L22: 2 | M22: budova | N22: zděná | O22: valbová | P22: střešní tašky | Q22: muzeum | R22: ne | S22: 1 | T22: ne | U22: EPS, RHP | V22: EZS | W22: ano | X22: skleněná s dřevěným rámem / dřevěné | Y22: vzrostlé stromy, vandalismus | Z22: 41610240
D23: Jiráskova 133 | E23: Litomyšl | F23: 570 01 | G23: 5/2 | I23: 3684 | K23: v majetku města | L23: 1 | M23: budova | N23: zděná | O23: sedlová | P23: střešní tašky | Q23: muzeum | R23: ne | S23: v rekonstrukci | T23: ne | U23: EPS, RHP | V23: EZS | W23: ano | X23: skleněná s dřevěným rámem / dřevěné | Y23: vandalismus

Sheet ZDRAVOTNICTVÍ
A1: III. ZDRAVOTNICTVÍ
A3: č. | B3: Název dle zřizovací listiny | C3: IČ | D3: Adresa místa pojištění | G3: Parc. | I3: Zastavěná plocha (m2) | J3: Obestavěný | K3: Vlastník | L3: Počet | M3: Typ | N3: Nosná | O3: Typ | P3: Krytina | Q3: Provozní | R3: Technologie | S3: Celkový | T3: Nebezpečné | U3: Zabezpečení | V3: Zabezpečení | W3: Trvale | X3: Okna / dveře | Y3: Vnější | Z3: Pojistná částka - nová
D4: Ulice/č.p. | E4: Místo | F4: PSČ | G4: číslo | J4: prostor (m3) | K4: nemovitosti | L4: podlaží | M4: budovy | N4: konstrukce | O4: střechy | P4: střechy | Q4: účel stavby | S4: stav (1-5) | T4: látky | U4: protipožární | V4: proti krádeži | W4: využíváno | Y4: nebezpečí | Z4: hodnota nemovitosti
A5: 1 | B5: Chrudimská nemocnice, a.s. | C5: 27520561 | D5: Václavská 570 | E5: Chrudim | F5: 537 01 | G5: 2348/1 | H5: 5400 | I5: 5309 | J5: 65000 | K5: Pardubický kraj | L5: 5 | M5: budova | N5: zděná | O5: pultová | P5: plechová | Q5: hlavní budova-křídla A,B,C;gastroprovoz | R5: gastro-technologie, vzduchotechnika, klimatizace | S5: 2 | T5: kapaliny I.-IV. třídy nebezpečnosti a hořlavé plyny v laboratořích | U5: EPS, RHP, síť hydrantů | V5: EZS, oplocení areálu | W5: ano | X5: skleněná s plastovým rámem / kovové s prosklením | Y5: minimální | Z5: 412880000
D6: bez č.p. | E6: Chrudim | F6: 537 01 | G6: 2347 | H6: 5400 | I6: 238 | J6: 1550 | K6: Pardubický kraj | L6: 2 | M6: budova | N6: zděná | O6: plochá | P6: asfaltové pásy | Q6: transfúzní stanice + patologie | R6: ne | S6: 3 | T6: ne | U6: RHP, síť hydrantů | V6: minimální (oplocení areálu) | W6: ano | X6: skleněná s dřevěným rámem / plechové s prosklením | Y6: vandalismus | Z6: 9845600
D7: bez č.p. | E7: Chrudim | F7: 537 01 | G7: 2348/2 | H7: 5400 | I7: 86 | J7: 350 | K7: Pardubický kraj | L7: 1 | M7: přístřešek | N7: ocel | O7: pultová | P7: plechová | Q7: skládka odpadu | R7: ne | S7: 2 | T7: ne | U7: síť hydrantů | V7: oplocení areálu + zamčená pletivová vrata | W7: ano | X7: ne / kovová vrata s pletivem | Y7: vzrostlé stromy | Z7: 2223200
D8: bez č.p. | E8: Chrudim | F8: 537 01 | G8: 2349 | H8: 5400 | I8: 767 | J8: 4500 | K8: Pardubický kraj | L8: 2 | M8: budova | N8: zděná | O8: sedlová | P8: plechová | Q8: kotelna | R8: strojní vybavení kotelny | S8: 3 | T8: zemní plyn | U8: RHP, síť hydrantů | V8: minimální (oplocení areálu) | W8: ano | X8: skleněná s kovovým rámem / plechové bez prosklení | Y8: minimální | Z8: 28584000
D9: bez č.p. | E9: Chrudim | F9: 537 01 | G9: 2351 | H9: 5400 | I9: 15 | J9: 60 | K9: Pardubický kraj | L9: 1 | M9: budova | N9: zděná | O9: pultová | P9: plechová | Q9: sklad plynu | R9: ne | S9: 3 | T9: TL-medicínské plyny,kyslík,svařovací souprava,dusík,korgon,acetylen | U9: RHP, síť hydrantů | V9: minimální (oplocení areálu) | W9: ano | X9: ventilace / plechová vrata | Y9: minimální | Z9: 381120
D10: bez č.p. | E10: Chrudim | F10: 537 01 | G10: 2353 | H10: 5400 | I10: 48 | J10: 270 | K10: Pardubický kraj | L10: 1 | M10: budova | N10: zděná | O10: plochá | P10: střešní fólie | Q10: sklad chlóru | R10: ne | S10: 3 | T10: chlór | U10: standartní (RHP) | V10: minimální (objekt uzamčen a oplocen) | W10: ano | X10: prosklení / plechové | Y10: vzrostlé stromy | Z10: 1715040
D11: bez č.p. | E11: Chrudim | F11: 537 01 | G11: 4315 | H11: 5400 | I11: 237 | J11: 1050 | K11: Pardubický kraj | L11: 2 | M11: budova | N11: zděná | O11: pultová | P11: asfaltové pásy | Q11: trafostanice | R11: 2x vlastní trafo, 1x vlastní distribuční společnost | S11: 2 | T11: olej v transformátorech | U11: RHP, síť hydrantů | V11: minimální (oplocení areálu) | W11: ano | X11: skleněná výplň / plechové bez skleněné výplně | Y11: minimální | Z11: 6669600
D12: bez č.p. | E12: Chrudim | F12: 537 01 | G12: 4316 | H12: 5400 | I12: 71 | J12: 210 | K12: Pardubický kraj | L12: 1 | M12: budova | N12: zděná | O12: pultová | P12: plechová | Q12: vodárna | R12: strojní vybavení vodárny | S12: 2 | T12: ne | U12: RHP, síť hydrantů | V12: minimální (oplocení areálu) | W12: ano | X12: skleněná s kovovým rámem / plechové bez skleněné výplně | Y12: minimální | Z12: 1333920
D13: bez č.p. | E13: Chrudim | F13: 537 01 | G13: 4317 | H13: 5400 | I13: 814 | J13: 5650 | K13: Pardubický kraj | L13: 2 | M13: budova | N13: zděná | O13: pultová | P13: asfaltové pásy | Q13: dialýza, kardiologie | R13: vzduchotechnika | S13: 3 | T13: ne | U13: RHP, síť hydrantů | V13: minimální (oplocení areálu) | W13: ano | X13: skleněná s dřevěným rámem / dřevěné se skleněnou výplní | Y13: minimální | Z13: 35888800
D14: bez č.p. | E14: Chrudim | F14: 537 01 | G14: 4318 | H14: 5400 | I14: 600 | J14: 2100 | K14: Pardubický kraj | L14: 1 | M14: budova | N14: zděná | O14: plochá | P14: plechová | Q14: garáže | R14: ne | S14: 3 | T14: ne | U14: RHP, síť hydrantů | V14: minimální (oplocení areálu) | W14: ano | X14: prosklení / plechová vrata | Y14: minimální | Z14: 13339200
D15: bez č.p. | E15: Chrudim | F15: 537 01 | G15: 4319 | H15: 5400 | I15: 50 | J15: 200 | K15: Pardubický kraj | L15: 1 | M15: budova | N15: zděná | O15: pultová | P15: plechová | Q15: sklad kyslíku | R15: ne | S15: 3 | T15: kyslík (TL s obsahem 10 a 50 l) | U15: RHP, síť hydrantů | V15: minimální (oplocení areálu) | W15: ano | X15: skleněná výplň / plechové bez prosklení | Y15: minimální | Z15: 1270400
D16: bez č.p. | E16: Chrudim | F16: 537 01 | G16: 5219 | H16: 5400 | I16: 842 | J16: 3050 | K16: Pardubický kraj | L16: 1 | M16: budova | N16: dřevěná | O16: pultová | P16: plechová | Q16: dílny | R16: ne | S16: 3 | T16: oleje a PHM | U16: RHP, síť hydrantů | V16: minimální (oplocení areálu) | W16: ano | X16: skleněná s dřevěným rámem / plechová vrata | Y16: minimální | Z16: 19373600
D17: bez č.p. | E17: Chrudim | F17: 537 01 | G17: 5321 | H17: 5400 | I17: 282 | J17: 820 | K17: Pardubický kraj | L17: 1 | M17: budova | N17: dřevěná | O17: sedlová | P17: plechová | Q17: šatny | R17: ne | S17: 3 | T17: ne | U17: RHP, síť hydrantů | V17: minimální (oplocení areálu) | W17: ano | X17: skleněná s dřevěným rámem / dřevěné s prosklením | Y17: vzrostlé stromy | Z17: 5208640
D18: bez č.p. | E18: Chrudim | F18: 537 01 | G18: 5943 | H18: 5400 | I18: 11 | J18: 24 | K18: Pardubický kraj | L18: 1 | M18: přístavek | N18: železobetonová | O18: plochá | P18: betonová | Q18: vzduchotechnika | R18: strojní vybavení vzduchotechniky | S18: 2 | T18: ne | U18: RHP, síť hydrantů | V18: minimální (oplocení areálu) | W18: ano | X18: ventilace / plechové bez prosklení | Y18: minimální | Z18: 152448
D19: bez č.p. | E19: Chrudim | F19: 537 01 | G19: 5944 | H19: 5400 | I19: 2089 | J19: 21600 | K19: Pardubický kraj | L19: 6 | M19: budova | N19: zděná | O19: pultová | P19: asfaltové pásy | Q19: operační sály | R19: klimatizace, vzduchotechnika | S19: 2 | T19: medicínské plyny,TL s kyslíkem,hořlaviny I. třídy nebezp. (max.5 l na oddělení) | U19: EPS, RHP, síť hydrantů | V19: EZS, oplocení areálu | W19: ano | X19: skleněná s plastovým rámem / plastové s prosklením | Y19: minimální | Z19: 137203200
D20: bez č.p. | E20: Chrudim | F20: 53701 | G20: 5946/1 | H20: 5400 | I20: 115 | J20: 460 | K20: Pardubický kraj | L20: 1 | M20: budova | N20: zděná | O20: pultová | P20: asfaltové pásy | Q20: vrátnice | R20: ne | S20: 2 | T20: ne | U20: RHP, síť hydrantů | V20: trvalá obsluha zaměstnanci | W20: ano | X20: skleněná s kovovým rámem / plechové s prosklením | Y20: vandalismus | Z20: 2921920
D21: bez č.p. | E21: Chrudim | F21: 537 01 | G21: 6473 | H21: 5400 | I21: 235 | J21: 2350 | K21: Pardubický kraj | L21: 3 | M21: budova | N21: zděná | O21: pultová | P21: asfaltové pásy | Q21: sklady materiálně-technického zázemí | R21: klimatizace | S21: 2 | T21: ne | U21: EPS, RHP, síť hydrantů | V21: EZS | W21: ano | X21: skleněná s plastovým rámem / dřevěné | Y21: minimální | Z21: 14927200
D22: bez č.p. | E22: Chrudim | F22: 537 01 | G22: 6474 | H22: 5400 | I22: 580 | J22: 5240 | K22: Pardubický kraj | L22: 3 | M22: budova | N22: zděná | O22: pultová | P22: asfaltové pásy | Q22: ředitelství | R22: ne | S22: 2 | T22: ne | U22: RHP, síť hydrantů | V22: EZS, oplocení areálu | W22: ano | X22: skleněná s dřevěným rámem / kovové s prosklením | Y22: minimální | Z22: 33284480
D23: bez č.p. | E23: Chrudim | F23: 537 01 | G23: 6483 | H23: 5400 | I23: 24 | J23: 48 | K23: Pardubický kraj | L23: 1 | M23: budova | N23: zděná | O23: pultová | P23: asfaltové pásy | Q23: provozní vrátnice | R23: ne | S23: 2 | T23: ne | U23: standartní (RHP) | V23: minimální | W23: ano | X23: skleněná s dřevěným rámem / dřevěné s prosklením | Y23: vandalismus | Z23: 304896
D24: bez č.p. | E24: Chrudim | F24: 537 01 | G24: 6620 | H24: 5400 | I24: 466 | J24: 1780 | K24: Pardubický kraj | L24: 1 | M24: budova | N24: dřevěná | O24: pultová | P24: plechová | Q24: archiv | R24: ne | S24: 3 | T24: ne | U24: EPS, RHP, síť hydrantů | V24: EZS, mříže-okna,dveře; oplocení areálu | W24: ano | X24: sklěněná s dřevěným rámem / dřevěné s prosklením | Y24: vzrostlé stromy | Z24: 11306560
D25: bez č.p. | E25: Chrudim | F25: 537 01 | G25: 5950 | H25: 5400 | I25: 64 | J25: 110 | K25: Pardubický kraj | L25: 1 | M25: budova | N25: zděná | O25: plochá | P25: střešní fólie | Q25: trafostanice | R25: trafo | S25: 2 | T25: olej v transtormátoru | U25: standartní (RHP) | V25: minimální (oplocení areálu) | W25: ano | X25: ventilace / plechové | Y25: vzrostlé stromy | Z25: 698720
D26: bez č.p. | E26: Chrudim | F26: 53701 | G26: 6949 | H26: 5400 | I26: 261 | J26: 2316 | K26: Pardubický kraj | L26: 2 | M26: budova | N26: zděná | O26: sedlová | P26: plechová | Q26: lékárna | R26: klimatizace | S26: 1 | T26: minimální množství hořlavin - léky | U26: EPS, RHP, síť hydrantů | V26: EZS, oplocení zadní části objektu | W26: ano | X26: skleněná s plastovým rámem / plechové s prosklením | Y26: vandalismus | Z26: 14711232
D27: Václavská 567 | E27: Chrudim | F27: 537 01 | G27: 2344 | H27: 5400 | I27: 315 | J27: 3200 | K27: majetek a. s. | L27: 3 | M27: budova | N27: zděná | O27: sedlová | P27: plechová | Q27: ubytovna | R27: ne | S27: 3 | T27: ne | U27: standartní (RHP) | V27: minimální | W27: ano | X27: sklěněná s dřevěným rámem / dřevěné | Y27: vandalismus | Z27: 20326400
D28: Václavská 567, 568 | E28: Chrudim | F28: 537 01 | G28: 2345 | H28: 5400 | I28: 91 | J28: 273 | K28: majetek a. s. | L28: 1 | M28: budova | N28: zděná | O28: pultová | P28: asfaltové pásy | Q28: spojovací úsek ubytovny | R28: ne | S28: 3 | T28: ne | U28: standartní (RHP) | V28: minimální | W28: ano | X28: skleněná s dřevěným rámem / kovové s prosklením | Y28: vandalismus | Z28: 1734096
D29: Václavská 568 | E29: Chrudim | F29: 537 01 | G29: 2346 | H29: 5400 | I29: 318 | J29: 3200 | K29: majetek a. s. | L29: 3 | M29: budova | N29: zděná | O29: sedlová | P29: plechová | Q29: ubytovna | R29: ne | S29: 3 | T29: ne | U29: standartní (RHP) | V29: minimální | W29: ano | X29: skleněná s dřevěným rámem / dřevěné | Y29: vandalismus | Z29: 20326400
D30: č.p. 12 | E30: Seč | F30: 53807 | G30: 977 | H30: 5400 | I30: 128 | J30: 1020 | K30: Pardubický kraj | L30: 2 | M30: budova | N30: zděná | O30: sedlová | P30: střešní tašky | Q30: rekreační chatka, majetek a. s. | R30: ne | S30: 1 | T30: ne | U30: standartní (RHP) | V30: kamerový systém, oplocení objektu | W30: ano | X30: dřevěné s prosklením / skleněná s dřevěným rámem | Y30: vodní nádrž, vzrostlé stromy, vandalismus | Z30: 6479040
A31: 2 | B31: Pardubice krajská nemocnice, a.s. | C31: 27520536 | D31: Kyjevská 44 | E31: Pardubice | F31: 530 03 | G31: 416 | H31: 5400 | I31: 195 | J31: 3800 | K31: Pardubický kraj | L31: 2 | M31: budova | N31: zděná | O31: plochá | P31: živičná | Q31: ambulance onkologie | R31: vzduchotechnika | S31: 1 | T31: ne | U31: RHP, hydranty | V31: osvětlení a oplocení celého areálu, v suterénu okenní mříže | W31: ano | X31: skleněná s dřevěným rámem / dřevěbí | Y31: minimální | Z31: 23085000
D32: bez č.p. | E32: Pardubice | F32: 530 03 | G32: 404 | H32: 5400 | I32: 600 | J32: 4800 | K32: Pardubický kraj | L32: 3 | M32: budova | N32: zděná | O32: plochá | P32: živičná/plechová | Q32: patologie | R32: vzduchotechnika | S32: 2 | T32: ne | U32: RHP, hydranty | V32: osvětlení a oplocení celého areálu | W32: ano | X32: skleněná s dřevěným rámem / dřevěné s prosklením | Y32: minimální | Z32: 29160000
D33: bez č.p. | E33: Pardubice | F33: 530 03 | G33: 405 | H33: 5400 | I33: 807 | J33: 11700 | K33: Pardubický kraj | L33: 3 | M33: budova | N33: zděná | O33: plochá | P33: živičná | Q33: TRN, psychiatrie | R33: vzduchotechnika | S33: 2 | T33: ne | U33: RHP, hydranty | V33: osvětlení a oplocení celého areálu | W33: ano | X33: skleněná s dřevěným rámem / dřevěné s prosklením | Y33: minimální | Z33: 71077500
D34: bez č.p. | E34: Pardubice | F34: 530 03 | G34: 406 | H34: 5400 | I34: 1904 | J34: 27500 | K34: Pardubický kraj | L34: 3 | M34: budova | N34: zděná | O34: plochá | P34: živičná | Q34: trojpavilon (oční,ORL,dětské odd.,hematologie,psychiatrie) | R34: vzduchotechnika | S34: 1 | T34: tlakové láhve ve skladu pavilonu (kapacita max. 14 TL, tj. 700 l) | U34: RHP, hydranty | V34: osvětlení a oplocení celého areálu | W34: ano | X34: skleněná s dřevěným, plastovým rámem / dřevěné | Y34: minimální | Z34: 167062500
D35: bez č.p. | E35: Pardubice | F35: 530 03 | G35: 407, 1301 | H35: 5400 | I35: 1141, 244 | J35: 17500 | K35: Pardubický kraj | L35: 3 | M35: budova | N35: zděná | O35: plochá | P35: živičná | Q35: kardiologie | R35: vzduchotechnika | S35: 1 | T35: tlakové láhve (kapacita max. 14 TL - 700 l) | U35: RHP, hydranty | V35: osvětlení a oplocení celého areálu | W35: ano | X35: skleněná s plastovým rámem / plastové s prosklením | Y35: minimální | Z35: 106312500
D36: bez č.p. | E36: Pardubice | F36: 530 03 | G36: 408 | H36: 5400 | I36: 1900 | J36: 54630 | K36: Pardubický kraj | L36: 4 | M36: budova | N36: zděná | O36: plochá | P36: střešní fólie | Q36: porodnicko-gynekologický pavilon, urologie | R36: vzduchotechnika | S36: 1 | T36: ne | U36: EPS, hydranty | V36: osvětlení a oplocení celého areálu | W36: ano | X36: skleněná s plastovým rámem / plastové s prosklením | Y36: minimální | Z36: 331877250
D37: bez č.p. | E37: Pardubice | F37: 530 03 | G37: 409 | H37: 5400 | I37: 1727 | J37: 24500 | K37: Pardubický kraj | L37: 5 | M37: budova | N37: zděná, železobeton | O37: plochá | P37: živičná | Q37: chirurgie | R37: vzduchotechnika | S37: 1 | T37: ne | U37: RHP, hydranty | V37: osvětlení a oplocení celého areálu | W37: ano | X37: skleněná s dřevěným rámem / dřevěné s prosklením | Y37: minimální | Z37: 148837500
D38: bez č.p. | E38: Pardubice | F38: 530 03 | G38: 410 | H38: 5400 | I38: 1218 | J38: 18300 | K38: Pardubický kraj | L38: 3 | M38: budova | N38: žděná/železobeton | O38: plochá | P38: živičná | Q38: neurologie | R38: vzduchotechnika | S38: 2 | T38: tlakové láhve (max. kapacita 14 TL - 700 l) | U38: RHP, hydranty | V38: osvětlení a oplocení celého areálu | W38: ano | X38: skleněná s dřevěným rámem / dřevěné s prosklením | Y38: minimální | Z38: 111172500
D39: bez č.p. | E39: Pardubice | F39: 530 03 | G39: 411 | H39: 5400 | I39: 445 | J39: 4500 | K39: Pardubický kraj | L39: 3 | M39: budova | N39: zděná | O39: plochá | P39: živičná | Q39: krajská hygienická stanice, lékarna | R39: ne | S39: 3 | T39: kapaliny I. - IV. třídy nebezpečnosti, léky | U39: RHP, hydranty | V39: osvětlení a oplocení celého areálu | W39: ano | X39: skleněná s dřevěným rámem / dřevěné s prosklením | Y39: minimální | Z39: 27337500
D40: bez č.p. | E40: Pardubice | F40: 530 03 | G40: 412 | H40: 5400 | I40: 735 | J40: 9050 | K40: Pardubický kraj | L40: 3 | M40: budova | N40: zděná | O40: plochá | P40: živičná | Q40: onkologie, dětská chirurgie, stomatologie | R40: vzduchotechnika, klimatizace | S40: 3 | T40: ne | U40: EPS, hydranty | V40: osvětlení a oplocení celého areálu | W40: ano | X40: skleněná s dřevěným rámem / dřevěné s prosklením | Y40: minimální | Z40: 54978750
D41: bez č.p. | E41: Pardubice | F41: 530 03 | G41: 414 | H41: 5400 | I41: 902 | J41: 14900 | K41: Pardubický kraj | L41: 3 | M41: budova | N41: zděná | O41: plochá | P41: živičná | Q41: ředitelství, ústavní lékárna | R41: vzduchotechnika, klimatizace | S41: 1 | T41: léky | U41: kouřová čidla, RHP, hydranty | V41: EZS, oplocení areálu | W41: ano | X41: skleněná s plastovým rámem / plastové s prosklením | Y41: minimální | Z41: 90517500
D42: bez č.p. | E42: Pardubice | F42: 530 03 | G42: 415 | H42: 5400 | I42: 993 | J42: 16100 | K42: Pardubický kraj | L42: 3 | M42: budova | N42: zděná | O42: plochá | P42: živičná | Q42: vstupní budova, lékárna, budova hlavní vrátnice | R42: klimatizace | S42: 1 | T42: minimální množství hořlavin, léky | U42: RHP, hydranty | V42: EZS | W42: ano | X42: sklěněná s dřevěným rámem / dřevěné s prosklením | Y42: vzrostlé stromy, vandalismus | Z42: 97807500
D43: bez č.p. | E43: Pardubice | F43: 530 03 | G43: 417 | H43: 5400 | I43: 42 | J43: 130 | K43: Pardubický kraj | L43: 1 | M43: budova | N43: kovová | O43: pultová | P43: vlnitý plech | Q43: garáž | R43: ne | S43: 2 | T43: ne | U43: standartní, RHP, hydranty | V43: osvětlení a oplocení celého areálu | W43: ano | X43: ne / plechová vrata | Y43: vzrostlé stromy | Z43: 789750
D44: bez č.p. | E44: Pardubice | F44: 530 03 | G44: 418 | H44: 5400 | I44: 860 | J44: 5400 | K44: Pardubický kraj | L44: 2 | M44: budova | N44: zděná | O44: plochá | P44: živičná | Q44: infekční oddělení | R44: vzduchotechnika | S44: 2 | T44: výskyt hořlavých látek v omezeném množství | U44: RHP, hydranty | V44: osvětlení a oplocení celého areálu | W44: ano | X44: skleněná s dřevěným rámem / dřevěné s prosklením | Y44: minimální | Z44: 32805000
D45: bez č.p. | E45: Pardubice | F45: 530 03 | G45: 426 | H45: 5400 | I45: 794 | J45: 7200 | K45: Pardubický kraj | L45: 2 | M45: budova | N45: zděná, železobeton | O45: plochá,valbová | P45: živičná, plech | Q45: pavilon RDG + budova č. 45-CT | R45: vzduchotechnika | S45: 1 | T45: sklad chemikálií, snímků RTG | U45: RHP, hydranty | V45: osvětlení a oplocení celého areálu | W45: ano | X45: skleněná s plastovým rámem / plastové s prosklením | Y45: vzrostlé stromy | Z45: 43740000
D46: bez č.p. | E46: Pardubice | F46: 530 03 | G46: 427, 1003 | H46: 5400 | I46: 225, 200 | J46: 3100 | K46: Pardubický kraj | L46: 2 | M46: budova | N46: zděná | O46: plochá | P46: živičná | Q46: dílny, náhradní zdroj elektrické energie | R46: vzduchotechnika | S46: 2 | T46: oleje, PHM | U46: RHP, hydranty | V46: osvětlení a oplocení celého areálu | W46: ano | X46: sklěněná s dřevěným rámem / dřevěné s prosklením | Y46: minimální | Z46: 18832500
D47: bez č.p. | E47: Pardubice | F47: 530 03 | G47: 976 | H47: 5400 | I47: 255 | J47: 960 | K47: Pardubický kraj | L47: 1 | M47: budova | N47: zděná | O47: plochá | P47: střešní fólie | Q47: trafostanice | R47: trafo | S47: 3 | T47: oleje v transtormátorech (2x 750 kg vstupní trafostanice) | U47: standartní, RHP, hydranty | V47: osvětlení a oplocení celého areálu | W47: ano | X47: ne / plechová vrata | Y47: vzrostlé stromy | Z47: 5832000
D48: bez č.p. | E48: Pardubice | F48: 530 03 | G48: 997, 1320 | H48: 5400 | I48: 347, 521 | J48: 5200 | K48: Pardubický kraj | L48: 1, 2 | M48: budova | N48: zděná | O48: plochá | P48: živičná | Q48: plynová kotelna | R48: strojní vybavení kotelny | S48: 2 | T48: hořlavý plyn, svařovací souprava | U48: RHP, hydranty | V48: osvětlení a oplocení celého areálu | W48: ano | X48: skleněná s kovovým rámem, prosklení / plechové | Y48: minimální | Z48: 31590000
D49: bez č.p. | E49: Pardubice | F49: 530 03 | G49: 998 | H49: 5400 | I49: 23 | J49: 40 | K49: Pardubický kraj | L49: 1 | M49: budova | N49: kovová | O49: pultová | P49: vlnitý plech | Q49: sklad hořlavin | R49: ne | S49: 3 | T49: hořlaviny I. - IV. třídy nebezpečnosti max. do 1.000 l (200 l / sud) | U49: standartní RHP, hydranty | V49: osvětlení a oplocení celého areálu | W49: ano | X49: ne / plechová vrata | Y49: vzrostlé stromy, vandalismus | Z49: 243000
D50: bez č.p. | E50: Pardubice | F50: 530 03 | G50: 999 | H50: 5400 | I50: 50 | J50: 125 | K50: Pardubický kraj | L50: 1 | M50: budova | N50: zděná | O50: pultová | P50: vlnitý plech | Q50: sklad | R50: ne | S50: 3 | T50: hořlavé zkapalněné plyny (TL - kapacita do 2.050 l) | U50: standartní RHP, hydranty | V50: osvětlení a oplocení celého areálu | W50: ano | X50: ne / kovové s prosklením | Y50: vzrostlé stromy, vandalismus | Z50: 759375
D51: bez č.p. | E51: Pardubice | F51: 530 03 | G51: 1000/1 | H51: 5400 | I51: 885 | J51: 5450 | K51: Pardubický kraj | L51: 2 | M51: budova | N51: zděná | O51: plochá | P51: živičná | Q51: mikrologie, laboratoře OKBD | R51: vzduchotechnika | S51: 1 | T51: kapaliny I. - IV. třídy nebezpečnosti, hořlavé plyny | U51: standartní, RHP, hydranty | V51: osvětlení a oplocení celého areálu | W51: ano | X51: skleněná s dřevěným rámem / kovové s prosklením | Y51: vzrostlé stromy | Z51: 33108750
D52: bez č.p. | E52: Pardubice | F52: 530 03 | G52: 1001 | H52: 5400 | I52: 374 | J52: 1500 | K52: Pardubický kraj | L52: 2 | M52: budova | N52: zděná | O52: plochá | P52: střešní fólie | Q52: laboratoře (plánovaný účel) | R52: ne | S52: 2 | T52: hořlavé plyny, kapaliny I. - IV. třídy nebezpečnosti | U52: standartní, RHP, hydranty | V52: osvětlení a oplocení celého areálu | W52: ano | X52: skleněná s plastovým rámem / dřevěné s prosklením | Y52: vzrostlé stromy | Z52: 9112500
D53: bez č.p. | E53: Pardubice | F53: 530 03 | G53: 1002 | H53: 5400 | I53: 298 | J53: 1100 | K53: Pardubický kraj | L53: 1 | M53: budova | N53: zděná | O53: plochá | P53: živičná | Q53: magnetická rezonance | R53: ne | S53: 1 | T53: ne | U53: kouřová čidla, RHP, hydranty | V53: osvětlení a oplocení celého areálu | W53: ano | X53: skleněná s plastovým rámem / plastové s prosklením | Y53: vzrostlé stromy | Z53: 6682500
D54: bez č.p. | E54: Pardubice | F54: 530 03 | G54: 1180/1-3 | H54: 5400 | I54: 1243 | J54: 9400 | K54: Pardubický kraj | L54: 1 | M54: hala | N54: železobeton | O54: sedlová | P54: vlnitý plech | Q54: prádelna, sklad | R54: prádelna | S54: 2 | T54: výskyt hořlavých látek v omezeném množství | U54: standartní RHP, hydranty | V54: osvětlení a oplocení celého areálu, částečně okenní mříže | W54: ano | X54: skleněná s dřevěným rámem, prosklení / plechová vrata | Y54: vandalismus | Z54: 57105000
D55: bez č.p. | E55: Pardubice | F55: 530 03 | G55: 1295 | H55: 5400 | I55: 1144 | J55: 30800 | K55: Pardubický kraj | L55: 8 | M55: budova | N55: železobeton,prefabrikované ze systému T06B | O55: plochá | P55: živičná | Q55: LDN, interna, rehabilitace | R55: vzduchotechnika | S55: 2 | T55: výskyt hořlavých látek v omezeném množství | U55: standartní, RHP, hydranty | V55: osvětlení a oplocení celého areálu | W55: ano | X55: skleněná s dřevěným rámem / dřevěné | Y55: minimální | Z55: 187110000
D56: bez č.p. | E56: Pardubice | F56: 530 03 | G56: 1321 | H56: 5400 | I56: 333 | J56: 1600 | K56: Pardubický kraj | L56: 1 | M56: budova | N56: zděná | O56: pultová | P56: živičná | Q56: čističky odpadních vod | R56: strojní vybavení čističky | S56: 2 | T56: zásobník chlóru | U56: standartní (RHP), hydranty | V56: osvětlení a oplocení celého areálu | W56: ano | X56: skleněná v kovovém rámu / plechová vrata | Y56: minimální | Z56: 9720000
D57: bez č.p. | E57: Pardubice | F57: 530 03 | G57: 1330,1331 | H57: 5400 | I57: 618 | J57: 4400 | K57: Pardubický kraj | L57: 2 | M57: budova | N57: zděná | O57: plochá | P57: střešní fólie | Q57: dialýza | R57: vzduchotechnika | S57: 1 | T57: ne | U57: kouřová čidla, RHP, hydranty | V57: osvětlení a oplocení celého areálu | W57: ano | X57: skleněná s plastovým rámem / plastové s prosklením | Y57: minimální (vzrostlé stromy) | Z57: 26730000
D58: bez č.p. | E58: Pardubice | F58: 530 03 | G58: 1332 | H58: 5400 | I58: 370 | J58: 1800 | K58: Pardubický kraj | L58: 2 | M58: budova | N58: válcované profily | O58: sedlová | P58: plechová | Q58: spalovna nemocničního odpadu | R58: strojní vybavení spalovny | S58: 2 | T58: výskyt hořlavých látek v omezeném množství | U58: RHP, hydranty | V58: osvětlení a oplocení celého areálu | W58: ano | X58: skleněná s kovovým rámem / plechová vrata | Y58: minimální | Z58: 10935000
D59: bez č.p. | E59: Pardubice | F59: 530 03 | G59: 1363 | H59: 5400 | I59: 133 | J59: 340 | K59: Pardubický kraj | L59: 1 | M59: budova | N59: zděná | O59: plochá | P59: šindel | Q59: trafostanice | R59: trafo | S59: 1 | T59: ne | U59: RHP, hydranty | V59: osvětlení a oplocení celého areálu | W59: ano | X59: ventilace / ocelové | Y59: vzrostlé stromy | Z59: 2065500
D60: bez č.p. | E60: Pardubice | F60: 530 03 | G60: 1369, 1370 | H60: 5400 | I60: 1746, 1738 | J60: 50000 | K60: Pardubický kraj | L60: 6 | M60: budova | N60: železobeton | O60: plochá,valbová | P60: střešní fólie | Q60: nová chirurgie, transfúzní stanice | R60: vzduchotechnika | S60: 1 | T60: výskyt hořlavých látek v omezeném množství | U60: kouřová čidla, EPS, hydranty | V60: EZS, oplocení areálu | W60: ano | X60: skleněná s plastovým rámem / plastové s prosklením | Y60: vzrostlé stromy | Z60: 303750000
D61: bez č.p. | E61: Pardubice | F61: 530 03 | G61: 1449 | H61: 5400 | I61: 861 | J61: 8000 | K61: Pardubický kraj | L61: 4 | M61: budova | N61: zděná | O61: plochá | P61: živičná | Q61: multican, onkologie, KHS | R61: ne | S61: 1 | T61: ne | U61: kouřová čidla, EPS, hydranty | V61: ESZ | W61: ano | X61: skleněná s plastovým rámem / plastové s prosklením | Y61: minimální | Z61: 48600000
D62: bez č.p. | E62: Pardubice | F62: 530 03 | G62: 1456 | H62: 5400 | I62: 1726 | J62: 20800 | K62: Pardubický kraj | L62: 6 | M62: budova | N62: železobeton | O62: plochá,valbová | P62: střešní fólie, plech | Q62: kuchyňský blok, ubytování | R62: gastro-technologie, klimatizace | S62: 1 | T62: ne | U62: RHP, hydranty | V62: osvětlení a oplocení celého areálu | W62: ano | X62: skleněná s plastovým rámem / plastové s prosklením | Y62: minimální | Z62: 126360000
D63: bez č.p. | E63: Pardubice | F63: 530 03 | G63: 1519 | H63: 5400 | I63: 280 | J63: 700 | K63: Pardubický kraj | L63: 1 | M63: budova | N63: zděná | O63: plochá | P63: střešní fólie | Q63: trafostanice + náhradní zdroj | R63: trafo | S63: 2 | T63: výskyt hořlavých látek v omezeném množství | U63: standartní (RHP) | V63: osvětlení a oplocení celého areálu | W63: ano | X63: ventilace / plechové | Y63: vzrostlé stromy | Z63: 4252500
D64: bez č.p. | E64: Pardubice | F64: 530 03 | G64: 1520 | H64: 5400 | I64: 820 | J64: 4600 | K64: Pardubický kraj | L64: 3 | M64: budova | N64: zděná | O64: plochá | P64: živičná | Q64: jídelna zaměstnanců | R64: klimatizace | S64: 3 | T64: ne | U64: standartní (RHP), hydranty | V64: osvětlení a oplocení celého areálu | W64: ano | X64: skleněná s plastovým rámem / dřevěné s prosklením | Y64: minimální | Z64: 27945000
D65: bez č.p. | E65: Pardubice | F65: 530 03 | G65: 1691 | I65: 354 | J65: 1856 | K65: Pardubický kraj | L65: 1 | M65: budova | N65: zděná | O65: plochá | P65: střešní fólie | Q65: magnetická rezonance | R65: vzduchotechnika | S65: 1 | T65: ne | U65: hlásiče požáru, RHP, hydrant | V65: osvětlení a oplocení celého areálu | W65: ano | X65: skleněná s plastovým rámem / dřevěné s prosklením | Y65: minimální | Z65: 11275200
D66: U Svaté trojice | E66: Pardubice | F66: 530 03 | G66: 789 | H66: 5400 | I66: 309 | J66: 1852 | K66: Pardubický kraj | L66: 2 | M66: budova | N66: zděná | O66: sedlová | P66: plech | Q66: záchytná stanice | R66: ne | S66: 3 | T66: ne | U66: standartní (RHP) | V66: mříže na oknech a dveřích | W66: ano | X66: skleněná s dřevěným rámem / kovové s prosklením | Y66: vzrostlé stromy, vandalismus | Z66: 11250900
D67: E 250 | E67: Seč -Proseč u Seče | G67: 342 | H67: 5400 | I67: 54 | J67: 160 | K67: majetek a. s. | L67: 1 | M67: budova | N67: zděná | O67: sedlová | P67: plech | Q67: rekreační chata | R67: ne | S67: 3 | T67: ne | U67: standartní (RHP) | V67: částečně okenní mříže | W67: ne | X67: skleněná s dřevěným rámem / dřevěné | Y67: vzrostlé stromy, vandalismus
D68: E 251 | E68: Seč | G68: 347 | H68: 5400 | I68: 56 | J68: 130 | K68: majetek a. s. | L68: 1 | M68: budova | N68: zděná | O68: sedlová | P68: plech | Q68: rekreační chata | R68: ne | S68: 3 | T68: ne | U68: standartní (RHP) | V68: částečně okenní mříže | W68: ne | X68: skleněná s dřevěným rámem / dřevěné | Y68: vzrostlé stromy, vandalismus
D69: E 252 | E69: Seč | G69: 343 | H69: 5400 | I69: 54 | J69: 170 | K69: majetek a. s. | L69: 1 | M69: budova | N69: zděná | O69: sedlová | P69: plech | Q69: rekreační chata | R69: ne | S69: 3 | T69: ne | U69: standartní (RHP) | V69: částečně okenní mříže | W69: ne | X69: skleněná s dřevěným rámem / dřevěné | Y69: vzrostlé stromy, vandalismus
D70: E 253 | E70: Seč | G70: 346, 348, 349, 350, 344 | H70: 5400 | I70: 30, 30, 30, 30, 30 | J70: 70 / chata | K70: majetek a. s. | L70: 1 | M70: budova | N70: zděná | O70: sedlová | P70: plech | Q70: rekreační chata | R70: ne | S70: 3 | T70: ne | U70: standartní (RHP) | V70: minimální | W70: ne | X70: skleněná s dřevěným rámem / dřevěné | Y70: vzrostlé stromy, vandalismus
A71: 3 | B71: Svitavská nemocnice, a.s. | C71: 27520552 | D71: Kollárova 643/7 | E71: Svitavy | F71: 56802 | G71: 548 | H71: 5400 | I71: 3250 | J71: 40200 | K71: Pardubický kraj | L71: 4 | M71: budova | N71: zděná | O71: pultová | P71: střešní fólie | Q71: monoblok | R71: vzduchotechnika | S71: 1 | T71: tlakové láhve (kapacita max. 5 TL, tj. 100 l) | U71: EPS,tlačítkové hlásiče,hydranty | V71: EZS, CCTV | W71: ano | X71: skleněná s plastovým rámem / plechové se skleněnou výplní | Y71: vandalismus | Z71: 243214020
D72: bez č.p. | E72: Svitavy | F72: 56802 | G72: 603 | H72: 5400 | I72: 399 | J72: 4500 | K72: Pardubický kraj | L72: 1 | M72: hala | N72: zděná | O72: sedlová | P72: plech | Q72: údržba | R72: ne | S72: 4 | T72: hořlaviny I. - IV. třídy nebezpečnosti (max. 200 l) | U72: standartní (RHP), hydranty | V72: CCTV, oplocení | W72: ano | X72: skleněná v kovovém rámu / plechové | Y72: vzrostlé stromy | Z72: 27225450
D73: bez č.p. | E73: Svitavy | F73: 56802 | G73: 740 | H73: 5400 | I73: 697 | J73: 6500 | K73: Pardubický kraj | L73: 2 | M73: budova | N73: zděná | O73: sedlová | P73: střešní tašky | Q73: ORL + LDN | R73: vzduchotechnika | S73: 3 | T73: ne | U73: RHP, hydranty | V73: CCTV, oplocení areálu | W73: ano | X73: skleněná s dřevěným rámem / dřevěné s prosklením | Y73: vzrostlé stromy | Z73: 39325650
D74: bez č.p. | E74: Svitavy | F74: 56802 | G74: 1598/1,1598/2 | H74: 5400 | I74: 511 | J74: 1250 | K74: Pardubický kraj | L74: 1 | M74: budova | N74: zděná | O74: plochá | P74: střešní fólie | Q74: HTO | R74: vzduchotechnika | S74: 3 | T74: ne | U74: RHP, hydranty | V74: CCTV, oplocení areálu | W74: ano | X74: skleněná s dřevěným rámem / kovové s prosklením | Y74: vandalismus | Z74: 7562625
D75: bez č.p. | E75: Svitavy | F75: 56802 | G75: 2405 | H75: 5400 | I75: 86 | J75: 140 | K75: Pardubický kraj | L75: 1 | M75: budova | N75: zděná | O75: pultová | P75: plechová | Q75: trafostanice | R75: trafo | S75: 1 | T75: olej v transformátoru | U75: standartní (RHP) | V75: CCTV, oplocení areálu | W75: ano | X75: ventilace / plechová vrata | Y75: vzrostlé stromy | Z75: 847014
D76: bez č.p. | E76: Svitavy | F76: 56802 | G76: 3701 | H76: 5400 | I76: 71 | J76: 120 | K76: Pardubický kraj | L76: 1 | M76: budova | N76: zděná | O76: pultová | P76: plechová | Q76: kyslíkárna | R76: ne | S76: 1 | T76: tlakové láhve (s obsahem 10 a 50 l) | U76: RHP, hydranty | V76: CCTV, oplocení areálu | W76: ano | X76: plechové | Y76: minimální | Z76: 726012
D77: bez č.p. | E77: Svitavy | F77: 56802 | G77: 2950 | H77: 5400 | I77: 985 | J77: 12100 | K77: Pardubický kraj | L77: 1 | M77: budova | N77: zděná | O77: pultová | Q77: poliklinika | S77: 2 | T77: minimální množství hořlavin, léky | U77: RHP, hydranty | V77: CCTV | W77: ano | X77: skleněná s plastovým rámem / kovové s prosklením | Y77: vandalismus | Z77: 73206210
D78: bez č.p. | E78: Svitavy | F78: 56802 | G78: 2977 | H78: 5400 | I78: 238 | J78: 2850 | K78: Pardubický kraj | L78: 3 | M78: budova | N78: zděná | O78: sedlová | P78: střešní fólie | Q78: patologie | R78: vzduchotechnika | S78: 2 | T78: ne | U78: RHP, hydranty | V78: CCTV, oplocení areálu | W78: ano | X78: skleněná s dřevěným rámem / dřevěné | Y78: vzrostlé stromy | Z78: 17242785
D79: bez č.p. | E79: Svitavy | F79: 56802 | G79: 2978 | H79: 5400 | I79: 410 | J79: 1650 | K79: Pardubický kraj | L79: 1 | M79: budova | N79: zděná | O79: pultová | P79: plechová | Q79: RDG | R79: ne | S79: 3 | T79: ne | U79: RHP, hydranty | V79: CCTV, oplocení areálu | W79: ano | X79: skleněná s dřevěným rámem / dřevěné s prosklením | Y79: minimální | Z79: 9982665
D80: bez č.p. | E80: Svitavy | F80: 56802 | G80: 2979 | H80: 5400 | I80: 466 | J80: 2800 | K80: Pardubický kraj | L80: 1 | M80: budova | N80: zděná | O80: plochá | P80: střešní fólie | Q80: přístavba prádelny | R80: prádelna | S80: 2 | T80: ne | U80: RHP, hydranty | V80: CCTV, částečně okenní mříže, oplocení areálu | W80: ano | X80: skleněná s dřevěným rámem / dřevěné | Y80: minimální | Z80: 16940280
D81: Lány 240 | E81: Svitavy | F81: 56802 | G81: 228/2 | H81: 5400 | I81: 205 | J81: 9300 | K81: Pardubický kraj | L81: 3 | M81: budova | N81: zděná | O81: valbová | P81: střešní tašky | Q81: dětská ambulance, psychiatrie - klášter | R81: ne | S81: 3 | T81: ne | U81: RHP, hydranty | V81: CCTV, oplocení areálu | W81: ano | X81: skleněná s dřevěným rámem / dřevěné s prosklením | Y81: minimální | Z81: 56265930
D82: bez č.p. | E82: Svitavy | F82: 56802 | G82: 651 | H82: 5400 | J82: 5100 | K82: Pardubický kraj | L82: 1 | M82: budova | N82: zděná | O82: pultová | P82: plechová | Q82: DZS | R82: ne | S82: 2 | U82: RHP, hydranty | V82: CCTV, oplocení areálu | W82: ano | X82: skleněná s plastovým rámem / plastové se skleněnou výplní | Y82: vandalismus | Z82: 30855510
D83: bez č.p. | E83: Svitavy | F83: 56802 | G83: 676 | H83: 5400 | I83: 124 | J83: 6800 | K83: Pardubický kraj | L83: 4 | M83: budova | N83: zděná | O83: plochá | P83: střešní fólie | Q83: rehabilitace | R83: ne | S83: 2 | T83: ne | U83: RHP, hydranty | V83: CCTV, oplocení areálu | W83: ano | X83: skleněná s kovovým rámem / plastové se skleněnou výplní | Y83: minimální | Z83: 41140680
D84: bez č.p. | E84: Svitavy | F84: 56802 | G84: 1343 | H84: 5400 | I84: 203 | J84: 470 | K84: Pardubický kraj | L84: 1 | M84: budova | N84: zděná | O84: plochá | P84: střešní fólie | Q84: garáže | R84: ne | S84: 3 | T84: PHM, oleje | U84: RHP, hydranty | V84: CCTV, oplocení areálu | W84: ano | X84: prosklení / plechová vrata | Y84: minimální | Z84: 2843547
D85: bez č.p. | E85: Svitavy | F85: 56802 | G85: 1344 | H85: 5400 | I85: 243 | J85: 2540 | K85: Pardubický kraj | L85: 1 | M85: hala | N85: kovová | O85: pultová | P85: vlnitý plech | Q85: hala plynové kotelny | R85: strojní vybavení kotelny | S85: 3 | T85: zemní plyn | U85: RHP, hydranty | V85: CCTV, oplocení areálu | W85: ano | X85: plastové světlíky / plechové | Y85: minimální | Z85: 15367254
D86: bez čp. | E86: Svitavy | F86: 568 02 | G86: 1107 | H86: 5400 | I86: 87 | J86: 487 | K86: Pardubický kraj | L86: 1 | M86: budova | N86: zděná | O86: valbová | P86: eternit | Q86: stará márnice | R86: ne | S86: 4 | T86: ne | U86: standartní (RHP), hydranty | V86: CCTV, oplocení areálu | W86: ne | X86: prosklení / plechové | Y86: vzrostlé stromy, vandalismus | Z86: 2946399
D87: bez čp. | E87: Svitavy | F87: 568 02 | G87: 2980/2 | H87: 5400 | I87: 64 | J87: 300 | K87: Pardubický kraj | L87: 1 | M87: budova vč. plechového přístavku | N87: zděná, kovová | O87: pultová | P87: vlnitý plech | Q87: sklad u ORL | R87: ne | S87: 3 | T87: ne | U87: RHP, hydranty | V87: CCTV, oplocení areálu | W87: ano | X87: skleněná v kovovém rámu / dřevěné | Y87: vzrostlé stromy | Z87: 1815030
D88: byt č. 1780/2 | E88: Svitavy | F88: 568 02 | G88: 2264 - 2466 | H88: 6000 | I88: 217, 191, 221 | J88: 350 | K88: Pardubický kraj | L88: 4 | M88: budova | N88: zděná | O88: plochá | P88: střešní fólie | Q88: byt Svitavy - předměstí č.p. 1780, 1781, 1782 | R88: ne | S88: 1 | T88: ne | U88: standartní (RHP) | V88: minimální | W88: ano | X88: skleněná s plastovým rámem / plastové s prosklením | Y88: vandalismus | Z88: 2117535
A89: 4 | B89: Litomyšlská nemocnice, a.s. | C89: 27520579 | D89: J. E. Purkyně 652 | E89: Litomyšl | F89: 57001 | G89: 926 | H89: 5400 | I89: 345 | J89: 2800 | K89: Pardubický kraj | L89: 2 | M89: budova | N89: zděná | O89: plochá,valbová | P89: střešní fólie, střešní tašky | Q89: ředitelství, vrátnice | R89: ne | S89: 2 | T89: ne | U89: standartní (RHP), hydranty | V89: CCTV, osvětlení a oplocení areálu (EZS-pokladna) | W89: ano | X89: skleněná s dřevěným rámem / dřevěné prosklené | Y89: vandalismus, vodní toky | Z89: 20087200
D90: J. E. Purkyně 497 | E90: Litomyšl | F90: 57001 | G90: 755/1 | H90: 5400 | I90: 1210 | J90: 9900 | K90: Pardubický kraj | L90: 1 | M90: budova | N90: zděná | O90: valbová | P90: střešní tašky | Q90: kožní ambulance | R90: ne | S90: 3 | T90: ne | U90: standartní (RHP), hydranty | V90: CCTV, osvětlení a oplocení areálu | W90: ano | X90: skleněná s dřevěným rámem / dřevěné prosklené | Y90: vodní toky | Z90: 71022600
D91: J. E. Purkyně 510 | E91: Litomyšl | F91: 57001 | G91: 755/2 | H91: 5400 | I91: 380 | J91: 3100 | K91: Pardubický kraj | L91: 2 | M91: budova | N91: zděná | O91: rovná | P91: střešní fólie | Q91: IDG | R91: vzduchotechnika, klimatizace | S91: 2 | T91: záložní zdroj mediplynů a technických plynů (max. kapacita 30 TL),nafta při DA (cca 300 l) | U91: standartní (RHP), hydranty | V91: CCTV, osvětlení a oplocení areálu | W91: ano | X91: skleněná s dřevěným rámem / dřevěné prosklené | Y91: vzrostlé stromy, vodní toky | Z91: 22239400
D92: J. E. Purkyně 768 | E92: Litomyšl | F92: 57001 | G92: 1088 | H92: 5400 | I92: 712 | J92: 8550 | K92: Pardubický kraj | L92: 3 | M92: budova | N92: zděná | O92: sedlová | P92: plech | Q92: interní oddělení, interní JIP a ambulance | R92: klimatizace | S92: 3 | T92: záložní zdroj mediplynů a technických plynů (max. kapacita 30 TL) | U92: standartní (RHP), hydranty | V92: CCTV, osvětlení a oplocení areálu | W92: ano | X92: skleněná s dřevěným rámem / dřevěné prosklené | Y92: vodní toky | Z92: 61337700
D93: J. E. Purkyně 784 | E93: Litomyšl | F93: 57001 | G93: 1089 | H93: 5400 | I93: 1259 | J93: 9300 | K93: Pardubický kraj | L93: 2 | M93: budova | N93: zděná | O93: rovná | P93: střešní fólie | Q93: kuchyně, jídelna, kotelna | R93: gastro-technologie, strojní vybavení kotelny | S93: 3 | T93: zemní plyn | U93: standartní (RHP), hydranty | V93: CCTV, osvětlení a oplocení areálu | W93: ano | X93: skleněná s dřevěným rámem / dřevěné | Y93: vzrostlé stromy, vodní toky | Z93: 66718200
D94: bez č.p. | E94: Litomyšl | F94: 57001 | G94: 1126 | H94: 5400 | I94: 322 | J94: 1280 | K94: Pardubický kraj | L94: 1 | M94: budova | N94: zděná | O94: rovná | P94: střešní fólie | Q94: patologie | R94: ne | S94: 1 | T94: ne | U94: standartní (RHP), hydranty | V94: CCTV, osvětlení a oplocení areálu | W94: ano | X94: skleněná s dřevěným rámem / dřevěné prosklené | Y94: vzrostlý strom, vodní toky | Z94: 9182720
D95: bez č.p. | E95: Litomyšl | F95: 57001 | G95: 1127 | H95: 5400 | I95: 376 | J95: 1170 | K95: Pardubický kraj | L95: 1 | M95: garáž | N95: zděná | O95: plochá, sedlová | P95: střešní fólie, plech | Q95: garáže | R95: ne | S95: 3 | T95: ne | U95: standartní (RHP), hydranty | V95: CCTV, osvětlení a oplocení areálu | W95: ano | X95: prosklení / plechová vrata | Y95: vzrostlé stromy, vodní toky | Z95: 8393580
D96: bez č.p. | E96: Litomyšl | F96: 57001 | G96: 1128 | H96: 5400 | I96: 158 | J96: 450 | K96: Pardubický kraj | L96: 1 | M96: budova | N96: zděná | O96: sedlová | P96: plech | Q96: spisovna | R96: ne | S96: 3 | T96: ne | U96: standartní (RHP), hydranty | V96: CCTV, osvětlení a oplocení areálu, okenní mříže | W96: ano | X96: skleněná s dřevěným rámem / kovové s prosklením a mřížemi | Y96: vzrostlé stromy, vodní toky | Z96: 3228300
D97: bez č.p. | E97: Litomyšl | F97: 57001 | G97: 1130 | H97: 5400 | I97: 74 | J97: 250 | K97: Pardubický kraj | L97: 1 | M97: budova | N97: zděná | O97: rovná | P97: střešní fólie | Q97: trafostanice | R97: trafo | S97: 1 | T97: olej v transformátorech, nafta pro záložní zdroj DA (cca 300 l) | U97: standartní (RHP) | V97: CCTV, osvětlení a oplocení areálu | W97: ano | X97: prosklení / plechové | Y97: vodní toky | Z97: 1793500
D98: bez č.p. | E98: Litomyšl | F98: 57001 | G98: 1131 | H98: 5400 | I98: 66 | J98: 310 | K98: Pardubický kraj | L98: 1 | M98: budova | N98: zděná | O98: sedlová | P98: plech | Q98: sklad - údržba | R98: ne | S98: 2 | T98: oleje a PHM | U98: standartní (RHP), hydranty | V98: CCTV, osvětlení a oplocení areálu | W98: ano | X98: skleněná s dřevěným rámem / plechová vrata | Y98: vodní toky | Z98: 2223940
D99: bez č.p. | E99: Litomyšl | F99: 57001 | G99: 1132 | H99: 5400 | I99: 126 | J99: 580 | K99: Pardubický kraj | L99: 1 | M99: budova | N99: zděná | O99: rovná | P99: střešní fólie, plech | Q99: údržba | R99: ne | S99: 3 | T99: svařovací soupravy | U99: standartní (RHP), hydranty | V99: CCTV, osvětlení a oplocení areálu | W99: ano | X99: skleněná s dřevěným rámem / dřevěné prosklené, plechové | Y99: vodní toky | Z99: 4160920
D100: J. E. Purkyně 308 | E100: Litomyšl | F100: 57001 | G100: 1133/1 | H100: 5400 | I100: 4200 | J100: 55646 | K100: Pardubický kraj | L100: 3 | M100: budova | N100: zděná | O100: sedlová | P100: střešní tašky | Q100: monoblok | R100: ano | S100: 1 | T100: ne | U100: EPS, hydranty, RHP | V100: EZS, CCTV, osvětlení a oplocení areálu | W100: ano | X100: skleněná s dřevěným rámem / dřevěné prosklené | Y100: vodní toky | Z100: 399204404
D101: J. E. Purkyně 919 | E101: Litomyšl | F101: 57001 | G101: 1752/6 | H101: 5400 | I101: 491 | J101: 6020 | K101: majetek a. s. | L101: 3 | M101: budova | N101: zděná | O101: rovná | P101: střešní fólie | Q101: internát | R101: ne | S101: 1 | T101: ne | U101: standartní (RHP) | V101: minimální | W101: ano | X101: skleněná s dřevěným rámem / dřevěné prosklené | Y101: vandalismus
D102: Zámecká 508 | E102: Litomyšl | F102: 57001 | G102: 772 | H102: 5400 | I102: 419 | J102: 7000 | K102: Pardubický kraj | L102: 2 | M102: budova | N102: zděná | O102: valbová | P102: plech | Q102: léčebna dlouhodobě nemocných | R102: ano | S102: 1 | T102: ano | U102: standartní (RHP) | V102: minimální | W102: ano | X102: skleněná s dřevěným rámem / dřevěné prosklené | Y102: vandalismus | Z102: 50218000
D103: J.E. Purkyně 1096 | E103: Litomyšl | F103: 57001 | G103: 3459 | H103: 5400 | I103: 322 | J103: 1509 | K103: majetek a. s. | L103: 1 | M103: budova | N103: zděná | O103: pultová | P103: plech | Q103: lékárna | R103: klimatizace | S103: 1 | T103: minimální množství hořlavin - léky | U103: EPS, hydranty, RHP | V103: EZS, CCTV, osvětlení a oplocení areálu | W103: ano | X103: prosklené výlohy v kovovém rámu / skleněné | Y103: vzrostlé stromy
D104: bez č.p. | E104: Litomyšl | F104: 57001 | G104: 3375 | H104: 5400 | I104: 23 | J104: 70 | K104: Pardubický kraj | L104: 1 | M104: budova | N104: zděná | O104: rovná | P104: střešní fólie | Q104: redukční stanice | R104: ne | S104: 2 | T104: TL (max. do 35 ks) | U104: standartní (RHP), hydranty | V104: CCTV, osvětlení a oplocení areálu | W104: ano | X104: ne / plechové | Y104: vzrostlé stromy, vodní toky | Z104: 502180
D105: bez č.p. | E105: Záhraď-Litomyšl | F105: 57001 | G105: 346 | H105: 5400 | I105: 88 | J105: 170 | K105: Pardubický kraj | L105: 2 | N105: zděná | Q105: LDN sklad (3NP) | R105: ne | S105: 2 | T105: ne | U105: standartní (RHP) | V105: minimální | W105: ano | X105: skleněná s dřevěným rámem / dřevěné prosklené | Y105: vandalismus | Z105: 1219580
A106: 5 | B106: Nemocnice následné péče Moravská Třebová | C106: 00193895 | D106: Svitavská 25 | E106: Moravská Třebová | F106: 57116 | G106: 2821/49, 2821/69 | H106: 5400 | I106: 991, 14 | J106: 6900 | K106: Pardubický kraj | L106: 1 | M106: hala | N106: zděná | O106: plochá | P106: střešní fólie | Q106: kotelna, dílny, sklad | R106: strojní vybavení kotelny | S106: 3 | T106: ne | U106: standartní (RHP) | V106: minimální | W106: ano | X106: skleněná s dřevěným rámem, prosklení / plechová a dřevěná vrata | Y106: vandalismus | Z106: 41731200
D107: bez č.p. | E107: Moravská Třebová | F107: 57101 | G107: 2820/21 | H107: 5400 | I107: 389 | J107: 1350 | K107: Pardubický kraj | L107: 1 | M107: budova | N107: zděná | O107: sedlová | P107: plech | Q107: garáže, sklad, dílny | R107: ne | S107: 2 | T107: ne | U107: standartní (RHP) | V107: minimální (oplocený areál) | W107: ano | X107: skleněná s plastovým rámem / plastové, plechová vrata | Y107: vandalismus | Z107: 8164800
D108: bez č.p. | E108: Moravská Třebová | F108: 57101 | G108: 2811, 2820/22 | H108: 5400 | I108: 625 | J108: 7850 | K108: Pardubický kraj | L108: 2 | M108: budova | N108: zděná | O108: sedlová | P108: plech | Q108: nemocnice následné péče | R108: gastro-technologie | S108: 1 | T108: ne | U108: standartní (RHP) | V108: minimální | W108: ano | X108: skleněná s plastovým rámem / plastové s prosklením | Y108: vandalismus | Z108: 47476800
D109: bez č.p. | E109: Moravská Třebová | F109: 57101 | G109: 2812 | H109: 5400 | I109: 109 | J109: 432 | K109: Pardubický kraj | L109: 1 | M109: budova | N109: zděná | O109: plochá | P109: plech | Q109: trafostanice | R109: trafo | S109: 1 | T109: olej v transformátoru | U109: standartní (RHP) | V109: minimální (oplocený areál) | W109: ano | X109: ne / plechová vrata | Y109: vzrostlé stromy, vandalismus | Z109: 2612736
D110: bez č.p. | E110: Moravská Třebová | F110: 571 01 | G110: 1417/2 | I110: 150 | J110: 380 | K110: Pardubický kraj | L110: 1 | M110: budova | N110: zděná | O110: valbová | P110: střešní tašky | Q110: garáže | R110: ne | S110: 3 | T110: ne | U110: standartní (RHP) | V110: minimální, osvětlení objektu | W110: ano | X110: prosklení / kovová vrata | Y110: vandalismus, vzrostlé stromy | Z110: 2298240
D111: Svitavská 325 | E111: Moravská Třebová | F111: 57101 | G111: 1417/1 | H111: 5400 | I111: 436 | J111: 7920 | K111: Pardubický kraj | L111: 3 | M111: budova | N111: zděná | O111: valbová | P111: eternit | Q111: nemocnice následné péče | R111: ne | S111: 1 | T111: ne | U111: standartní (RHP) | V111: minimální | W111: ano | X111: skleněná s plastovým rámem / plastové s prosklením | Y111: vandalismus | Z111: 47900160
A112: 6 | B112: Orlickoústecká nemocnice, a.s. | C112: 27520528 | D112: Čsl. Armády 1076 | E112: Ústí nad Orlicí | F112: 56218 | G112: 1167 | H112: 5400 | I112: 481 | J112: 4350 | K112: Pardubický kraj | L112: 2 | M112: budova | N112: zděná | O112: plochá | P112: plechová,asfaltové pásy | Q112: ředitelství, vrátnice | R112: ne | S112: 3 | T112: ne | U112: RHP, vnitřní + venkovní hydrant | V112: oplocení areálu, ostraha | W112: ano | X112: skleněná s dřevěným rámem | Y112: vzrostlé stromy | Z112: 32993445
D113: bez č.p. | E113: Ústí nad Orlicí | F113: 56218 | G113: 3040 | H113: 5400 | I113: 54 | J113: 220 | K113: Pardubický kraj | L113: 1 | M113: budova | N113: zděná | O113: plochá | P113: asfaltové pásy | Q113: sklad | R113: ne | S113: 3 | T113: ne | U113: standartní (RHP) | V113: oplocení areálu, ostraha | W113: ne | X113: skleněná s dřevěným rámem / plechová vrata | Y113: minimální | Z113: 1668634
D114: bez č.p. | E114: Ústí nad Orlicí | F114: 56218 | G114: 3231 | H114: 5400 | I114: 658 | J114: 5040 | K114: Pardubický kraj | L114: 4 | M114: budova | N114: zděná | O114: plochá | P114: asfaltová lepenka | Q114: porodnice | R114: klimatizace | S114: 2 | T114: minimální množství | U114: EPS, RHP + venkovní a vnitřní hydranty | V114: oplocení areálu, ostraha | W114: ano | X114: skleněná s dřevěným rámem / kovové s prosklením | Y114: vzrostlé stromy | Z114: 38226888
D115: bez č.p. | E115: Ústí nad Orlicí | F115: 56218 | G115: 3232 | H115: 5400 | I115: 169 | J115: 423 | K115: Pardubický kraj | L115: 1 | M115: budova | N115: dřevěná | O115: plochá | P115: plechová | Q115: šatny střední zdravotnické školy | R115: ne | S115: 3 | T115: ne | U115: RHP, venkovní hydrant | V115: oplocení areálu, ostraha | W115: ano | X115: skleněná s dřevěným rámem / dřevěné | Y115: vzrostlé stromy | Z115: 3208328
D116: bez č.p. | E116: Ústí nad Orlicí | F116: 56218 | G116: 3294 | H116: 5400 | I116: 1543 | J116: 15500 | K116: Pardubický kraj | L116: 3 | M116: budova | N116: zděná | O116: plochá | P116: asfaltová lepenka | Q116: biochemie, dialýza, onkologie | R116: vzduchotechnika | S116: 2 | T116: minimální množství | U116: RHP, vnitřní a venkovní hydranty | V116: oplocení areálu, ostraha | W116: ano | X116: skleněná s plastovým rámem / plastové s prosklením | Y116: minimální | Z116: 117562850
D117: bez č.p. | E117: Ústí nad Orlicí | F117: 56218 | G117: 3461 | H117: 5400 | I117: 605 | J117: 3000 | K117: Pardubický kraj | L117: 1 | M117: budova | N117: zděná | O117: plochá | P117: plechová | Q117: lékárna | R117: ne | S117: 2 | T117: minimální množství - léky | U117: RHP, venkovní a vnitřní hydranty | V117: EZS prostorová + oplocení areálu + ostraha | W117: ano | X117: skleněná s dřevěným rámem / dřevěné s prosklením | Y117: minimální | Z117: 22754100
D118: bez č.p. | E118: Ústí nad Orlicí | F118: 56218 | G118: 3475/1 | H118: 5400 | I118: 27 | J118: 100 | K118: Pardubický kraj | L118: 1 | M118: hala | N118: kovová | O118: sedlová | P118: plechová | Q118: kogenerace, sběrný dvůr | R118: ne | S118: 3 | T118: hořlaviny v omezeném množství | U118: RHP, venkovní hydrant | V118: oplocení areálu, ostraha | W118: ano | X118: plechová vrata | Y118: vzrostlé stromy | Z118: 758470
D119: bez č.p. | E119: Ústí nad Orlicí | F119: 56218 | G119: 3476 | H119: 5400 | I119: 87 | J119: 350 | K119: Pardubický kraj | L119: 1 | M119: sklad | N119: zděná | O119: sedlová | P119: plechová | Q119: sklad údržby | R119: ne | S119: 3 | T119: svařovací souprava, PHM, oleje | U119: RHP, venkovní hydrant | V119: oplocení areálu, ostraha | W119: ano | X119: plechová vrata | Y119: vzrostlé stromy | Z119: 2654645
D120: bez č.p. | E120: Ústí nad Orlicí | F120: 56218 | G120: 3550 | H120: 5400 | I120: 27 | J120: 80 | K120: Pardubický kraj | L120: 1 | M120: garáž | N120: zděná | O120: plochá | P120: střešní fólie | Q120: garáž | R120: ne | S120: 4 | T120: ne | U120: RHP, venkovní hydranty | V120: oplocení areálu, ostraha | W120: ano | X120: prosklení / plechová vrata | Y120: vzrostlé stromy | Z120: 606776
D121: bez č.p. | E121: Ústí nad Orlicí | F121: 56218 | G121: 3571 | H121: 5400 | I121: 1026 | J121: 12300 | K121: Pardubický kraj | L121: 2 | M121: budova | N121: železobetonový skelet, zděná | O121: plochá | P121: asfaltové pásy | Q121: dětské oddělení | R121: plynová kotelna, rozvody kyslíku, vakua, stlačeného vzduchu | S121: 1 | T121: kyslík, plyn | U121: EPS, RHP, venkovní hydrant | V121: oplocení areálu, ostraha | W121: ano | X121: skleněná s plastovým rámem / plastové s prosklením | Y121: minimální | Z121: 93291810
D122: Čsl. Armády 1077 | E122: Ústí nad Orlicí | F122: 56218 | G122: 1168 | H122: 5400 | I122: 878 | J122: 15900 | K122: Pardubický kraj | L122: 2 | M122: budova | N122: zděná | O122: valbová | P122: plechová | Q122: jídelna | R122: gastro-technologie | S122: 2 | T122: ne | U122: RHP, vnitřní + venkovní hydrant | V122: oplocení areálu, ostraha | W122: ano | X122: skleněná s plastovým rámem / plastové s prosklením | Y122: minimální | Z122: 120596730
D123: Čsl. Armády 1078 | E123: Ústí nad Orlicí | F123: 56218 | G123: 1169 | H123: 5400 | I123: 1725 | J123: 16240 | K123: Pardubický kraj | L123: 4 | M123: budova | N123: zděná, stropy železobeton | O123: plochá | P123: asfaltová lepenka | Q123: chirurgie, operační sály | R123: klimatizace | S123: 2 | T123: medicinální plyna (kyslík, oxid dusíku), zemní plyn | U123: EPS + venkovní a vnitřní hydranty | V123: oplocení areálu, ostraha | W123: ano | X123: skleněná s plastovým rámem / kovové s prosklením | Y123: vzrostlé stromy | Z123: 123175528
D124: Čsl. Armády 1079 | E124: Ústí nad Orlicí | F124: 56218 | G124: 1170 | H124: 5400 | I124: 413 | J124: 5800 | K124: Pardubický kraj | L124: 2 | M124: budova | N124: zděná | O124: plochá | P124: plechová, asfaltové pásy | Q124: magnetická rezonance | R124: ano | S124: 3 | T124: ne | U124: RHP, vnitřní + venkovní hydrant | V124: oplocení areálu, ostraha | W124: ano | X124: skleněná s dřevěným rámem / dřevěné s prosklením | Y124: vzrostlé stromy | Z124: 43991260
D125: bez č.p. | E125: Ústí nad Orlicí | F125: 56218 | G125: 1171 | H125: 5400 | I125: 153 | J125: 506 | K125: Pardubický kraj | L125: 2 | M125: budova | N125: zděná | O125: plochá | P125: plechová | Q125: patologie | R125: ne | S125: 3 | T125: ne | U125: RHP, vnitřní + venkovní hydrant | V125: oplocení areálu, ostraha | W125: ano | X125: skleněná s dřevěným rámem / dřevěné s prosklením | Y125: vzrostlé stromy | Z125: 3837858
D126: Čsl. Armády 424 | E126: Ústí nad Orlicí | F126: 56218 | G126: 1324 | H126: 5400 | I126: 858 | J126: 7320 | K126: Pardubický kraj | L126: 4 | M126: budova | N126: zděná | O126: pultová | P126: plechová, asfaltové pásy | Q126: budova D - interna, budova H - severovna | R126: ne | S126: 3 | T126: minimální množství | U126: EPS (budova D pouze JIP) + vnitřní a venkovní hydranty | V126: oplocení areálu, ostraha | W126: ano | X126: skleněná s dřevěným rámem / kovové s prosklením | Y126: minimální | Z126: 55520004
D127: bez č.p. | E127: Ústí nad Orlicí | F127: 56218 | G127: 1562 | H127: 5400 | I127: 244 | J127: 660 | K127: Pardubický kraj | L127: 1 | M127: garáže | N127: zděná | O127: plochá | P127: plechová | Q127: garáže záchranné služby | R127: ne | S127: 2 | T127: PHM, oleje | U127: RHP, vnitřní + venkovní hydrant | V127: oplocení areálu, ostraha | W127: ano | X127: prosklení / plechová vrata | Y127: minimální | Z127: 5005902
D128: bez č.p. | E128: Ústí nad Orlicí | F128: 56218 | G128: 1563 | H128: 5400 | I128: 63 | J128: 180 | K128: Pardubický kraj | L128: 1 | M128: sklad | N128: zděná | O128: plochá | P128: plechová | Q128: sklad plynů | R128: ne | S128: 3 | T128: kyslík(1.230l),acetylen(80l),oxid dusny(600l),oxid uhličitý(20l),corgon technický(18l) | U128: RHP, vnitřní + venkovní hydrant | V128: oplocení areálu, ostraha | W128: ano | X128: skleněná s dřevěným rámem / dřevěné s prosklením | Y128: vzrostlé stromy | Z128: 1365246
D129: bez č.p. | E129: Ústí nad Orlicí | F129: 56218 | G129: 1564 | H129: 5400 | I129: 191 | J129: 580 | K129: Pardubický kraj | L129: 1 | M129: budova | N129: zděná | O129: plochá | P129: plechová | Q129: údržba | R129: ne | S129: 3 | T129: omezené množství | U129: RHP, vnitřní + venkovní hydrant | V129: oplocení areálu, ostraha | W129: ano | X129: skleněná s dřevěným rámem / dřevěné | Y129: minimální | Z129: 4399126
D130: bez č.p. | E130: Ústí nad Orlicí | F130: 56218 | G130: 1565 | H130: 5400 | I130: 429 | J130: 2800 | K130: Pardubický kraj | L130: 2 | M130: budova | N130: zděná | O130: plochá | P130: plechová | Q130: prodejna, občerstvení, zdrav. sklad | R130: ne | S130: 3 | T130: ne | U130: RHP, vnitřní a venkovní hydranty | V130: oplocení areálu, ostraha | W130: ano | X130: skleněná s dřevěným rámem / kovové s prosklením | Y130: minimální | Z130: 21237160
D131: bez č.p. | E131: Ústí nad Orlicí | F131: 56218 | G131: 1657 | H131: 5400 | I131: 8 | J131: 20 | K131: Pardubický kraj | L131: 1 | M131: stanice | N131: zděná | O131: plochá | P131: plechová | Q131: chlorovací stanice | R131: ne | S131: 3 | T131: zásobník chlóru | U131: RHP, vnitřní + venkovní hydrant | V131: oplocení areálu, ostraha | W131: ano | X131: ne / plechové | Y131: vzrostlé stromy | Z131: 151694
D132: bez č.p. | E132: Ústí nad Orlicí | F132: 56218 | G132: 1658 | H132: 5400 | I132: 28 | J132: 75 | K132: Pardubický kraj | L132: 1 | M132: garáž | N132: zděná | O132: pultová | P132: plechová | Q132: garáž | R132: ne | S132: 3 | T132: ne | U132: RHP, venkovní hydranty | V132: oplocení areálu, ostraha | W132: ano | X132: prosklení / plechová vrata | Y132: vzrostlé stromy | Z132: 568853
D133: bez č.p. | E133: Ústí nad Orlicí | F133: 56218 | G133: 1701/2 | H133: 5400 | I133: 1017 | J133: 9500 | K133: Pardubický kraj | L133: 2 | M133: budova | N133: zděná | O133: plochá | P133: asfaltová lepenka | Q133: neurologie | R133: plynová kotelna, strojovna výtahu | S133: 2 | T133: minimální množství | U133: RHP, venkovní hydrant | V133: oplocení areálu, ostraha | W133: ano | X133: skleněná s dřevěným rámem / dřevěné s prosklením | Y133: vzrostlé stromy | Z133: 72054650
D134: bez č.p. | E134: Ústí nad Orlicí | F134: 56218 | G134: 2175 | H134: 5400 | I134: 378 | J134: 1155 | K134: Pardubický kraj | L134: 1 | M134: garáže | N134: zděná | O134: plochá | P134: asfaltová lepenka | Q134: garáže záchranné služby | R134: ne | S134: 2 | T134: PHM, oleje | U134: RHP, venkovní hydrant | V134: oplocení areálu, ostraha | W134: ano | X134: prosklení / plechová vrata | Y134: minimální | Z134: 8760329
D135: bez č.p. | E135: Ústí nad Orlicí | F135: 56218 | G135: 2708 | H135: 5400 | I135: 195 | J135: 580 | K135: Pardubický kraj | L135: 1 | M135: budova | N135: zděná | O135: plochá | P135: asfaltová lepenka | Q135: dopravní záchranná služba | R135: ne | S135: 3 | T135: ne | U135: RHP, venkovní hydrant | V135: oplocení areálu, ostraha | W135: ano | X135: skleněná s dřevěným rámem / dřevěné s prosklením | Y135: vzrostlé stromy | Z135: 4399126
D136: bez č.p. | E136: Ústí nad Orlicí | F136: 56218 | G136: 3035, 3598 | H136: 5400 | I136: 199, 36 | J136: 736 | K136: Pardubický kraj | L136: 1 | M136: trafostanice | N136: zděná | O136: plochá | P136: asfaltová lepenka | Q136: trafostanice | R136: trafostanice | S136: 3 | T136: transformátorový olej ( 1.194 l) | U136: RHP, venkovní hydranty | V136: oplocení areálu, ostraha | W136: ano | X136: plechová vrata | Y136: vzrostlé stromy | Z136: 5582339
D137: bez č.p. | E137: Ústí nad Orlicí | F137: 56218 | G137: 3036 | H137: 5400 | I137: 28 | J137: 80 | K137: Pardubický kraj | M137: nádrž | N137: kovová | Q137: zkapalněný plyn | R137: ne | S137: 1 | T137: plyn | U137: hydranty | V137: oplocení areálu, ostraha | W137: ano | Y137: vzrostlé stromy | Z137: 606776
D138: bez č.p. | E138: Ústí nad Orlicí | F138: 56218 | G138: 3037 | H138: 5400 | I138: 425 | J138: 14050 | K138: Pardubický kraj | L138: 4 | M138: budova | N138: zděná | O138: plochá | P138: asfaltová lepenka | Q138: ORL, hematologie, anesteziologie | R138: klimatizace | S138: 2 | T138: kyslík, zemní plyn | U138: EPS, RHP + venkovní a vnitřní hydranty | V138: oplocení areálu, ostraha | W138: ano | X138: skleněná s dřevěným rámem / kovové s prosklením | Y138: vzrostlé stromy | Z138: 106565035
D139: bez č.p. | E139: Ústí nad Orlicí | F139: 56218 | G139: 3716 | I139: 672 | J139: 5602 | K139: Pardubický kraj | L139: 2, 4 | M139: budova | N139: zděná | O139: plochá, pultová | P139: střešní fólie, plech | Q139: interna | R139: ne | S139: 1 | T139: minimální množství | U139: EPS, RHP, venkovní hydrant | V139: oplocení areálu, ostraha | W139: ano | X139: skleněná s plastovým rámem / kovové s prosklením | Y139: minimální | Z139: 42489489
A140: 7 | B140: Zdravotnická záchranná služba Pardubického kraje | C140: 69172196 | D140: Průmyslová 450 | E140: Pardubice | F140: 532 03 | G140: 1234 | H140: 5400 | I140: 144 | J140: 4950 | K140: Pardubický kraj | L140: 3 | M140: budova | N140: zděná | O140: plochá | P140: střešní fólie | Q140: zdravotnická záchranná služba | R140: ne | S140: 1 | T140: ne | U140: RHP, hydranty | V140: 24hodinová služba zaměstnanců | W140: ano | X140: skleněná s plastovým rámem / plastové s prosklením | Y140: vzrostlý strom, vandalismus | Z140: 34045394
D141: bez č.p. | E141: Pardubice | F141: 530 03 | G141: 1360 | H141: 5400 | I141: 173 | J141: 19000 | K141: Pardubický kraj | L141: 3 | M141: budova | N141: zděná | O141: plochá | P141: střešní fólie | Q141: zdravotnická záchranná služba, garáže | R141: ne | S141: 1 | T141: oleje a PHM | U141: standartní ( RHP ) | V141: 24hodinová služba zaměstnanců | W141: ano | X141: skleněná s plastovým rámem / plechová vrata s prosklením | Y141: vandalismus, vzrostlý strom | Z141: 130679291
D142: Palackého 1173 | E142: Holice | F142: 534 01 | G142: 136/4 | I142: 277 | K142: v majetku města | L142: 1 | M142: budova | N142: zděná | O142: sedlová | P142: plechová | Q142: zdravotnická záchranná služba | R142: ne | S142: 3 | T142: ne | U142: standartní ( RHP ) | V142: 24hodinová služba zaměstnanců | W142: ano | X142: skleněná s dřevěným rámem / dřevěné s prosklením | Y142: vandalismus
D143: Studentská 1591 | E143: Přelouč | F143: 535 01 | G143: 2751 | I143: 200 | J143: 1542 | K143: Pardubický kraj | L143: 2 | M143: budova | N143: zděná | O143: pultová | P143: plechová | Q143: zdravotnická záchranná služba | R143: ne | S143: 1 | T143: ne | U143: standartní ( RHP ) | V143: 24hodinová služba zaměstnanců | W143: ano | X143: skleněná s plastovým rámem / plastové s prosklením | Y143: vandalismus | Z143: 10605656
D144: Václavská 1080 | E144: Chrudim | F144: 537 27 | G144: 5945 | H144: 5400 | I144: 372 | J144: 1480 | K144: Pardubický kraj | L144: 1 | M144: budova | N144: zděná | O144: pultová | P144: střešní fólie | Q144: zdravotnická záchranná služba | R144: ne | S144: 2 | T144: ne | U144: standartní ( RHP ) | V144: 24hodinová služba zaměstnanců | W144: ano | X144: skleněná s plastovým rámem / plastové s prosklením | Y144: vandalismus | Z144: 10179229
D145: bez č.p. | E145: Chrudim | F145: 537 27 | G145: 5946/2 | H145: 5400 | I145: 70 | J145: 280 | K145: Pardubický kraj | L145: 1 | M145: budova | N145: zděná | O145: pultová | P145: střešní fólie | Q145: ZZS, lékárna | R145: ne | S145: 2 | T145: minimální množství hořlavin, léky | U145: standartní ( RHP ) | V145: 24hodinová služba zaměstnanců | W145: ano | X145: skleněná s plastovým rámem / plastové s prosklením | Y145: minimální | Z145: 1925800
D146: bez čp. | E146: Chrudim | F146: 537 27 | G146: 7104 | H146: 5400 | I146: 138 | J146: 710 | K146: Pardubický kraj | L146: 2 | M146: budova | N146: zděná | O146: pultová | P146: střešní fólie | Q146: zdravotnická záchranná služba | R146: ne | S146: 1 | T146: ne | U146: standartní ( RHP ) | V146: 24hodinová služba zaměstnanců | W146: ano | X146: skleněná s plastovým rámem / kovové s prosklením | Y146: vandalismus, vzrostlé stromy | Z146: 4883279
D147: Hylváty 474 | E147: Ústí nad Orlicí | F147: 562 03 | G147: 949 | H147: 5400 | I147: 230 | J147: 1800 | K147: Pardubický kraj | L147: 3 | M147: budova | N147: zděná | O147: valbová | P147: šindel | Q147: zdravotnická záchranná služba | R147: ne | S147: 1 | T147: ne | U147: standartní ( RHP ) | V147: 24hodinová služba zaměstnanců | W147: ano | X147: skleněná s plastovým rámem / kovová vrata | Y147: vandalismus | Z147: 12380143
D148: Vraclavská 120 | E148: Vysoké Mýto | F148: 56601 | G148: 1981/1 | H148: 5400 | I148: 211 | J148: 840 | K148: Pardubický kraj | L148: 1 | M148: budova | N148: zděná | O148: plochá | P148: střešní fólie | Q148: zdravotnická záchranná služba, lékárna | R148: ne | S148: 1 | T148: minimální množství hořlavin, léky | U148: standartní ( RHP ) | V148: 24hodinová služba zaměstnanců | W148: ano | X148: skleněná s dřevěným rámem / plastové s prosklením | Y148: vandalismus, vzrostlé stromy | Z148: 5777400
D149: Červená Voda 333 | E149: Ústí nad Orlicí | F149: 56203 | G149: 485/1 | H149: 5400 | I149: 390 | K149: v majetku právnické osoby | L149: 1, 2 | M149: budova | N149: zděná | O149: valbová, plochá | P149: plech | Q149: technické zázemí, ZZS, léčebný ústav | R149: ne | S149: 2 | T149: ne | U149: standartní ( RHP ) | V149: 24hodinová služba zaměstnanců | W149: ano | X149: skleněná s dřevěným rámem / kovové s prosklením | Y149: vandalismus, vzrostlé stromy
D150: Dobrovského 34 | E150: Lanškroun | F150: 563 01 | G150: 704/2, 3767 | I150: 389, 389 | J150: 3366 | K150: Pardubický kraj | L150: 2 | M150: budova | N150: zděná | O150: valbová | P150: šindel | Q150: zdravotnická záchranná služba | R150: ne | S150: 1 | T150: ne | U150: standartní ( RHP ) | V150: 24hodinová služba zaměstnanců | W150: ano | X150: skleněná s plastovým rámem / plastové s prosklením, zásuvná vrata | Y150: vandalismus | Z150: 23150868
D151: U Polikliniky 1514 | E151: Žamberk | F151: 56401 | G151: 3946/4 | H151: 5400 | I151: 221 | J151: 1389 | K151: Pardubický kraj | L151: 2 | M151: budova | N151: zděná | O151: valbová | P151: asfaltový šindel | Q151: zdravotnická záchranná služba | R151: ne | S151: 1 | T151: ne | U151: standartní ( RHP ) | V151: 24hodinová služba zaměstnanců | W151: ano | X151: skleněná s plastovým rámem / plastové s prosklením | Y151: vandalismus, vzrostlé stromy | Z151: 9553344
D152: Kollárova 2201/9 | E152: Svitavy | F152: 56802 | G152: 3706 | I152: 400 | J152: 579 | K152: Pardubický kraj | L152: 2 | M152: budova | N152: zděná | O152: plochá | P152: střešní fólie | Q152: zdravotnická záchranná služba - garáže | R152: ne | S152: 1 | T152: ne | U152: standartní ( RHP ) | V152: 24hodinová služba zaměstnanců | W152: ano | X152: skleněná s plastovým rámem / plastové s prosklením | Y152: vandalismus | Z152: 3982279
D153: Svitavská 36 | E153: Moravská Třebová | F153: 57101 | G153: 1417/2 | I153: 150 | J153: 380 | K153: Pardubický kraj | L153: 1 | M153: budova | N153: zděná | O153: valbová | P153: střešní tašky | Q153: budova v hospodaření nemocnice M. Třebová | R153: ne | S153: 3 | T153: ne | U153: standartní ( RHP ) | V153: osvětlení objektu, zámek FAB | W153: ano | X153: prosklení / kovová vrata | Y153: vandalismus, vzrostlé stromy | Z153: 2613586
D154: Teplého 1526 | E154: Pardubice | F154: 53002 | G154: 4066/1 | I154: 2380 | K154: v majetku HZS | L154: 3 | M154: budova | N154: zděná, železobeton | O154: sedlová | P154: plech | Q154: zdravotnická záchranná služba | R154: klimatizace | S154: 1 | T154: ne | U154: standartní RHP, hydranty | V154: služba HZS nonstop, oplocena zadní část objektu | W154: ano | X154: skleněná s plastovým rámem / plastové s prosklením | Y154: vandalismus
D155: Poličská 399 | E155: Hlinsko | F155: 539 01 | G155: 784/3 | I155: 440 | J155: 2308 | K155: Pardubický kraj | L155: 2 | M155: budova | N155: zděná | O155: sedlová | P155: plech | Q155: zdravotnická záchranná služba | R155: ne | S155: 3 | T155: ne | U155: standartní ( RHP ) | V155: oplocení objektu, zámek FAB | W155: ne | X155: skleněná s dřevěným / kovové s prosklením | Y155: vandalismus | Z155: 15874095
D156: Zvěřinova 1002 | E156: Skuteč | F156: 538 73 | G156: 2286 | I156: 221 | J156: 1215 | K156: Pardubický kraj | L156: 1 | M156: budova | N156: zděná | O156: plochá | P156: střešní fólie | Q156: zdravotnická záchranná služba | R156: ne | S156: 1 | T156: ne | U156: standartní ( RHP ) | V156: EZS | W156: ano | X156: skleněná s plastovým rámem / plastové s prosklením | Y156: vandalismus | Z156: 8356597
D157: Nádražní 548 | E157: Hlinsko | F157: 53901 | G157: 600/1 | I157: 851 | K157: v majetku města | L157: 3 | M157: budova | N157: zděná | O157: sedlová | P157: plech | Q157: zdravotnická záchranná služba | R157: ne | S157: 3 | T157: minimální množství (léčiva) | U157: standartní ( RHP ) | V157: 24hodinová služba zaměstnanců | W157: ano | X157: skleněná s plastovým rámem / dřevěné s prosklením | Y157: vandalismus
D158: Eimova 294 | E158: Polička | F158: 57219 | G158: 1034 | I158: 334 | K158: v majetku svazku obcí | L158: 2 | M158: budova | N158: zděná | O158: valbová | P158: plech | Q158: zdravotnická záchranná služba | R158: klimatizace | S158: 3 | T158: minimální množství (léčiva) | U158: standartní ( RHP ) | V158: 24hodinová služba zaměstnanců | W158: ano | X158: skleněná s plastovým rámem / plastové s prosklením | Y158: vzrostlé stromy, vandalismus
D159: Partyzánská 1074 | E159: Litomyšl | F159: 57001 | G159: 3257/1 | I159: 69 | K159: v majetku HZS | L159: 1 | M159: budova | N159: zděná | O159: sedlová | P159: střešní tašky | Q159: zdravotnická záchranná služba | R159: ne | S159: 1 | T159: oleje a PHM | U159: standartní ( RHP ) | V159: 24hodinová služba zaměstnanců | W159: ano | X159: skleněná s dřevěným rámem / kovová vrata | Y159: vandalismus
A160: 8 | B160: Dětské centrum Veská | C160: 00190543 | D160: Veská 21 | E160: Sezemice | F160: 533 04 | G160: 35 | H160: 5400 | I160: 393 | J160: 1800 | K160: Pardubický kraj | L160: 1 | M160: budova | N160: zděná | O160: sedlová | P160: střešní tašky | Q160: ordinace, rehabilitace, domov pro matky a školka | R160: ne | S160: 1 | T160: ne | U160: standartní (RHP) | V160: minimální (oplocení areálu), domovní audiotelefon | W160: ano | X160: skleněná s plastovým rámem / dřevěné | Y160: vandalismus | Z160: 10886400
D161: bez č.p. | E161: Sezemice | F161: 53304 | G161: 38 | H161: 5400 | I161: 819 | J161: 5150 | K161: Pardubický kraj | L161: 2, 1 | M161: budova | N161: zděná | O161: valbová, plochá | P161: střešní tašky | Q161: dětské centrum, prádelna, dílny | R161: gastro-technologie, prádelna | S161: 3 | T161: ne | U161: standartní (RHP) | V161: minimální (oplocení areálu), domovní audiotelefon | W161: ano | X161: skleněná s dřevěným rámem / dřevěné s prosklením, plechová vrata | Y161: vzrostlé stromy | Z161: 31147200
D162: bez č.p. | E162: Sezemice | F162: 53304 | G162: 67 | H162: 5400 | I162: 30 | J162: 90 | K162: Pardubický kraj | L162: 1 | M162: budova | N162: zděná | O162: pultová | P162: plech | Q162: sklad | R162: ne | S162: 2 | T162: ne | U162: standartní (RHP) | V162: minimální (oplocení areálu), domovní audiotelefon | W162: ano | X162: prosklení / dřevěné | Y162: vzrostlé stromy | Z162: 544320
A163: 9 | B163: Dětský domov pro děti od 1 do 3 let Holice | C163: 00191124 | D163: Staroholická 354 | E163: Holice | F163: 53401 | G163: 6400 | H163: 5400 | I163: 922 | J163: 6900 | K163: Pardubický kraj | L163: 2 | M163: budova | N163: zděná | O163: sedlová | P163: pálená taška | Q163: dětský domov | R163: gastro-technologie | S163: 3 | T163: ne | U163: standartní (RHP) | V163: minimální (oplocení areálu) | W163: ano | X163: skleněná s plastovým rámem / plastová s prosklením | Y163: vzrostlé stromy | Z163: 41731200
D164: bez č.p. | E164: Holice | F164: 53401 | G164: 2527/3 | H164: 5400 | I164: 82 | J164: 205 | K164: Pardubický kraj | L164: 1 | M164: budova | N164: zděná | O164: pultová | P164: plech / lepenka | Q164: sklad | R164: ne | S164: 2 | T164: ne | U164: standartní (RHP) | V164: minimální (oplocení areálu) | W164: ano | X164: skleněná s dřevěným rámem / plechová vrata a dveře | Y164: vzrostlé stromy | Z164: 1239840
A165: 10 | B165: Léčebna dlouhodobě nemocných Rybitví | C165: 00190560 | D165: Činžovních domů 140 | E165: Rybitví | F165: 53354 | G165: 383/1 | H165: 5400 | I165: 1226 | J165: 14900 | K165: Pardubický kraj | L165: 3 | M165: budova | N165: zděná | O165: sedlová, plochá | P165: střešní tašky | Q165: LDN, administrativní budova, jídelna, garáže | R165: gastro-technologie | S165: 1 | T165: ne | U165: standartní (RHP) | V165: minimální (oplocení areálu) | W165: ano | X165: skleněná s dřevěným rámem / kovové s prosklením | Y165: vzrostlé stromy | Z165: 90115200
D166: Činžovních domů 139 | E166: Rybitví | F166: 53354 | G166: 383/2 | H166: 5400 | I166: 589 | J166: 6350 | K166: Pardubický kraj | L166: 3 | M166: budova | N166: zděná | O166: sedlová | P166: střešní tašky | Q166: LDN - ubytování | R166: ne | S166: 3 | T166: ne | U166: standartní (RHP) | V166: minimální (oplocení areálu) | W166: ano | X166: skleněná s dřevěným rámem / dřevěné s prosklením | Y166: minimální | Z166: 38404800
A167: 11 | B167: Odborný léčebný ústav Jevíčko | C167: 00193976 | D167: č.p. 508 | E167: Jevíčko | F167: 569 43 | G167: 366 | H167: 5400 | I167: 640 | J167: 8500 | K167: Pardubický kraj | L167: 4 | M167: budova | N167: zděná | O167: valbová | P167: bobrovka | Q167: administrativní budova, sklady, kuchyň | R167: vzduchotechnika | S167: 2 | T167: ne | U167: standartní (RHP) | V167: EZS - místnost pokladna, oplocení areálu | W167: ano | X167: skleněná s dřevěným rámem / dřevěné se skleněnou výplní | Y167: vzrostlé stromy | Z167: 51408000
D168: č.p. 502 | E168: Jevíčko | F168: 56943 | G168: 365 | H168: 5400 | I168: 585 | J168: 5100 | K168: Pardubický kraj | L168: 2 | M168: budova | N168: zděná | O168: valbová | P168: bobrovka | Q168: garáže sanitek, sklady, služební byty | R168: ne | S168: 2 | T168: ne | U168: standartní (RHP) | V168: minimální (oplocení areálu) | W168: ano | X168: skleněná s dřevěným rámem / dřevěné se skleněnou výplní | Y168: vzrostlé stromy | Z168: 30844800
D169: č.p. 503 | E169: Jevíčko | F169: 56943 | G169: 388 | H169: 5400 | I169: 258 | J169: 2100 | K169: Pardubický kraj | L169: 2 | M169: budova | N169: zděná | O169: polovalbová | P169: bobrovka | Q169: léčba plicních chorob a TBC | R169: ano | S169: 2 | T169: ne | U169: standartní (RHP) | V169: minimální (oplocení areálu) | W169: ano | X169: sleněná s dřevěným rámem / dřevěné s prosklením | Y169: vzrostlé stromy | Z169: 12700800
D170: č.p. 504 | E170: Jevíčko | F170: 56943 | G170: 741 | H170: 5400 | I170: 110 | J170: 680 | K170: Pardubický kraj | L170: 1 | M170: budova | N170: zděná | O170: valbová | P170: bobrovka | Q170: ubytovací zařízení | R170: ne | S170: 2 | T170: ne | U170: standartní (RHP) | V170: minimální (oplocení areálu) | W170: ano | X170: skleněná s dřevěným rámem / dřevěné | Y170: vzrostlé stromy | Z170: 4112640
D171: č.p. 505 | E171: Jevíčko | F171: 56943 | G171: 547 | H171: 5400 | I171: 304 | J171: 4000 | K171: Pardubický kraj | L171: 3 | M171: budova | N171: zděná | O171: valbová | P171: pálená taška | Q171: ubytovací zařízení | R171: ne | S171: 3 | T171: ne | U171: standartní, RHP | V171: minimální, FAB, oplocení areálu | W171: ano | X171: skleněná s plastovým rámem / dřevěné s prosklením | Y171: minimální | Z171: 24192000
D172: č.p. 506 | E172: Jevíčko | F172: 56943 | G172: 546 | H172: 5400 | I172: 336 | J172: 2900 | K172: Pardubický kraj | L172: 2 | M172: budova | N172: zděná | O172: valbová | P172: bobrovka | Q172: služební byty, sklady | R172: ne | S172: 3 | T172: ne | U172: standartní (RHP) | V172: minimální (oplocení areálu) | W172: ano | X172: skleněná s dřevěným rámem / dřevěné s prosklením | Y172: vzrostlé stromy | Z172: 17539200
D173: č.p. 507 | E173: Jevíčko | F173: 56943 | G173: 544 | H173: 5400 | I173: 1286 | J173: 4500 | K173: Pardubický kraj | L173: 1 | M173: budova | N173: zděná | O173: valbová | P173: plechová | Q173: ubytovna, služební byty | R173: ne | S173: 3 | T173: ne | U173: standartní (RHP) | V173: minimální (oplocení areálu) | W173: ano | X173: skleněná s dřevěným rámem / dřevěné | Y173: vzrostlé stromy | Z173: 27216000
D174: č.p. 509 | E174: Jevíčko | F174: 56943 | G174: 364 | H174: 5400 | I174: 1049 | J174: 19200 | K174: Pardubický kraj | L174: 3 | M174: budova | N174: zděná | O174: valbová | P174: bobrovka | Q174: léčebný pavilon | R174: ano | S174: 3 | T174: ne | U174: standartní (RHP) | V174: minimální (oplocení areálu) | W174: ne | X174: skleněná s dřevěným rámem / dřevěné se skleněnou výplní | Y174: vzrostlé stromy | Z174: 116121600
D175: č.p. 510 | E175: Jevíčko | F175: 56943 | G175: 362 | H175: 5400 | I175: 380 | J175: 5200 | K175: Pardubický kraj | L175: 3 | M175: budova | N175: zděná | O175: valbová | P175: plechová | Q175: bytový dům - služební byty | R175: ne | S175: 2 | T175: ne | U175: standartní (RHP) | V175: minimální (oplocení areálu) | W175: ano | X175: skleněná s dřevěným rámem / dřevěné se skleněnou výplní | Y175: vzrostlé stromy | Z175: 31449600
D176: bez č.p. | E176: Jevíčko | F176: 56943 | G176: 372 | H176: 5400 | I176: 304 | J176: 2400 | K176: Pardubický kraj | L176: 1 | M176: budova | N176: zděná | O176: sedlová | P176: střešní tašky | Q176: budova údržby, dílny, stolárna | R176: ne | S176: 3 | T176: nafta (20 l), svařovací souprava | U176: standartní (RHP) | V176: okenní mříže, oplocení areálu | W176: ano | X176: skleněná s dřevěným rámem / dřevěné, plechová vrata | Y176: vzrostlé stromy | Z176: 14515200
D177: bez č.p. | E177: Jevíčko | F177: 56943 | G177: 373 | H177: 5400 | I177: 162 | J177: 1000 | K177: Pardubický kraj | L177: 1 | M177: budova | N177: zděná | O177: polovalbová | P177: střešní tašky | Q177: stodola - sklad (údržba) | R177: ne | S177: 3 | T177: ne | U177: standartní (RHP) | V177: minimální (oplocení areálu) | W177: ano | X177: prosklení / dřevěná vrata | Y177: vzrostlé stromy | Z177: 6048000
D178: bez č.p. | E178: Jevíčko | F178: 56943 | G178: 374 | H178: 5400 | I178: 227 | J178: 1400 | K178: Pardubický kraj | L178: 1 | M178: budova | N178: zděná | O178: sedlová, pultová | P178: eternit, střešní tašky | Q178: sklad, údržba | R178: ne | S178: 3 | T178: ne | U178: standartní (RHP) | V178: uzamčena pletivová vrata, oplocení areálu | W178: ano | X178: skleněná s dřevěným rámem / dřevěná vrata | Y178: vzrostlé stromy | Z178: 8467200
D179: bez č.p. | E179: Jevíčko | F179: 56943 | G179: 390 | H179: 5400 | I179: 1403 | J179: 26000 | K179: Pardubický kraj | L179: 4 | M179: budova | N179: zděná | O179: valbová | P179: bobrovka | Q179: léčebný pavilon, MKB laboratoř | R179: ne | S179: 2 | T179: ne | U179: standartní (RHP) | V179: minimální (oplocení areálu) | W179: ano | X179: skleněná s dřevěným rámem / dřevěné | Y179: vzrostlé stromy | Z179: 157248000
D180: bez č.p. | E180: Jevíčko | F180: 56943 | G180: 391 | H180: 5400 | I180: 72 | J180: 280 | K180: Pardubický kraj | L180: 1 | M180: budova | N180: zděná | O180: valbová | P180: střešní tašky | Q180: vrátnice | R180: ne | S180: 3 | T180: ne | U180: standartní (RHP) | V180: minimální (oplocení areálu) | W180: ano | X180: skleněná s dřevěným rámem / dřevěné s prosklením | Y180: vzrostlé stromy | Z180: 1693440
D181: bez č.p. | E181: Jevíčko | F181: 56943 | G181: 545 | H181: 5400 | I181: 1439 | J181: 29000 | K181: Pardubický kraj | L181: 4 | M181: budova | N181: zděná | O181: valbová | P181: bobrovka | Q181: léčebný pavilon, OKB laboratoř, RTG | R181: ne | S181: 2 | T181: rozvod medicinských plynů | U181: standartní (RHP) | V181: minimální (oplocení areálu) | W181: ano | X181: skleněná s dřevěným rámem / dřevěné s prosklením | Y181: vzrostlé stromy | Z181: 175392000
D182: bez č.p. | E182: Jevíčko | F182: 56943 | G182: 742 | H182: 5400 | I182: 240 | J182: 1200 | K182: Pardubický kraj | L182: 1 | M182: budova | N182: zděná | O182: plochá | P182: střešní fólie | Q182: spojovací chodba | R182: ne | S182: 3 | T182: ne | U182: standartní (RHP) | V182: minimální (oplocení areálu) | W182: ano | X182: skleněná s dřevěným rámem / dřevěné s prosklením | Y182: minimální | Z182: 7257600
D183: bez č.p. | E183: Jevíčko | F183: 56943 | G183: 743 | H183: 5400 | I183: 149 | J183: 1100 | K183: Pardubický kraj | L183: 1 | M183: budova | N183: zděná | O183: pultová | P183: střešní fólie | Q183: archiv, sklady | R183: ne | S183: 3 | T183: ne | U183: standartní (RHP) | V183: minimální (oplocení areálu) | W183: ano | X183: ne / dřevěné | Y183: vzrostlé stromy | Z183: 6652800
D184: bez č.p. | E184: Jevíčko | F184: 56943 | G184: 744,363,746,747,749,759,112,195/1 | H184: 5400 | I184: 575 | J184: 3250 | K184: Pardubický kraj | L184: 1, 2 | M184: budova | N184: zděná | O184: valbová, pultová | P184: střešní tašky, střešní fólie | Q184: technické zázemí OLÚ | R184: ne | S184: 3 | T184: ne | U184: standartní (RHP) | V184: minimální (oplocení areálu) | W184: ano | X184: skleněná s dřevěným rámem / dřevěné, dřevěná a plechová vrata | Y184: vzrostlé stromy | Z184: 19656000
D185: bez č.p. | E185: Jevíčko | F185: 56943 | G185: 764 | H185: 5400 | I185: 392 | J185: 3900 | K185: Pardubický kraj | L185: 1 | M185: budova | N185: zděná | O185: pultová | P185: střešní fólie | Q185: bývalá centrální kotelna, rozvodna elektrické energie, hlavní plynoměrna | R185: trafo | S185: 3 | T185: oleje v transformátorech, zemní plyn | U185: standartní (RHP) | V185: minimální (oplocení objektu) | W185: ano | X185: skleněná s kovovým rámem / plechové | Y185: vandalismus | Z185: 23587200
A186: 12 | B186: Kojenecký ústav a dětský domov Svitavy | C186: 60125501 | D186: U kojeneckého ústavu 2 | E186: Svitavy | F186: 56802 | G186: 495,1610 | H186: 5400 | I186: 460, 146 | J186: 4600 | K186: Pardubický kraj | L186: 1 | M186: budova | N186: zděná | O186: valbová | P186: šindel | Q186: dětský domov (par. č. 1610 - resocializační centrum) | R186: gastro-technologie | S186: 1 | T186: ne | U186: standartní (RHP) | V186: minimální (mříže na dveřích) | W186: ano | X186: skleněná s plastovým rámem / plastové s prosklením | Y186: vandalismus, vzrostlé stromy | Z186: 28487200
D187: U kojeneckého ústavu 2 | E187: Svitavy | F187: 56802 | G187: 1610 | I187: 98 | J187: 546 | K187: Pardubický kraj | L187: 1 | M187: budova | N187: zděná | O187: valbová | P187: šindel | Q187: resocializační centrum | R187: ne | S187: 1 | T187: ne | U187: standartní (RHP) | V187: kamerový systém, oplocení objektu | W187: ano | X187: skleněná s plastovým rámem / plastové s prosklením | Y187: vzrostlé stromy | Z187: 3381307
A188: 13 | B188: Albertinum, odborný léčebný ústav, Žamberk | C188: 00196096 | D188: Za kopečkem 353 | E188: Žamberk | F188: 56401 | G188: 1324 | H188: 5400 | I188: 237 | J188: 2400 | K188: Pardubický kraj | L188: 2 | M188: budova | N188: zděná | O188: polovalbová | P188: šindel | Q188: administrativní budova | R188: ne | S188: 2 | T188: ne | U188: standartní (RHP) | V188: minimální (oplocení areálu) | W188: ano | X188: skleněná s dřevěným rámem / dřevěné s prosklením | Y188: vzrostlé stromy | Z188: 14515200
D189: Za kopečkem 223 | E189: Žamberk | F189: 564 01 | G189: 1337/2 | H189: 5400 | I189: 370 | J189: 2900 | K189: Pardubický kraj | L189: 2 | M189: budova | N189: zděná | O189: sedlová | P189: střešní taška | Q189: ubytovna | R189: ne | S189: 3 | T189: ne | U189: standartní (RHP) | V189: minimální (oplocení areálu) | W189: ano | X189: skleněná s dřevěným rámem / kovové s prosklením | Y189: vzrostlé stromy | Z189: 17539200
D190: Za kopečkem 528 | E190: Žamberk | F190: 564 01 | G190: 1326 | H190: 5400 | I190: 602 | J190: 4900 | K190: Pardubický kraj | L190: 2 | M190: budova | N190: zděná | O190: valbová | P190: šindel | Q190: truhlárna | R190: ne | S190: 3 | T190: těkavé látky (omezené množství) | U190: standartní (RHP) | V190: minimální (oplocení areálu) | W190: ano | X190: skleněná s dřevěným rámem / dřevěné s prosklením | Y190: vzrostlé stromy | Z190: 29635200
D191: Za kopečkem 570 | E191: Žamberk | F191: 564 01 | G191: 1345 | H191: 5400 | I191: 219 | J191: 1800 | K191: Pardubický kraj | L191: 1 | M191: budova | N191: zděná | O191: sedlová | P191: kanadský šindel | Q191: truhlárna | R191: ne | S191: 3 | T191: ne | U191: standartní (RHP) | V191: minimální (oplocení areálu) | W191: ano | X191: skleněná s dřevěným rámem / dřevěné s prosklením | Y191: vzrostlé stromy | Z191: 10886400
D192: Za kopečkem 670 | E192: Žamberk | F192: 564 01 | G192: 1327 | H192: 5400 | I192: 450 | J192: 6500 | K192: Pardubický kraj | L192: 3 | M192: budova | N192: zděná | O192: polovalbová | P192: lepenka | Q192: stravovací provoz | R192: gastro-technologie | S192: 3 | T192: ne | U192: standartní (RHP) | V192: minimální (oplocení areálu) | W192: ano | X192: skleněná s dřevěným rámem / kovové s prosklením | Y192: vzrostlé stromy | Z192: 39312000
D193: Za kopečkem 674 | E193: Žamberk | F193: 564 01 | G193: 1341 | H193: 5400 | I193: 244 | J193: 2500 | K193: Pardubický kraj | L193: 1 | M193: budova | N193: zděná | O193: polovalbová | P193: eternit | Q193: plicní oddělení | R193: ne | S193: 3 | T193: ne | U193: standartní (RHP) | V193: minimální (oplocení areálu) | W193: ano | X193: skleněná s dřevěným rámem / dřevěné s prosklením | Y193: minimální | Z193: 15120000
D194: Za kopečkem 675 | E194: Žamberk | F194: 564 01 | G194: 1339 | H194: 5400 | I194: 420 | J194: 2700 | K194: Pardubický kraj | L194: 1 | M194: budova | N194: zděná | O194: sedlová, pultová | P194: střešní tašky, plech | Q194: prádelna | R194: strojní vybavení prádelny | S194: 3 | T194: ne | U194: standartní (RHP) | V194: minimální (oplocení areálu) | W194: ano | X194: skleněná s dřevěným rámem / dřevěné s prosklením | Y194: vzrostlé stromy | Z194: 16329600
D195: Za kopečkem 677 | E195: Žamberk | F195: 564 01 | G195: 1338 | H195: 5400 | I195: 453 | J195: 3200 | K195: Pardubický kraj | L195: 1 | M195: budova | N195: zděná | O195: sedlová, pultová | P195: plech, fólie | Q195: kotelna, prodejna potravin | R195: strojní vybavení kotelny | S195: 2 | T195: zemní plyn | U195: standartní (RHP) | V195: minimální (oplocení areálu) | W195: ano | X195: skleněná s dřevěným rámem / dřevěné, vrata plechová | Y195: vzrostlé stromy | Z195: 19353600
D196: Za kopečkem 726 | E196: Žamberk | F196: 564 01 | G196: 1344 | H196: 5400 | I196: 956 | J196: 15360 | K196: Pardubický kraj | L196: 3 | M196: budova | N196: zděná | O196: sedlová, pultová | P196: plech, střešní fólie | Q196: léčebna dlouhodobě nemocných | R196: gastro-technologie | S196: 1 | T196: ne | U196: standartní (RHP) | V196: minimální (oplocení areálu) | W196: ano | X196: skleněná s plastovým rámem / plastové s prosklením | Y196: minimální | Z196: 92897280
D197: Za kopečkem 782 | E197: Žamberk | F197: 564 01 | G197: 1325 | H197: 5400 | I197: 1123 | J197: 15150 | K197: Pardubický kraj | L197: 3, 2 | M197: budova | N197: zděná | O197: valbová, pultová | P197: střešní tašky, plech | Q197: plicní oddělení | R197: ne | S197: 3 | T197: ne | U197: standartní (RHP) | V197: minimální (oplocení areálu) | W197: ano | X197: skleněná s dřevěným rámem / dřevěné s prosklením | Y197: vzrostlé stromy | Z197: 91627200
D198: Za kopečkem 627 | E198: Žamberk | F198: 564 01 | G198: 1330 | H198: 5400 | I198: 300 | J198: 3520 | K198: Pardubický kraj | L198: 2 | M198: budova | N198: zděná | O198: valbová | P198: pálená taška | Q198: bytový dům | R198: ne | S198: 3 | T198: ne | U198: standartní (RHP) | V198: minimální (oplocení areálu) | W198: ano | X198: skleněná s dřevěným rámem / dřevěné s prosklením | Y198: vzrostlé stromy | Z198: 21288960
D199: bez č.p. | E199: Žamberk | F199: 564 01 | G199: 1331/2, 1332 | H199: 5400 | I199: 79, 82 | J199: 960 | K199: Pardubický kraj | L199: 1 | M199: budova, skleníky | N199: zděná, kov | O199: pultová | P199: šindel | Q199: kotelna, skleníky | R199: ne | S199: 3 | T199: ne | U199: standartní (RHP) | V199: zámek visací, oplocení areálu | W199: ne | X199: skleněná s dřevěným a kovovým rámem / dřevěné s prosklením | Y199: vzrostlé stromy | Z199: 5806080
D200: bez č.p. | E200: Žamberk | F200: 564 01 | G200: 1337/3 | H200: 5400 | I200: 290 | J200: 2400 | K200: Pardubický kraj | L200: 2 | M200: budova | N200: zděná | O200: polovalbová | P200: střešní tašky | Q200: sklad, truhlárna | R200: ne | S200: 3 | T200: těkavé látky | U200: standartní (RHP) | V200: minimální (oplocení areálu) | W200: ano | X200: skleněná s dřevěným rámem / dřevěné, plechová vrata | Y200: vzrostlé stromy | Z200: 14515200
D201: bez č.p. | E201: Žamberk | F201: 564 01 | G201: 3182/3 | H201: 5400 | I201: 426 | J201: 1600 | K201: Pardubický kraj | L201: 1 | M201: hala | N201: ocelová | O201: sedlová | P201: plech | Q201: hala | R201: ne | S201: 3 | T201: ne | U201: standartní (RHP) | V201: zámek visací, oplocení areálu | W201: ano | X201: ne / plechová vrata | Y201: vzrostlé stromy | Z201: 9676800
... 23 more rows

Sheet SOCIÁLNÍ SLUŽBY
A1: IV. SOCIÁLNÍ SLUŽBY
A3: č. | B3: Název dle zřizovací listiny | C3: IČ | D3: Adresa místa pojištění | G3: Parc. | I3: Zastavěná plocha (m2) | J3: Obestavěný | K3: Vlastník | L3: Počet | M3: Typ | N3: Nosná | O3: Typ | P3: Krytina | Q3: Provozní | R3: Technologie | S3: Celkový | T3: Nebezpečné | U3: Zabezpečení | V3: Zabezpečení | W3: Trvale | X3: Okna / dveře | Y3: Vnější | Z3: Pojistná částka - nová
D4: Ulice/č.p. | E4: Místo | F4: PSČ | G4: číslo | J4: prostor (m3) | K4: nemovitosti | L4: podlaží | M4: budovy | N4: konstrukce | O4: střechy | P4: střechy | Q4: účel stavby | S4: stav (1-5) | T4: látky | U4: protipožární | V4: proti krádeži | W4: využíváno | Y4: nebezpečí | Z4: hodnota nemovitosti
A5: 1 | B5: Domov u fontány | C5: 71176225 | D5: Libušina 1060 | E5: Přelouč | F5: 53516 | G5: 1073/1 | H5: 4700 | I5: 1863 | J5: 29900 | K5: Pardubický kraj | L5: 4 | M5: budova | N5: zděná | O5: plochá | P5: střešní fólie | Q5: domov pro seniory | R5: gastro-technologie, prádelna | S5: 1 | T5: ne | U5: RHP, EPS, hydrant vnitřní | V5: systém gen.klíče, oplocení areálu | W5: ano | X5: skleněná s plastovým rámem / plastové s prosklením | Y5: minimální | Z5: 157393600
D6: bez č.p. | E6: Přelouč | F6: 53516 | G6: 1122 | H6: 4700 | I6: 176 | J6: 700 | K6: Pardubický kraj | L6: 1 | M6: budova | N6: zděná | O6: plochá | P6: střešní fólie | Q6: vrátnice, garáže | R6: ne | S6: 1 | T6: pohonné hmoty | U6: standartní (RHP) | V6: oplocení areálu | W6: ano | X6: skleněná s dřevěným rámem / dřevěné s prosklením, plechová vrata | Y6: vandalismus | Z6: 3684800
D7: bez č.p. | E7: Přelouč | F7: 53516 | G7: 1123 | H7: 4700 | I7: 17 | J7: 50 | K7: Pardubický kraj | L7: 1 | M7: budova | N7: zděná | O7: plochá | P7: plech | Q7: rozvodna | R7: ne | S7: 2 | T7: ne | U7: standartní (RHP) | V7: oplocení areálu | W7: ano | X7: prosklení / plechové | Y7: vzrostlé stromy | Z7: 263200
D8: bez č.p. | E8: Přelouč | F8: 53516 | G8: 2595 | H8: 4700 | I8: 169 | J8: 500 | K8: Pardubický kraj | L8: 1 | M8: garáž | N8: zděná | O8: plochá | P8: střešní fólie | Q8: garáže | R8: ne | S8: 1 | T8: pohonné hmoty | U8: standartní (RHP) | V8: oplocení areálu | W8: ano | X8: prosklení / plechová vrata | Y8: vandalismus | Z8: 2632000
A9: 2 | B9: Domov pod Kuňkou | C9: 71176217 | D9: Ráby 162 | E9: Staré Hradiště | F9: 53352 | G9: 280 | H9: 4700 | I9: 2396 | J9: 33500 | K9: Pardubický kraj | L9: 2 | M9: budova | N9: zděná | O9: sedlová | P9: střešní tašky | Q9: domov pro osoby se zdravotním postižením | R9: vzduchotechnika, klimatizace, gastro-technologie | S9: 1 | T9: ne | U9: EPS, RHP, vnitřní a 2x vnější hydrant | V9: 24hodinová služba zaměstnanců | W9: ano | X9: skleněná s plastovým rámem / plastové s prosklením | Y9: vandalismus | Z9: 177059560
D10: bez č.p. | E10: Staré Hradiště | F10: 53352 | G10: 281 | H10: 4700 | I10: 79 | J10: 237 | K10: Pardubický kraj | L10: 1 | M10: přístavek | N10: zděná | O10: sedlová | P10: střešní tašky | Q10: sklad, garáž | R10: ne | S10: 1 | T10: minimální množství PHM, tlaková plynová láhev | U10: EPS, RHP, vnitřní a 2x vnější hydrant | V10: 24hodinová služba zaměstnanců | W10: ano | X10: skleněná s plastovým rámem / dřevěné | Y10: minimální | Z10: 475683
D11: Nám. 17. listopadu 1256 | E11: Přelouč | F11: 53501 | G11: 1758,1759,1760 | H11: 6000 | J11: 153 | K11: Pardubický kraj | L11: 4 | M11: budova | N11: zděná | O11: plochá | P11: střešní fólie | Q11: byt | R11: ne | S11: 2 | T11: ne | U11: RHP, EPS | V11: bezpečnostní vložka zámku | W11: ano | X11: skleněná s plastovým rámem / kovové s prosklením | Y11: minimální | Z11: 808660
D12: Studentská 1357 | E12: Přřelouč | F12: 53501 | G12: 1980,1981,1982 | J12: 140 | K12: Pardubický kraj | L12: 6 | M12: budova | N12: zděná | O12: plochá | P12: střešní fólie | Q12: byt | R12: ne | S12: 2 | T12: ne | U12: RHP, EPS | V12: bezpečnostní vložka zámku | W12: ano | X12: skleněná s plastovým rámem / kovové s prosklením | Y12: minimální | Z12: 739951
D13: Jižní 1368 | E13: Přelouč | F13: 53501 | G13: 1994,1995,1996 | J13: 207 | K13: Pardubický kraj | L13: 6 | M13: budova | N13: zděná | O13: plochá | P13: střešní fólie | Q13: byt | R13: ne | S13: 2 | T13: ne | U13: RHP, EPS | V13: bezpečnostní vložka zámku | W13: ano | X13: skleněná s plastovým rámem / kovové s prosklením | Y13: minimální | Z13: 1093906
A14: 3 | B14: Domov na hradě Rychmburk | C14: 15053822 | D14: Předhradí 17 | E14: Rychmburk | F14: 53974 | G14: 114 | H14: 4700 | I14: 1662 | J14: 29900 | K14: Pardubický kraj | L14: 3 | M14: budova | N14: zděná | O14: valbová | P14: eternit | Q14: domov pro dlouhodobě duševně nemocné | R14: gastro-technologie | S14: 1 | T14: ne | U14: standartní (RHP) | V14: minimální | W14: ano | X14: skleněná s dřevěným rámem / dřevěné s prosklením | Y14: vandalismus | Z14: 157393600
D15: Předhradí 72 | E15: Rychmburk | F15: 53974 | G15: 104 | H15: 4700 | I15: 577 | J15: 3400 | K15: Pardubický kraj | L15: 2 | M15: budova | N15: zděná | O15: sedlová | P15: eternit | Q15: integrační centrum, kanceláře | R15: ne | S15: 1 | T15: ne | U15: standartní (RHP) | V15: v kancelářích EZS, oplocení zadní části objektu | W15: ano | X15: skleněná s dřevěným rámem / dřevěné | Y15: vandalismus | Z15: 17897600
D16: bez č.p. | E16: Rychmburk | F16: 53974 | G16: 103 | H16: 4700 | I16: 194 | J16: 1900 | K16: Pardubický kraj | L16: 1 | M16: budova | N16: zděná | O16: valbová | P16: střešní tašky, eternit | Q16: sklad | R16: ne | S16: 3 | T16: ne | U16: standartní (RHP) | V16: oplocení objektu | W16: ne | X16: skleněná s dřevěným rámem / dřevěné | Y16: minimální | Z16: 10001600
A17: 4 | B17: Domov sociálních služeb Slatiňany | C17: 15053814 | D17: Klášterní 795 | E17: Slatiňany | F17: 53821 | G17: 950 | H17: 4700 | I17: 5431 | J17: 27800 | K17: Pardubický kraj | L17: 4 | M17: budova | N17: zděná | O17: plochá, pultová | P17: střešní fólie, vlnitý plech | Q17: kanceláře, ubytovna, sklad | R17: klimatizace | S17: 1 | T17: ne | U17: RHP, vnitřní hydrant | V17: oplocení areálu, 24hodinová služba na recepci | W17: ano | X17: skleněná s plastovým rámem / kovové s prosklením | Y17: vandalismus | Z17: 178281400
D18: bez č.p. | E18: Slatiňany | F18: 53821 | G18: 897 | H18: 4700 | I18: 281 | J18: 450 | K18: Pardubický kraj | L18: 1 | M18: budova | N18: zděná | O18: plochá | P18: plechová | Q18: sklad | R18: ne | S18: 3 | T18: ne | U18: standartní (RHP) | V18: oplocení areálu | W18: ano | X18: skleněná s dřevěným rámem / plechové | Y18: vzrostlé stromy | Z18: 2885850
D19: bez č.p. | E19: Slatiňany | F19: 53821 | G19: 1236 | H19: 4700 | I19: 750 | J19: 5300 | K19: Pardubický kraj | L19: 1 | M19: budova | N19: zděná | O19: plochá | P19: střešní fólie | Q19: kotelna | R19: strojní vybavení kotelny | S19: 3 | T19: ne | U19: standartní (RHP) | V19: minimální (oplocení areálu) | W19: ano | X19: skleněná v kovovém rámu / dřevěné | Y19: minimální | Z19: 33988900
D20: bez č.p. | E20: Slatiňany | F20: 53821 | G20: 1414.1415 | I20: 202, 56 | K20: Pardubický kraj | L20: 1 | M20: budova | N20: zděná | O20: pultová | P20: lepenka | Q20: bazén, strojovna | R20: strojírenská | S20: 2 | T20: ne | U20: RHP, vnitřní hydranty | V20: oplocení objektu, 24hodinová služba na recepci | W20: ano | X20: skleněná s kovovým rámem / plastové s prosklením | Y20: vzrostlé stromy
D21: Nádražní 153 | E21: Slatiňany | F21: 53821 | G21: 165 | I21: 1910 | K21: v majetku jiného vlastníka | L21: 4 | M21: budova | N21: zděná | O21: valbová | P21: plech | Q21: domov sociálních služeb | R21: klimatizace | S21: 2 | T21: ne | U21: standartní RHP | V21: oplocení objektu, 24hodinová služba na recepci | W21: ano | X21: skleněná s dřevěným rámem / dřevěné | Y21: vandalismus
D22: Klášterní 841 | E22: Slatiňany | F22: 53821 | G22: 1396,1397,1405,1406 | I22: 177, 176, 176, 177 | K22: Pardubický kraj | L22: 2 | M22: budova | N22: zděná | O22: valbová | P22: střešní tašky | Q22: ubytování | R22: ne | S22: 1 | T22: ne | U22: standartní (RHP) | V22: zámek bezp. vložka, oplocený areál | W22: ano | X22: skleněná s plastovým rámem / plastové s prosklením | Y22: ne
D23: Vítězství 115 | E23: Slatiňany | F23: 53821 | G23: 132 | H23: 4700 | I23: 2426 | J23: 7200 | K23: Pardubický kraj | L23: 2 | M23: budova | N23: zděná | O23: valbová | P23: šindel | Q23: chráněné dílny, ubytování | R23: gastro-technologie | S23: 1 | T23: ne | U23: RHP, vnitřní hydrant | V23: zámek bezp. vložka, oplocený areál | W23: ano | X23: skleněná s dřevěným rámem / dřevěné s prosklením | Y23: vzrostlé stromy
D24: Na Špici 1087 | E24: Chrudim | F24: 53701 | G24: 7329 | J24: 332 | K24: Pardubický kraj | L24: 5 | M24: budova | N24: zděná | O24: plochá | P24: střešní fólie | Q24: bytová jednotka, garážové stání a kolárna | R24: ne | S24: 1 | T24: ne | U24: RHP, vnitřní hydrant, protipožární dveře | V24: bezpečnostní kování vchodových dveří | W24: ano | X24: skleněná s plastovým rámem / plastové s prosklením | Y24: vandalismus | Z24: 3027811
D25: Na Špici 1085 | E25: Chrudim | F25: 53701 | G25: 7327 | J25: 332 | K25: Pardubický kraj | L25: 5 | M25: budova | N25: zděná | O25: plochá | P25: střešní fólie | Q25: bytová jednotka, částečně nebytové prostory | R25: ne | S25: 1 | T25: ne | U25: RHP, vnitřní hydrant, protipožární dveře | V25: bezpečnostní kování vchodových dveří | W25: ano | X25: skleněná s plastovým rámem / plastové s prosklením | Y25: vandalismus | Z25: 3027811
D26: Nádražní 364 | E26: Slatiňany | F26: 53821 | G26: 357 | H26: 4700 | I26: 149 | K26: v majetku jiného vlastníka | L26: 2 | M26: budova | N26: zděná | O26: sedlová | P26: střešní tašky | Q26: ubytování | R26: gastro-technologie | S26: 2 | T26: ne | U26: standartní (RHP) | V26: zámek bezp. vložka, zadní část objektu oplocena | W26: ano | X26: skleněná s dřevěným rámem / dřevěné s prosklením | Y26: vandalismus
A27: 5 | B27: Domov pod hradem Žampach | C27: 00854271 | D27: č.p. 1 | E27: Žampach | F27: 56401 | G27: 2 | H27: 5400 | I27: 1447 | J27: 15100 | K27: Pardubický kraj | L27: 2 | M27: budova | N27: zděná | O27: sedlová | P27: eternit | Q27: zařízení sociálních služeb | R27: ne | S27: 1 | T27: ne | U27: EPS | V27: EZS, oplocení areálu | W27: ano | X27: skleněná s dřevěným rámem / dřevěné | Y27: vzrostlé stromy | Z27: 81540000
D28: č.p. 2 | E28: Žampach | F28: 56401 | G28: 23 | H28: 4700 | I28: 332 | J28: 1900 | K28: Pardubický kraj | L28: 2 | M28: budova | N28: zděná | O28: sedlová | P28: eternit | Q28: zařízení sociálních služeb | R28: ne | S28: 2 | T28: ne | U28: standartní (RHP) | V28: minimální (oplocení areálu) | W28: ano | X28: skleněná s dřevěným rámem / dřevěné | Y28: minimální | Z28: 8930000
D29: č.p. 4 | E29: Žampach | F29: 56401 | G29: 20 | H29: 4700 | I29: 2843 | J29: 10600 | K29: Pardubický kraj | L29: 1 | M29: budova | N29: zděná | O29: sedlová | P29: eternit | Q29: zemědělské stavení | R29: ne | S29: 3 | T29: ne | U29: standartní (RHP) | V29: minimální (oplocení areálu) | W29: ano | X29: skleněná s dřevěným rámem / dřevěné s prosklením, dřevěná vrata | Y29: minimální | Z29: 49820000
D30: č.p. 9 | E30: Žampach | F30: 56401 | G30: 190 | H30: 4700 | I30: 363 | J30: 2600 | K30: Pardubický kraj | L30: 2 | M30: budova | N30: zděná | O30: plochá | P30: střešní fólie | Q30: zařízení sociálních služeb | R30: ne | S30: 1 | T30: ne | U30: standartní (RHP) | V30: minimální (oplocení areálu) | W30: ano | X30: skleněná s dřevěným rámem / dřevěné s prosklením | Y30: minimální | Z30: 12220000
D31: bez č.p. | E31: Žampach | F31: 56401 | G31: 1 | H31: 4700 | J31: 1950 | K31: Pardubický kraj | L31: 1 | M31: budova | N31: zděná | O31: sedlová | P31: eternit | Q31: zařízení sociálních služeb | R31: ne | S31: 1 | T31: ne | U31: standartní (RHP) | V31: EZS | W31: ano | X31: skleněná s dřevěným rámem / dřevěné s prosklením | Y31: vzrostlé stromy, vandalismus | Z31: 9165000
D32: bez č.p. | E32: Žampach | F32: 56401 | G32: 5 | H32: 4700 | I32: 143 | J32: 900 | K32: Pardubický kraj | L32: 1 | M32: budova | N32: zděná | O32: sedlová, pultová | P32: plech, sklo | Q32: skleník | R32: ne | S32: 2 | T32: ne | U32: standartní (RHP) | V32: minimální (oplocení areálu) | W32: ano | X32: prosklení / dřevěné | Y32: minimální | Z32: 4230000
D33: bez č.p. | E33: Žampach | F33: 56401 | G33: 23 | H33: 4700 | I33: 75 | J33: 300 | K33: Pardubický kraj | L33: 1 | M33: altán | N33: zděná | O33: valbová | P33: eternit | Q33: altán | R33: ne | S33: 1 | T33: ne | U33: ne | V33: kamerový systém v areálu, oplocení objektu | W33: ano | X33: ne | Y33: vzrostlé stromy | Z33: 1444800
D34: bez č.p. | E34: Žampach | F34: 56401 | G34: 20,23,25 | K34: Pardubický kraj | L34: 1 | M34: oplocení | N34: betonová, kov | Q34: oplocení objektu | R34: ne | S34: 1 | T34: ne | U34: ne | V34: kamerový systém v areálu | W34: ano | X34: ne | Y34: vzrostlé stromy, vandalismus
D35: bez č.p. | E35: Žampach | F35: 56401 | G35: 176 | H35: 4700 | I35: 241 | J35: 1200 | K35: Pardubický kraj | L35: 1 | M35: budova | N35: zděná | O35: sedlová | P35: eternit | Q35: kotelna | R35: strojní vybavení kotelny | S35: 3 | T35: ne | U35: standartní (RHP) | V35: EZS | W35: ano | X35: skleněná s dřevěným rámem / dřevěné | Y35: vzrostlé stromy, vandalismus | Z35: 5640000
D36: č.p. 71 | E36: Žampach | F36: 56401 | G36: 222 | H36: 5400 | I36: 121 | J36: 1170 | K36: Pardubický kraj | L36: 1 | M36: budova | N36: zděná | O36: polovalbová | P36: šindel | Q36: zařízení sociálních služeb | R36: ne | S36: 1 | T36: ne | U36: standartní (RHP) | V36: EZS | W36: ano | X36: skleněná s plastovým rámem / plastové s prosklením | Y36: vandalismus | Z36: 6318000
D37: č.p. 72 | E37: Žampach | F37: 56401 | G37: 219, 220, 221 | H37: 5400 | I37: 94, 94, 94 | J37: 1000 / budova | K37: Pardubický kraj | L37: 2 | M37: budova | N37: zděná | O37: polovalbová | P37: šindel | Q37: zařízení sociálních služeb | R37: ne | S37: 1 | T37: ne | U37: standartní (RHP) | V37: EZS | W37: ano | X37: skleněná s plastovým rámem / plastové s prosklením | Y37: vandalismus | Z37: 5 400 000 / budova
A38: 6 | B38: Domov na rozcestí Svitavy | C38: 70157286 | D38: T. G. Masaryka 9/33 | E38: Svitavy | F38: 56802 | G38: 3 | H38: 4700 | I38: 143 | J38: 3100 | K38: Pardubický kraj | L38: 2 | M38: budova | N38: zděná | O38: sedlová | P38: plech | Q38: domov pro mentálně postižené | R38: ne | S38: 2 | T38: ne | U38: standartní (RHP) | V38: minimální | W38: ano | X38: skleněná s dřevěným rámem / dřevěné | Y38: vandalismus | Z38: 14929600
D39: T. G. Masaryka 33/7 | E39: Svitavy | F39: 56802 | G39: 2 | H39: 4700 | K39: Pardubický kraj | L39: 3 | M39: budova | N39: zděná | O39: sedlová | P39: plech | Q39: domov pro mentálně postižené | R39: klimatizace | S39: v rekonstrukci | T39: ne | U39: standartní (RHP) | V39: minimální | W39: ano | X39: skleněná s plastovým rámem / dřevěné | Y39: vandalismus
D40: bez č.p. | E40: Svitavy | F40: 56802 | G40: 4 | H40: 4700 | I40: 216 | J40: 3900 | K40: Pardubický kraj | L40: 1 | M40: budova | N40: zděná | O40: sedlová | P40: plech | Q40: domov pro mentálně postižené | R40: ne | S40: 2 | T40: ne | U40: standartní (RHP) | V40: minimální | W40: ano | X40: skleněná s dřevěným rámem / dřevěné | Y40: vandalismus | Z40: 18782400
D41: T.G. Masaryka 33/11 | E41: Svitavy | F41: 56802 | G41: 8/2 | H41: 4700 | I41: 345 | J41: 7500 | K41: Pardubický kraj | L41: 3 | M41: budova | N41: zděná | O41: valbová | P41: střešní tašky | Q41: domov pro mentálně postižené | R41: ne | S41: 1 | T41: ne | U41: standartní (RHP) | V41: minimální | W41: ano | X41: skleněná s plastovým rámem / dřevěné | Y41: vandalismus | Z41: 36120000
D42: bez č.p. | E42: Svitavy | F42: 56802 | G42: 8/3 | H42: 4700 | I42: 71 | J42: 210 | K42: Pardubický kraj | L42: 1 | M42: garáž | N42: zděná | O42: sedlová | P42: plech | Q42: sklad | R42: ne | S42: 1 | T42: ne | U42: standartní (RHP) | V42: minimální (oplocený areál) | W42: ano | X42: skleněná s dřevěným rámem / kovová vrata | Y42: minimální | Z42: 1011360
D43: bez č.p. | E43: Svitavy | F43: 56802 | G43: 3466 | H43: 4700 | I43: 187 | J43: 750 | K43: Pardubický kraj | L43: 1 | M43: hala | N43: zděná, kovová | O43: sedlová | P43: vlnitý plech | Q43: dílny | R43: ne | S43: 3 | T43: ne | U43: standartní (RHP) | V43: minimální (oplocený areál) | W43: ano | X43: skleněná s dřevěným rámem / plechová vrata | Y43: vzrostlé stromy | Z43: 3612000
D44: Nádražní 1067 | E44: Svitavy | F44: 56802 | G44: 994 | H44: 4700 | I44: 236 | K44: Pardubický kraj | L44: 2 | M44: budova | N44: zděná | O44: valbová | P44: střešní tašky | Q44: domov pro mentálně postižené | R44: ne | S44: 2 | T44: ne | U44: standartní (RHP) | V44: minimální (částečně okenní mříže) | W44: ano | X44: skleněná s dřevěným rámem / dřevěné s prosklením | Y44: vzrostlé stromy, vandalismus
D45: bez č.p. | E45: Svitavy | F45: 56802 | G45: 1589 | H45: 4700 | I45: 33 | J45: 80 | K45: Pardubický kraj | L45: 1 | M45: garáž | N45: zděná | O45: plochá | P45: střešní fólie | Q45: garáž | R45: ne | S45: 2 | T45: ne | U45: standartní (RHP) | V45: minimální | W45: ano | X45: prosklení / plechová vrata | Y45: vzrostlé stromy, vandalismus | Z45: 385280
D46: Purkyňova 14/252 | E46: Svitavy | F46: 56802 | G46: 182 | H46: 4700 | I46: 249 | J46: 1300 | K46: Pardubický kraj | L46: 1 | M46: budova | N46: zděná | O46: sedlová | P46: plech | Q46: domov pro mentálně postižené | R46: ne | S46: v rekonstrukci | T46: ne | U46: standartní (RHP) | V46: minimální | W46: ano | X46: skleněná s plastovým rámem / dřevěné | Y46: vzrostlé stromy, vandalismus | Z46: 6260800
A47: 7 | B47: Domov u studánky | C47: 00854310 | D47: Anenská Studánka 41 | E47: Lanškroun | F47: 56301 | G47: 58 | H47: 4700 | I47: 1100 | J47: 13200 | K47: Pardubický kraj | L47: 2 | M47: budova | N47: zděná | O47: valbová | P47: eternit | Q47: kancelář, domov pro tělesně postižené | R47: klimatizace | S47: 2 | T47: ne | U47: protipožární dveře, RHP, vnitřní a 2x vnější hydrant, požární nádrž | V47: audiotelefon a CCTV u vchodu areálu, centrální klíče se vstupním právněním, oplocení | W47: ano | X47: skleněná s plastovým rámem / plastové s prosklením | Y47: vzrostlé stromy | Z47: 68999172
D48: bez č.p. | E48: Lanškroun | F48: 56301 | G48: 60 | H48: 4700 | I48: 361 | J48: 2700 | K48: Pardubický kraj | L48: 1 | M48: budova | N48: zděná | O48: sedlová | P48: plech | Q48: dílny | R48: ne | S48: 1 | T48: ne | U48: RHP, vnější hydranty, požární nádrž | V48: audiotelefon a CCTV u vchodu areálu, centrální klíče se vstupním právněním, oplocení | W48: ano | X48: skleněná s plastovým rámem / dřevěné s prosklením | Y48: vzrostlé stromy | Z48: 14113467
D49: bez č.p. | E49: Lanškroun | F49: 56301 | G49: 61 | H49: 4700 | I49: 61 | J49: 280 | K49: Pardubický kraj | L49: 1 | M49: altán | N49: zděná | O49: valbová | P49: eternit | Q49: studánka - pramen | R49: ne | S49: 1 | T49: ne | U49: vnější hydranty, požární nádrž | V49: audiotelefon a CCTV u vchodu areálu, oplocení | W49: ano | X49: ne | Y49: vzrostlé stromy | Z49: 1463619
D50: bez č.p. | E50: Lanškroun | F50: 56301 | G50: 74 | H50: 4700 | I50: 174 | J50: 1054 | K50: Pardubický kraj | L50: 2 | M50: budova | N50: zděná | O50: valbová | P50: eternit | Q50: kuchyně, jídelna | R50: gastro-technologie, klimatizace | S50: 2 | T50: ne | U50: protipožární dveře, RHP, vnitřní a 2x vnější hydrant, požární nádrž | V50: audiotelefon a CCTV u vchodu areálu, centrální klíče se vstupním právněním, oplocení | W50: ano | X50: skleněná s dřevěným rámem / dřevěné | Y50: minimální | Z50: 16204351
D51: bez č.p. | E51: Lanškroun | F51: 56301 | G51: 104 | H51: 4700 | I51: 115 | J51: 700 | K51: Pardubický kraj | L51: 1 | M51: budova | N51: zděná | O51: pultová | P51: plech | Q51: sušárna | R51: vzduchotechnika | S51: 2 | T51: ne | U51: RHP, vnější hydranty, požární nádrž | V51: audiotelefon a CCTV u vchodu areálu, centrální klíče se vstupním právněním, okenní mříže, oplocení | W51: ano | X51: skleněná s dřevěným rámem / dřevěné s prosklením, plechová vrata | Y51: vandalismus, vzrostlé stromy | Z51: 3659047
D52: bez č.p. | E52: Lanškroun | F52: 56301 | G52: 105 | H52: 4700 | I52: 365 | J52: 3400 | K52: Pardubický kraj | L52: 2 | M52: budova | N52: zděná | O52: sedlová | P52: plech | Q52: ubytovna, okál | R52: ne | S52: 1 | T52: ne | U52: protipožární dveře, RHP, vnitřní a 2x vnější hydrant, požární nádrž | V52: audiotelefon a CCTV u vchodu areálu, centrální klíče se vstupním oprávněním, oplocení | W52: ano | X52: skleněná s plastovým rámem / plastové | Y52: vzrostlé stromy | Z52: 17772514
D53: bez č.p. | E53: Lanškroun | F53: 56301 | G53: 110,111,112 | H53: 4700 | I53: 676, 18, 46 | J53: 4900 | K53: Pardubický kraj | L53: 2 | M53: budova | N53: zděná | O53: valbová | P53: šindel | Q53: ubytovna pro zaměstnance, garáže, ČOV | R53: strojní vybavení čističky vod | S53: 1 | T53: minimální množství PHM v garáži | U53: protipožární dveře, RHP, vnitřní a 2x vnější hydrant, požární nádrž | V53: audiotelefon a CCTV u vchodu areálu, centrální klíče se vstupním oprávněním, oplocení | W53: ano | X53: skleněná s plastovým rámem / plastové s prosklením | Y53: vzrostlé stromy | Z53: 25613329
D54: bez č.p. | E54: Lanškroun | F54: 56301 | G54: 115 | H54: 4700 | I54: 34 | J54: 250 | K54: Pardubický kraj | L54: 1 | M54: budova | N54: dřevěná | O54: sedlová | P54: plech | Q54: čistička | R54: potrubí p.p.850,364,351/1,354,353/2 | S54: 2 | T54: ne | U54: RHP, 2x vnější hydrant, požární nádrž | V54: audiotelefon a CCTV u vchodu areálu, centrální klíče se vstupním oprávněním, oplocení | W54: ano | X54: světlíky / dřevěné | Y54: vzrostlé stromy | Z54: 1306803
D55: bez č.p. | E55: Lanškroun | F55: 56301 | G55: 919 | H55: 4700 | J55: 800 | K55: Pardubický kraj | M55: bazén | N55: beton, plast | O55: bazénové zastřešení | P55: plast v kovovém rámu | Q55: krytý bazén | R55: filtrační zařízení vody | S55: 1 | T55: zásobník chlóru (minimální množství) | U55: 2x vnější hydrant, požární nádrž | V55: audiotelefon a CCTV u vchodu areálu, centrální klíče se vstupním oprávněním, oplocení | W55: sezónní využití | X55: ne / plastové v kovovém rámu | Y55: vzrostlé stromy | Z55: 4181758
D56: bez č.p. | E56: Lanškroun | F56: 56301 | G56: 117 | H56: 4700 | I56: 71 | J56: 240 | K56: Pardubický kraj | L56: 1 | M56: garáž | N56: zděná | O56: sedlová | P56: plech | Q56: garáže | R56: ne | S56: 1 | T56: minimální množství PHM | U56: RHP, 2x vnější hydrant, požární nádrž | V56: audiotelefon a CCTV u vchodu areálu, centrální klíče se vstupním oprávněním, oplocení | W56: ano | X56: skleněná s plastovým rámem / zásuvná vrata | Y56: minimální | Z56: 1254530
D57: bez č.p. | E57: Lanškroun | F57: 56301 | G57: 66 | H57: 4700 | J57: 250 | K57: Pardubický kraj | L57: 1 | M57: budova | N57: zděná | O57: plochá | P57: střešní fólie | Q57: přečerpací stanice | R57: strojní vybavení - čepradlo | S57: 2 | T57: ne | U57: RHP, 2x vnější hydrant, požární nádrž | V57: audiotelefon a CCTV u vchodu areálu, centrální klíče se vstupním oprávněním, oplocení | W57: ano | X57: prosklení / plechové | Y57: minimální | Z57: 1306803
D58: bez č.p. | E58: Lanškroun | F58: 56301 | G58: 118 | H58: 4700 | I58: 605 | J58: 8383 | K58: Pardubický kraj | L58: 1, 2 | M58: budova | N58: zděná | O58: sedlová | P58: plech | Q58: ubytovna, kuchyně, jídelna | R58: gastro-technologie | S58: 1 | T58: ne | U58: protipožární dveře, RHP, vnitřní a 2x vnější hydrant, požární nádrž | V58: audiotelefon a CCTV u vchodu areálu, centrální klíče se vstupním oprávněním, oplocení | W58: ano | X58: skleněná s plastovým rámem / dřevěné s prosklením | Y58: minimální | Z58: 43819701
D59: bez čp. | E59: Lanškroun | F59: 56301 | G59: 119 | H59: 4700 | J59: 300 | K59: Pardubický kraj | L59: 1 | M59: přístřešek | N59: zděná | O59: valbová | P59: plech | Q59: altán k terapeutické zahradě | R59: ne | S59: 1 | T59: ne | U59: 2x vnější hydrant, požární nádrž | V59: audiotelefon a CCTV u vchodu areálu, centrální klíče se vstupním oprávněním, oplocení | W59: ano | X59: ne | Y59: vzrostlé stromy | Z59: 1568163
A60: 8 | B60: Domov na zámku Bystré | C60: 75007932 | D60: Zámecká 1 | E60: Bystré | F60: 56992 | G60: 1 | H60: 5400 | I60: 2100 | J60: 35128 | K60: Pardubický kraj | L60: 2 | M60: budova | N60: zděná | O60: sedlová | P60: eternit | Q60: administrativa, ubytování, speciální ZŠ | R60: ne | S60: 1 | T60: ne | U60: pasivní hlásič, RHP | V60: pasivní hlásič | W60: ano | X60: skleněná s dřevěným rámem / dřevěné | Y60: vzrostlé stromy, vandalismus | Z60: 206875818
D61: Zámecká 196 | E61: Bystré | F61: 56992 | G61: 3/1 | H61: 4700 | I61: 444 | J61: 4900 | K61: Pardubický kraj | L61: 2 | M61: budova | N61: zděná | O61: sedlová | P61: střešní tašky | Q61: ubytování | R61: solární panely | S61: 1 | T61: ne | U61: pasivní hlásič, RHP | V61: pasivní hlásič | W61: ano | X61: skleněná s dřevěným rámem / dřevěné s prosklením | Y61: vzrostlé stromy, vandalismus | Z61: 28857080
D62: bez č.p. | E62: Bystré | F62: 56992 | G62: 4/1 | H62: 4700 | I62: 562 | J62: 4800 | K62: Pardubický kraj | L62: 1 | M62: budova | N62: zděná | O62: sedlová | P62: eternit | Q62: hospodářská budova,dílny,prádelny,stání pro auta | R62: prádelna | S62: 3 | T62: ne | U62: pasivní hlásič, RHP | V62: pasivní hlásič | W62: ano | X62: skleněná s dřevěným rámem / dřevěné | Y62: vzrostlý strom, vandalismus | Z62: 28268160
D63: Zámecká 192 | E63: Bystré | F63: 56992 | G63: 5 | H63: 4700 | I63: 88 | J63: 980 | K63: Pardubický kraj | L63: 1 | M63: budova | N63: zděná | O63: sedlová | P63: eternit | Q63: administrativní budova | R63: ne | S63: 2 | T63: ne | U63: pasivní hlásič, RHP | V63: pasivní hlásič, částečně okenní mříže | W63: ano | X63: skleněná s dřevěným rámem / dřevěné | Y63: vzrostlé stromy, vandalismus | Z63: 5771416
D64: Na Podkově 7 | E64: Bystré | F64: 56992 | G64: 234 | H64: 5400 | I64: 243 | J64: 2900 | K64: Pardubický kraj | L64: 2 | M64: budova | N64: zděná | O64: sedlová | P64: střešní tašky | Q64: ubytování, garáž | R64: ne | S64: 1 | T64: ne | U64: pasivní hlásič, RHP | V64: pasivní hlásič | W64: ano | X64: skleněná s dřevěným rámem / dřevěné s prosklením | Y64: vandalismus | Z64: 17078680
D65: Vrchlického 188 | E65: Bystré | F65: 56992 | G65: 376 | H65: 5400 | I65: 194 | J65: 1500 | K65: Pardubický kraj | L65: 2 | M65: budova | N65: zděná | O65: valbová | P65: střešní tašky | Q65: ubytování | R65: žádná | S65: 1 | T65: žádné | U65: pasivní hlásič, RHP | V65: pasivní hlásič, zadní část objektu oplocena | W65: ano | X65: skleněná s plastovým rámem / plastové | Y65: vodní toky, vandalismus | Z65: 8833800
D66: č.p. 198 | E66: Bystré | F66: 56992 | G66: 7 | H66: 5400 | I66: 420 | J66: 2520 | K66: Pardubický kraj | L66: 2 | M66: budova | N66: zděná | O66: sedlová | P66: střešní tašky | Q66: kavárna, administrativa, ubytovna, dílny | R66: ne | S66: 1 | T66: ne | U66: pasivní hlásič, RHP | V66: pasivní hlásič, oplocení objektu | W66: ano | X66: skleněná s plastovým rámem / plastové s prosklením | Y66: minimální | Z66: 14840784
A67: 9 | B67: Poradna pro rodinu Pardubického kraje | C67: 75064006 | D67: Mozartova 449 | E67: Pardubice | F67: 530 09 | G67: 6872 | H67: 4700 | I67: 5207 | K67: budova ve výpůjčce od Gymnázia Mozartova 449 | L67: 2, 3 | M67: budova | N67: zděná | O67: plochá | P67: střešní fólie | Q67: poradna | R67: ne | S67: 2 | T67: ne | U67: hydrant, RHP | V67: EZS | W67: ano | X67: skleněná s dřevěným rámem / kovové s prosklením | Y67: vandalismus, vzrostlé stromy
D68: Školní nám. 11 | E68: Chrudim | F68: 537 01 | G68: 666/1 | I68: 1007 | K68: v majetku města | L68: 2 | M68: budova | N68: zděná | O68: valbová | P68: plechová | Q68: rodinná a manželská poradna | R68: ne | S68: 3 | T68: ne | U68: standartní (RHP) | V68: minimální | W68: ano | X68: skleněná s dřevěným rámem / dřevěné s prosklením | Y68: vandalismus
D69: Na Pláni 1343 | E69: Ústí nad Orlicí | F69: 56206 | G69: 2844 | I69: 1240 | K69: v majetku ČR - ÚZSVM | L69: 8 | M69: budova | N69: zděná | O69: pultová | P69: střešní fólie | Q69: rodinná a manželská poradna | R69: ne | S69: 2 | T69: ne | U69: standartní (RHP) | V69: minimální | W69: ano | X69: skleněná s plastovým rámem / kovové s prosklením | Y69: vandalismus
D70: Riegrova 2063/11 | E70: Svitavy | F70: 56802 | Q70: rodinná a manželská poradna | Z70: budova ve výpujčce Pardubického kraje
D71: Slezská 514 | E71: Chrudim | F71: 53705 | G71: 1962 | I71: 138 | K71: v majetku fyzické osoby | L71: 2 | M71: budova | N71: zděná | O71: valbová | P71: pálená taška | Q71: rodinná a manželská poradna | R71: ne | S71: 3 | T71: ne | U71: standartní (RHP) | V71: minimální (oplocení objektu) | W71: ano | X71: skleněná s dřevěným rámem / dřevěné s prosklením | Y71: vzrostlé stromy
D72: Řestoky 90 | E72: Chrast | F72: 53851 | G72: 94 | I72: 198 | K72: v majetku fyzické osoby | L72: 1 | M72: budova | N72: zděná | O72: sedlová | P72: šindel | Q72: rodinný dům | R72: ne | S72: v rekonstrukci | T72: ne | U72: standartní | V72: minimální (oplocení objektu) | W72: ano | X72: skleněná s plastovým rámem / dřevěné | Y72: minimální

Sheet KRAJSKÝ ÚŘAD Pk
A1: V. KRAJSKÝ ÚŘAD PARDUBICKÉHO KRAJE
A3: č. | B3: Název dle zřizovací listiny | C3: IČ | D3: Adresa místa pojištění | G3: Parc. | I3: Zastavěná plocha (m2) | J3: Obestavěný | K3: Vlastník | L3: Počet | M3: Typ | N3: Nosná | O3: Typ | P3: Krytina | Q3: Provozní | R3: Technologie | S3: Celkový | T3: Nebezpečné | U3: Zabezpečení | V3: Zabezpečení | W3: Trvale | X3: Okna / dveře | Y3: Vnější | Z3: Pojistná částka - nová
D4: Ulice/č.p. | E4: Místo | F4: PSČ | G4: číslo | J4: prostor (m3) | K4: nemovitosti | L4: podlaží | M4: budovy | N4: konstrukce | O4: střechy | P4: střechy | Q4: účel stavby | S4: stav (1-5) | T4: látky | U4: protipožární | V4: proti krádeži | W4: využíváno | Y4: nebezpečí | Z4: hodnota nemovitosti
A5: =+A4+1 -> 1 | B5: Krajský úřad Pardubického kraje | C5: 70892822 | D5: Komenského nám. 125 | E5: Pardubice | F5: 53211 | G5: 902 | H5: 4900 | I5: 1204 | J5: 22800 | K5: Pardubický kraj | L5: 3 | M5: budova | N5: zděná | O5: sedlová | P5: střešní tašky | Q5: kanceláře krajského úřadu | R5: ne | S5: 1 | T5: ne | U5: EPS, RHP | V5: EZS, kamerový systém | W5: ano | X5: skleněná s dřevěným rámem / dřevěné s prosklením | Y5: vandalismus | Z5: 109804800
D6: Nám. Republiky 12 | E6: Pardubice | F6: 53211 | G6: 2207 | H6: 4900 | I6: 2571 | J6: 61500 | K6: Pardubický kraj | L6: 2, 5 | M6: budova | N6: zděná | O6: valbová | P6: plech | Q6: kanceláře magistrátu města Pardubic | R6: ne | S6: 1 | T6: ne | U6: standartní (RHP) | V6: EZS (1.PP,1.NP,2.NP, a 4.NP doplňkově),kamerový systém | W6: ano | X6: skleněná s dřevěným rámem / dřevěné s prosklením | Y6: vandalismus | Z6: 296284000
D7: Jahnova 127 | E7: Pardubice | F7: 53211 | G7: 1473 | H7: 4900 | I7: 848 | J7: 17000 | K7: Pardubický kraj | L7: 3 | M7: budova | N7: zděná | O7: sedlová | P7: střešní tašky | Q7: kanceláře krajského úřadu | R7: ne | S7: 1 | T7: ne | U7: EPS, RHP | V7: EZS, kamerový systém | W7: ano | X7: skleněná s dřevěným rámem / dřevěné s prosklením | Y7: vandalismus | Z7: 81972000
D8: Klášterní 124 | E8: Pardubice | F8: 53211 | G8: 94/2 | H8: 4900 | I8: 261 | J8: 7200 | K8: Pardubický kraj | L8: 3 | M8: budova | N8: zděná | O8: sedlová | P8: střešní tašky | Q8: kanceláře krajského úřadu | R8: ne | S8: 1 | T8: ne | U8: EPS, RHP | V8: EZS, kamerový systém | W8: ano | X8: skleněná s dřevěným rámem / dřevěné s prosklením | Y8: vandalismus | Z8: 34675200
D9: Karla IV. 2749 | E9: Pardubice | F9: 53211 | G9: 10266 | H9: 4900 | I9: 2097 | J9: 24500 | K9: Pardubický kraj | L9: 6 | M9: budova | N9: železobeton | O9: plochá | P9: střešní fólie | Q9: parkovací dům | R9: ne | S9: 1 | T9: ne | U9: standartní (RHP) | V9: kamerový systém | W9: ano | X9: skleněná s kovovým rámem / kovové s prosklením | Y9: vandalismus | Z9: 117992000
D10: Komenského nám. 120 | E10: Pardubice | F10: 53211 | G10: 95 | H10: 11000 | I10: 1374 | J10: 18700 | K10: Pardubický kraj | L10: 3 | M10: budova | N10: zděná | O10: valbová | P10: střešní tašky | Q10: kanceláře krajského úřadu | R10: klimatizace | S10: 1 | T10: ne | U10: EPS, RHP | V10: EZS, kamerový systém | W10: ano | X10: skleněná s dřevěným rámem / dřevěné s prosklením | Y10: vandalismus | Z10: 90159200

Sheet List1
A1: Celk plocha | B1: (Vše)
B3: Druh
A4: Název dle zřizovací listiny | B4: KÚ | C4: Kult | D4: Soc | E4: Škol | F4: Zdrav | G4: (Prázdné) | H4: Celkový součet
A6: Albertinum, odborný léčebný ústav, Žamberk
A7: Centrum celoživotního vzdělávání-zařízení pro další vzdělávání pedagog. pracovníků Pk
A8: Dětské centrum Veská
A9: Dětský domov Dolní Čermná
A10: Dětský domov Holice, Husova 623
A11: Dětský domov Horní Čermná 188
A12: Dětský domov Moravská Třebová
A13: Dětský domov Pardubice
A14: Dětský domov Polička
A15: Dětský domov pro děti od 1 do 3 let Holice
A16: Domov mládeže a školní jídelna Pardubice
A17: Domov mládeže a školní jídelna Vysoké Mýto
A18: Domov na hradě Rychmburk
A19: Domov na rozcestí Svitavy
A20: Domov na zámku Bystré
A21: Domov pod hradem Žampach
A22: Domov pod Kuňkou
A23: Domov sociálních služeb Slatiňany
A24: Domov u fontány
A25: Domov u studánky
A26: Gymnázium a Jazyková škola s právem státní jazykové zkoušky Svitavy
A27: Gymnázium a Střední odborná škola Přelouč
A28: Gymnázium Aloise Jiráska, Litomyšl, T. G. Masaryka 590
A29: Gymnázium Dr. Emila Holuba, Holice, Na Mušce 1110
A30: Gymnázium Josefa Ressela, Chrudim, Olbrachtova 291
A31: Gymnázium K. V. Raise, Hlinsko, Adámkova 55
A32: Gymnázium Vysoké Mýto
A33: Gymnázium, Česká Třebová, Tyršovo náměstí 970
A34: Gymnázium, Jevíčko, A. K. Vitáka 452
A35: Gymnázium, Lanškroun, nám. Jana Marka Marků 113
A36: Gymnázium, Moravská Třebová, Svitavská 310
A37: Gymnázium, Pardubice, Dašická 1083
A38: Gymnázium, Pardubice, Mozartova 449
A39: Gymnázium, Polička, Nábřeží svobody 306
A40: Gymnázium, Ústí nad Orlicí , T. G. Masaryka 106
A41: Gymnázium, Žamberk, Nádražní 48
A42: Chrudimská nemocnice, a.s.
A43: Integrovaná střední škola Moravská Třebová
A44: Integrovaná střední škola technická, Vysoké Mýto, Mládežnická 380
A45: Kojenecký ústav a dětský domov Svitavy
A46: Konzervatoř, Pardubice, Sukova třída 1260
A47: Krajská knihovna v Pardubicích
A48: Krajský úřad Pardubického kraje
A49: Léčebna dlouhodobě nemocných Rybitví
A50: Litomyšlská nemocnice, a.s.
A51: Nemocnice následné péče Moravská Třebová
A52: Obchodní akademie a Jazyková škola s právem státní jazykové zkoušky, Pardubice, Štefánikova 325
A53: Obchodní akademie a Střední odborná škola cestovního ruchu Choceň
A54: Obchodní akademie a Vyšší odborná škola ekonomická, Svitavy, T. G. Masaryka 47
A55: Obchodní akademie, Chrudim, Tyršovo náměstí 250
A56: Odborné učiliště Chroustovice, Zámek 1
A57: Odborný léčebný ústav Jevíčko
A58: Orlickoústecká nemocnice, a.s.
A59: Pardubice krajská nemocnice, a.s.
A60: Pedagogicko-psychologická poradna Pardubice
A61: Pedagogicko-psychologická poradna, Ústí nad Orlicí, Královéhradecká 513
A62: Poradna pro rodinu Pardubického kraje
A63: Průmyslová střední škola Letohrad
A64: Regionální muzeum v Chrudimi
A65: Regionální muzeum v Litomyšli
A66: Regionální muzeum ve Vysokém Mýtě
A67: Rehabilitační ústav Brandýs nad Orlicí
A68: Speciální mateřská škola,základní škola a praktická škola Pardubice
A69: Speciální střední škola a základní škola Žamberk, Tyršova 214
A70: Speciální základní škola a mateřská škola Litomyšl
A71: Speciální základní škola a mateřská škola Ústí nad Orlicí
A72: Speciální základní škola Bystré
A73: Speciální základní škola Chrudim
A74: Speciální základní škola Skuteč
A75: Speciální základní škola Svitavy
A76: Speciální základní škola Vysoké Mýto
A77: Speciální základní škola, mateřská škola a praktická škola Moravská Třebová
A78: Sportovní gymnázium, Pardubice, Dašická 268
A79: Střední odborná škola a Střední odborné učiliště Lanškroun
A80: Střední odborná škola a Střední odborné učiliště obchodu a služeb, Chrudim, Čáslavská 205
A81: Střední odborná škola a Střední odborné učiliště technické, Třemošnice, Sportovní 322
A82: Střední odborná škola a střední odborné učiliště, Polička, Čs. armády 485
A83: Střední odborná škola elektrotechnická a strojní a Střední odborné učiliště, Pardubice, Do Nového 1131
A84: Střední odborné učiliště opravárenské, Králiky, Předměstí 427
A85: Střední odborné učiliště plynárenské Pardubice
A86: Střední odborné učiliště Svitavy
A87: Střední odborné učiliště zemědělské, Chvaletice, Žižkova 139
A88: Střední průmyslová škola elektrotechnická a Vyšší odborná škola, Pardubice, Karla IV. 13
A89: Střední průmyslová škola chemická Pardubice
A90: Střední průmyslová škola Chrudim
A91: Střední průmyslová škola stavební Pardubice
A92: Střední škola automobilní Holice
A93: Střední škola automobilní Ústí nad Orlicí
A94: Střední škola chovu koní a jezdectví Kladruby nad Labem
A95: Střední škola obchodu, řemesel a služeb Žamberk
A96: Střední škola potravinářství a služeb Pardubice
A97: Střední škola umělecko průmyslová Ústí nad Orlicí
A98: Střední škola zahradnická a technická Litomyšl
A99: Střední škola zdravotnická a sociální Chrudim
A100: Střední škola zemědělská a veterinární Lanškroun
A101: Střední škola zemědělská a VOŠ Chrudim
A102: Střední zdravotnická škola, Pardubice, Průmyslová 395
A103: Střední zdravotnická škola, Svitavy, Purkyňova 256
A104: Střední zdravotnická škola, Ústí nad Orlicí, Smetanova 838
A105: Svitavská nemocnice, a.s.
A106: Východočeská galerie v Pardubicích
A107: Východočeské muzeum v Pardubicích
A108: Vysokomýtská nemocnice
A109: Vyšší odborná škola a Střední škola technická Česká Třebová
A110: Vyšší odborná škola pedagogická a Střední pedagogická škola, Litomyšl, Komenského nám. 22
A111: Vyšší odborná škola stavební a Střední škola stavební Vysoké Mýto
A112: Základní škola a Mateřská škola při Hamzově odborné léčebně pro děti a dospělé Luže, Košumberk 37
A113: Základní škola Lanškroun, nám. A. Jiráska 140
A114: Základní škola praktická a základní škola speciální Králíky
A115: Základní škola praktická Česká Třebová
A116: Základní škola speciální Lanškroun, Olbrachtova 206
A117: Zdravotnická záchranná služba Pardubického kraje
A118: (Prázdné)
A119: Celkový součet

Sheet Souhrn
A2: č. | B2: Název dle zřizovací listiny | C2: IČ | D2: Adresa místa pojištění | G2: Parc. | I2: Zastavěná plocha (m2) | J2: Obestavěný | K2: Vlastník | L2: Počet | M2: Celková | N2: Typ | O2: Nosná | P2: Typ | Q2: Krytina | R2: Provozní | S2: Technologie | T2: Celkový | U2: Nebezpečné | V2: Zabezpečení | W2: Zabezpečení | X2: Trvale | Y2: Okna / dveře | Z2: Vnější | AA2: Pojistná částka - nová
D3: Ulice/č.p. | E3: Místo | F3: PSČ | G3: číslo | J3: prostor (m3) | K3: nemovitosti | L3: podlaží | M3: plocha(m2) | N3: budovy | O3: konstrukce | P3: střechy | Q3: střechy | R3: účel stavby | T3: stav (1-5) | U3: látky | V3: protipožární | W3: proti krádeži | X3: využíváno | Z3: nebezpečí | AA3: hodnota nemovitosti | AB3: Druh
A4: č. | B4: Název dle zřizovací listiny | C4: Ič | D4: Ulice/č.p. | E4: Místo | F4: PSČ | G4: Parc. | H4: Sloupec1 | I4: Zastavěná plocha (m2) | J4: Obestavěný prostor | K4: Vlastník | L4: Podlaží | M4: Celk plocha | N4: Typ budovy | O4: Nosná konstrukce | P4: Typ Střechy | Q4: Kyrtina | R4: Provozní účel | S4: Technologie | T4: Stav(1-5) | U4: Nebezpečné látky | V4: Protipožární zabezpačení | W4: Zabezpečení krádež | X4: Trvale užíváno | Y4: Okna / dveře | Z4: Vnější nebezpečí | AA4: Pojistná částka - nová | AB4: Druh
A5: 1 | B5: Centrum celoživotního vzdělávání-zařízení pro další vzdělávání pedagog. pracovníků Pk | C5: 75061074 | D5: Mozartova 449 | E5: Pardubice | F5: 53002 | G5: 6872 | H5: 4300 | I5: 5207 | K5: Pardubický kraj | L5: 3 | N5: budova | O5: zděná | P5: plochá | Q5: střešní folie | R5: centrum vzdělávání - pronajaté prostory školy | S5: ne | T5: 2 | U5: ne | V5: RHP, hydranty | W5: EZS | X5: ano | Y5: skleněná s dřevěným rámem / kovové s prosklením | Z5: vandalismus | AA5: budova pojištěna - Gymnázium Pardubice, Mozartova 449 | AB5: Škol
A6: 2 | B6: Dětský domov Dolní Čermná | C6: 70857717 | D6: č.p.74 | E6: Dolní Čermná | F6: 56153 | G6: 323 | H6: 4300 | I6: 344 | J6: 5100 | K6: Pardubický kraj | L6: 2 | M6: =L6*I6 -> 688 | N6: budova | O6: betonový základ, zděná | P6: sedlová | Q6: lepenka | R6: dětský domov | S6: gastro-technologie, klimatizace, vzduchotechnika - kuchyně | T6: 1 | U6: ne | V6: vnitřní hydrant, RHP | W6: EZS, oplocení objektu | X6: ano | Y6: skleněná s plastovým rámem / plastové s prosklením | Z6: minimální | AA6: 24561600 | AB6: Škol
G7: 1052 | H7: 4300 | I7: 460 | J7: 3042 | K7: Pardubický kraj | L7: 1 | M7: =L7*I7 -> 460 | N7: budova | O7: zděná | P7: valbová | Q7: šindel | R7: dětský domov, rodinná buňka | S7: ne | T7: 1 | U7: ne | V7: standartní (RHP) | W7: stálá přítomnost zaměstnanců | X7: ano | Y7: skleněná s plastovým rámem / plastové s prosklením | Z7: minimální | AA7: 14650272 | AB7: Škol
G8: 1053 | H8: 4300 | I8: 259 | J8: 1645 | K8: Pardubický kraj | L8: 1 | M8: 259 | N8: budova | O8: zděná | P8: valbová | Q8: šindel | R8: administrativní budova | S8: klimatizace | T8: 1 | U8: ne | V8: standartní (RHP) | W8: EZS, oplocení objektu | X8: ano | Y8: skleněná s plastovým rámem / plastové s prosklením | Z8: minimální | AA8: 7922320 | AB8: Škol
A9: =+A6+1 -> 3 | B9: Dětský domov Holice, Husova 623 | C9: 48159638 | D9: Husova 623 | E9: Holice | F9: 534 11 | G9: 392/1 | H9: 5400 | I9: 780 | J9: 3756 | K9: Pardubický kraj | L9: 2 | M9: 1560 | N9: budova | O9: zděná | P9: valbová, sedllová | Q9: pálená taška | R9: administrativní budova,dětský domov,posilovna a dílny | S9: ne | T9: 1 | U9: ne | V9: RHP, vnitřní hydrant, protipožární dveře | W9: EZS | X9: ano | Y9: skleněná s plastovým rámem / plastové s prosklením | Z9: vzrostlý strom | AA9: 20971232 | AB9: Škol
D10: bez č.p. | E10: Holice | F10: 534 11 | G10: 392/3 | H10: 4300 | I10: 41 | J10: 102 | K10: Pardubický kraj | L10: 1 | M10: 41 | N10: garáž | O10: zděná | P10: pultová | Q10: střešní folie | R10: garáž | S10: ne | T10: 1 | U10: ne | V10: standartní (RHP) | W10: minimální(oplocení areálu) | X10: ano | Y10: skleněná s dřevěným rámem / plechová vrata | Z10: minimální | AA10: 569506 | AB10: Škol
D11: Husova 378 | E11: Holice | F11: 534 11 | G11: 393/1 | H11: 4300 | I11: 352 | J11: 2022 | K11: Pardubický kraj | L11: 1 | M11: 352 | N11: budova | O11: zděná | P11: sedlová | Q11: plech,střešní tašky | R11: kuchyně,jidelna dětského domova | S11: gastro-technologie, vzduchotechnika | T11: 2 | U11: ne | V11: RHP, vnitřní hydrant | W11: EZS | X11: ano | Y11: skleněná s dřevěným rámem / dřevěné s prosklením | Z11: minimální | AA11: 11289625 | AB11: Škol
D12: bez č.p. | E12: Holice | F12: 534 11 | G12: 391/5,391/6 | H12: 4300 | J12: 150 | K12: Pardubický kraj | M12: 0 | O12: dřevěná | R12: dětské hřiště | S12: ne | T12: 2 | U12: ne | V12: ne | W12: plocení areálu | X12: ano | Y12: ne | Z12: minimální | AA12: 837509 | AB12: Škol
A13: =+A9+1 -> 4 | B13: Dětský domov Horní Čermná 188 | C13: 70857695 | D13: č.p.188 | E13: Horní Čermná | F13: 56156 | G13: 117/2 | H13: 4300 | I13: 700 | J13: 3080 | K13: Pardubický kraj | L13: 2 | M13: 1400 | N13: budova | O13: zděná | P13: valbová | Q13: eternit | R13: dětský domov | S13: ne | T13: 2 | U13: ne | V13: vnitřní hydrant, RHP | W13: stálá přítomnost zaměstnanců, zámek FAB | X13: ano | Y13: skleněná s plastovým rámem / dřevěné s prosklením | Z13: vandalismus | AA13: 14833280 | AB13: Škol
A14: =+A13+1 -> 5 | B14: Dětský domov Moravská Třebová | C14: 63609177 | D14: J. K. Tyla 570/65 | E14: Moravská Třebová | F14: 57101 | G14: 2650 | H14: 4300 | I14: 199 | J14: 3250 | K14: Pardubický kraj | L14: 3 | M14: 597 | N14: budova | O14: zděná | P14: sedlová | Q14: plechová | R14: dětský domov | S14: ne | T14: 2 | U14: ne | V14: standartní (RHP) | W14: bezpečnostní zámek vchodových dveří, oplocení areálu | X14: ano | Y14: skleněná s plastovým rámem / plastové | Z14: vzrostlý strom,vandalismus | AA14: 15652500 | AB14: Škol
D15: bez č.p. | E15: Moravská Třebová | F15: 57101 | G15: 2651 | H15: 4300 | I15: 100 | J15: 710 | K15: Pardubický kraj | L15: 2 | M15: 200 | N15: budova | O15: zděná | P15: pultová | Q15: plechová | R15: technické zázemí dětského domova, kancelář | S15: ne | T15: 2 | U15: ne | V15: standartní (RHP) | W15: bezpečnostní zámek dveří a bezpečnostní skla oken, oplocení areálu | X15: ano | Y15: skleněná s plastovým rámem / plastové se skleněnou výplní | Z15: minimální | AA15: 3418860 | AB15: Škol
A16: =+A14+1 -> 6 | B16: Dětský domov Pardubice | C16: 48160865 | D16: Ke Tvrzi 235 | E16: Pardubice | F16: 530 03 | G16: 1100 | H16: 4300 | I16: 702 | J16: 4914 | K16: Pardubický kraj | L16: 2 | M16: 1404 | N16: budova | O16: zděná | P16: sedlová | Q16: pálená taška | R16: děstský domov | S16: gastro-technologie | T16: 2 | U16: ne | V16: standartní (RHP) | W16: oplocení areálu(vstup uzamčen-domovní audiotelefon) | X16: ano | Y16: skleněná s dřevěným rámem / dřevěné s prosklením | Z16: vzrostlé stromy | AA16: 23665824 | AB16: Škol
D17: bez č.p. | E17: Pardubice | F17: 530 03 | G17: 10070 | H17: 4300 | I17: 80 | J17: 240 | K17: Pardubický kraj | L17: 1 | M17: 80 | N17: budova | O17: dřevěná | P17: sedlová | Q17: šindel | R17: garáž, sklad, kolárna | S17: žádná | T17: 2 | U17: ne | V17: standartní (RHP) | W17: oplocení areálu(vstup uzamčen-domovní audiotelefon) | X17: ano | Y17: skleněná s dřevěným rámem / dřevěné | Z17: vzrostlé stromy | AA17: 1155840 | AB17: Škol
A18: =+A16+1 -> 7 | B18: Dětský domov Polička | C18: 63609291 | D18: A. Lidmilové 505 | E18: Polička | F18: 57201 | G18: 1244 | H18: 4300 | I18: 245 | J18: 3456 | K18: Pardubický kraj | L18: 2 | M18: 490 | N18: budova | O18: zděná | P18: valbová | Q18: plech | R18: dětský domov | S18: ne | T18: 2 | U18: ne | V18: standartní (RHP) | W18: stálá přítomnost zaměstnanců | X18: ano | Y18: skleněná s dřevěným rámem / dřevěné s prosklením | Z18: vandalismus | AA18: 16644096 | AB18: Škol
A19: =+A18+1 -> 8 | B19: Domov mládeže a školní jídelna Pardubice | C19: 48161071 | D19: Rožkova 331 | E19: Pardubice | F19: 530 02 | G19: 3773 | H19: 4300 | I19: 1037 | J19: 13447 | K19: Pardubický kraj | L19: 4 | M19: 4148 | N19: budova | O19: zděná | P19: valbová | Q19: plech | R19: ředitelství | S19: ne | T19: 2 | U19: ne | V19: EPS, RHP | W19: EZS, oplocena zadní část objektu | X19: ano | Y19: skleněná s plastovým rámem / plastové s prosklením | Z19: vandalismus | AA19: 64760752 | AB19: Škol
D20: Rožkova 2432 | E20: Pardubice | F20: 530 02 | G20: 5084 | H20: 4300 | I20: 917 | J20: 14960 | K20: Pardubický kraj | L20: 4 | M20: 3668 | N20: budova | O20: zděná | P20: valbová | Q20: plech | R20: domov mládeže | S20: ne | T20: 2 | U20: ne | V20: standartní (RHP) | W20: minimální(oplocena zadní část objektu) | X20: ano | Y20: skleněná s plastovým rámem / kovové s prosklením | Z20: vzrostlé stromy | AA20: 72047360 | AB20: Škol
D21: Gorkého 350 | E21: Pardubice | F21: 530 02 | G21: 5083 | H21: 4300 | I21: 2800 | J21: 31310 | K21: Pardubický kraj | L21: 4 | M21: 11200 | N21: budova | O21: zděná | P21: valbová | Q21: střešní tašky | R21: domov mládeže a školní jídelna | S21: gastro-technologie,klimatizace | T21: 1 | U21: ne | V21: EPS, RHP | W21: EZS, oplocena zadní část objedktu | X21: ano | Y21: skleněná s plastovým rámem / plastové se skleněnou výplní | Z21: vzrostlé stromy | AA21: 150788960 | AB21: Škol
A22: =+A19+1 -> 9 | B22: Domov mládeže a školní jídelna Vysoké Mýto | C22: 49314688 | D22: Gen. Závady 118 | E22: Vysoké Mýto | F22: 56601 | G22: 1214/2 | H22: 4300 | I22: 1527 | J22: 13625 | K22: Pardubický kraj | L22: 3 | M22: 4581 | N22: budova | O22: zděná | P22: plochá | Q22: střešní folie | R22: škola, ubytovna, kuchyň, jídelna | S22: gastro-technologie | T22: 2 | U22: ne | V22: RHP, vnitřní hydranty, protipožární dveře | W22: minimální | X22: ano | Y22: skleněná s plastovým rámem / kovové s prosklením | Z22: vandalismus | AA22: 67169928 | AB22: Škol
D23: bez č.p. | E23: Vysoké Mýto | F23: 56601 | G23: 1206/2 | H23: 4300 | I23: 1349 | J23: 7200 | K23: Pardubický kraj | L23: 1 | M23: 1349 | N23: hala | O23: zděná | P23: pultová | Q23: vlnitý plech | R23: sportovní hala | S23: ne | T23: 1 | U23: ne | V23: RHP, vnitřní hydrant | W23: minimální | X23: ano | Y23: skleněná s kovovým rámem / kovové s prosklením | Z23: vandalismus | AA23: 35495335 | AB23: Škol
D24: Gen. Závady 383 | E24: Vysoké Mýto | F24: 56601 | G24: 1222 | H24: 4700 | I24: 582 | J24: 7100 | K24: Pardubický kraj | L24: 2 | M24: 1164 | N24: budova | O24: zděná | P24: valbová | Q24: břidlice | R24: domov mládeže | S24: ne | T24: v rekonstrukci | U24: ne | V24: standartní (RHP) | W24: minimální | X24: ne | Y24: skleněná s dřevěným rámem / dřevěná s prosklením | Z24: vandalismus | AA24: 35002337 | AB24: Škol
A25: 10 | B25: Gymnázium Aloise Jiráska, Litomyšl, T. G. Masaryka 590 | C25: 62032348 | D25: T. G. Masaryka 590 | E25: Litomyšl | F25: 57001 | G25: 875 | H25: 4300 | I25: 2207 | J25: 16519 | K25: Pardubický kraj | L25: 3 | M25: 6621 | N25: budova | O25: zděná | P25: valbová | Q25: střešní tašky | R25: škola | S25: ne | T25: 1 | U25: ne | V25: RHP, hydranty | W25: minimální (oplocení areálu) | X25: ano | Y25: skleněná s dřevěným rámem / dřevěné | Z25: minimální | AA25: 79555504 | AB25: Škol
G26: 875/5 | H26: 4300 | I26: 27 | J26: 108 | K26: Pardubický kraj | L26: 1 | M26: 27 | N26: budova | O26: zděná | P26: plochá | Q26: plech | R26: trafostanice | S26: ne | T26: 2 | U26: ne | V26: standartní (RHP) | W26: zadní část objektu oplocena, FAB, vicací zámky | X26: ano | Y26: plechová vrata | Z26: vandalismus | AA26: 520128 | AB26: Škol
A27: 11 | B27: Gymnázium, Česká Třebová, Tyršovo náměstí 970 | C27: 49314670 | D27: Tyršovo nám. 970 | E27: Česká Třebová | F27: 56002 | G27: 1046 | H27: 4300 | I27: 1840 | K27: v majetku města | L27: 3 | M27: 5520 | N27: budova | O27: zděná | P27: sedlová | Q27: šindel | R27: škola | S27: gastro-technologie | T27: 1 | U27: ne | V27: RHP, hydranty | W27: minimální (oplocení areálu) | X27: ano | Y27: skleněná s dřevěným rámem / dřevěná s prosklením | Z27: minimální | AB27: Škol
A28: 12 | B28: Gymnázium Dr. Emila Holuba, Holice, Na Mušce 1110 | C28: 48161101 | D28: Na Mušce 1110 | E28: Holice | F28: 534 01 | G28: 2020/55 | H28: 4300 | I28: 3045 | J28: 30450 | K28: Pardubický kraj | L28: 4 | M28: 12180 | N28: budova | O28: zděná | P28: plochá | Q28: střešní folie | R28: škola | S28: gastro-technologie | T28: 1 | U28: ne | V28: standartní (RHP) | W28: minimální (oplocení zadní části objektu) | X28: ano | Y28: skleněná s plastovým rámem / plastová s prosklením | Z28: vandalismus | AA28: 146676149 | AB28: Škol
D29: Oplocení sportoviště | E29: Holice | G29: 2011/1 | K29: Pardubický kraj | M29: 0 | O29: kovová | R29: oplocení sportoviště | T29: 2 | W29: minimální | Z29: vandalismus | AA29: 241243 | AB29: Škol
A30: 13 | B30: Gymnázium a Jazyková škola s právem státní jazykové zkoušky Svitavy | C30: 62033026 | D30: Sokolovská 1638 | E30: Svitavy | F30: 56802 | G30: 1744/1 | H30: 4300 | I30: 3400 | J30: 21736 | K30: Pardubický kraj | L30: 2 | M30: 6800 | N30: budova | O30: zděná | P30: pultová | Q30: plech | R30: škola, jídelna, kuchyně | S30: gastro-technologie,klimatizace | T30: 3 | U30: ne | V30: RHP, hydranty | W30: minimální | X30: ano | Y30: skleněná s dřevěnýma plastovým rámem / plastové s prosklením | Z30: vandalismus, vzrostlé stromy | AA30: 104680576 | AB30: Škol
D31: Pražská 2/2162 | E31: Svitavy | F31: 56802 | G31: 524/2 | H31: 4300 | I31: 3253 | J31: 20212 | K31: Pardubický kraj | L31: 1 | M31: 3253 | N31: hala | O31: želeobeton | P31: oblouková | Q31: střešní folie | R31: sportovní hala | S31: vzduchotechnika | T31: 1 | U31: ne | V31: standartní (RHP) | W31: minimální | X31: ano | Y31: skleněná s plastovým rámem / plastové s prosklením | Z31: vandalismus | AA31: 97340992 | AB31: Škol
A32: 14 | B32: Gymnázium, Jevíčko, A. K. Vitáka 452 | C32: 62032011 | D32: A. K. Vitáka 452 | E32: Jevíčko | F32: 56943 | G32: 322, 175/3 | H32: 4300 | I32: 1450 | J32: 21498 | K32: Pardubický kraj | L32: 3 | M32: 4350 | N32: budova | O32: zděná | P32: valbová | Q32: střešní tašky | R32: škola, sportovní hřiště | S32: ne | T32: 1 | U32: ne | V32: standartní (RHP) | W32: minimální | X32: ano | Y32: skleněná s dřevěným rámem / dřevěné s prosklením | Z32: vandalismus | AA32: 103534368 | AB32: Škol
D33: Nerudova 557 | E33: Jevíčko | F33: 56943 | G33: 507 | H33: 4300 | I33: 1320 | J33: 11200 | K33: Pardubický kraj | L33: 3 | M33: 3960 | N33: budova | O33: zděná | P33: plochá | Q33: střešní folie | R33: domov mládeže | S33: ne | T33: 2 | U33: ne | V33: standartní (RHP) | W33: minimální | X33: ano | Y33: skleněná s dřevěným rámem / dřevěné s prosklením | Z33: vandalismus | AA33: 53939200 | AB33: Škol
A34: 15 | B34: Gymnázium Josefa Ressela, Chrudim, Olbrachtova 291 | C34: 60103337 | D34: Olbrachtova 291 | E34: Chrudim | F34: 53701 | G34: 1025 | H34: 4300 | I34: 2065 | J34: 36126 | K34: Pardubický kraj | L34: 4 | M34: 8260 | N34: budova | O34: zděná | P34: valbová | Q34: plechová | R34: škola | S34: gastro-technologie, vzduchotechnika, klimatizace | T34: 3 | U34: minimální množství v laboratoři | V34: RHP, hydranty | W34: EZS, oplocení areálu | X34: ano | Y34: skleněná s dřevěným rámem / dřevěné | Z34: vandalismus | AA34: 173982816 | AB34: Škol
A35: 16 | B35: Gymnázium K. V. Raise, Hlinsko, Adámkova 55 | C35: 60103329 | D35: Adámkova 55 | E35: Hlinsko | F35: 53901 | G35: 452 | H35: 4300 | I35: 1430 | J35: 13600 | K35: Pardubický kraj | L35: 3 | M35: 4290 | N35: budova | O35: zděná | P35: sedlová | Q35: střešní tašky | R35: škola | S35: ne | T35: 2 | U35: ne | V35: RHP, hydranty | W35: minimální | X35: ano | Y35: skleněná s plastovým, dřevěným rámem / plastové s prosklením | Z35: vandalismus | AA35: 65497600 | AB35: Škol
D36: Čelakovského 469 | E36: Hlinsko | F36: 539 01 | G36: 445 | H36: 4300 | I36: 120 | J36: 1080 | K36: Pardubický kraj | L36: 2 | M36: 240 | N36: budova | O36: zděná | P36: sedlová | Q36: plech | R36: učebna jazyků | S36: ne | T36: 2 | U36: ne | V36: standartní (RHP) | W36: minimální | X36: ano | Y36: skleněná s dřevěným rámem / dřevěné s prosklením | Z36: vandalismus | AA36: 5201280 | AB36: Škol
A37: 17 | B37: Gymnázium, Lanškroun, nám. Jana Marka Marků 113 | C37: 49314653 | D37: nám. J. M. Marků 113 | E37: Lanškroun | F37: 56312 | G37: 85 | H37: 4300 | I37: 1095 | K37: v majetku města | L37: 3 | M37: 3285 | N37: budova | O37: zděná | P37: valbová | Q37: střešní tašky | R37: škola | S37: vzduchotechnika - sklepní prostory | T37: 2 | U37: ne | V37: RHP, hydrant | W37: minimální | X37: ano | Y37: skleněná s dřevěným rámem / dřevěné | Z37: vandalismus | AB37: Škol
A38: =+A37+1 -> 18 | B38: Gymnázium, Moravská Třebová, Svitavská 310 | C38: 62033131 | D38: Svitavská 310 | E38: Moravská Třebová | F38: 57101 | G38: 440/2 | H38: 4300 | I38: 1392 | J38: 12298 | K38: Pardubický kraj | L38: 4 | M38: 5568 | N38: budova | O38: zděná | P38: plochá, sedlová | Q38: střešní folie, plech | R38: škola | S38: ne | T38: 2 | U38: minimální množství chemických látek v laboratoři | V38: RHP, vnitřní hydranty, protipožární dveře | W38: minimální (oplocení objektu) | X38: ano | Y38: skleněná s plastovým rámem / plechové se skleněnou výplní | Z38: minimální | AA38: 59227168 | AB38: Škol
D39: Svitavská 310 | E39: Moravská Třebová | F39: 57101 | G39: 456 | H39: 4300 | I39: 550 | J39: 9360 | K39: Pardubický kraj | L39: 3 | M39: 1650 | N39: budova | O39: zděná | P39: valbová | Q39: plechová | R39: škola | S39: ne | T39: 3 | U39: minimální množství chemických látek v laboratoři | V39: RHP, vnitřní hydranty | W39: minimální (oplocení areálu) | X39: ano | Y39: skleněná s dřevěným rámem / dřevěné s prosklením | Z39: minimální | AA39: 45077760 | AB39: Škol
A40: =+A38+1 -> 19 | B40: Gymnázium, Pardubice, Dašická 1083 | C40: 48160989 | D40: Dašická 1083 | E40: Pardubice | F40: 530 03 | G40: 8083 | H40: 4300 | I40: 2521 | J40: 35750 | K40: Pardubický kraj | L40: 5 | M40: 12605 | N40: budova | O40: zděná | P40: pultová | Q40: střešní fólie | R40: učebny, tělocvična školy | S40: serverovna - klimatizace | T40: 2 | U40: ne | V40: vnitřní hydranty | W40: vstup na čipové karty, kamerový systém, videotelefon | X40: ano | Y40: skleněná s plastovým rámem / kovová s prosklením | Z40: vandalismus | AA40: 172172000 | AB40: Škol
D41: Dašická 1888 | E41: Pardubice | F41: 531 03 | G41: 10974 | I41: 1758 | J41: 11058 | K41: Pardubický kraj | L41: 1 | M41: 1758 | N41: hala | O41: želeobeton | P41: oblouková | Q41: střešní fólie | R41: sportovní hala | S41: vzduchotechnika | T41: 1 | U41: ne | V41: EPS, RHP | W41: minimální | X41: ano | Y41: skleněná s plastovým rámem / plastová s prosklením | Z41: vandalismus | AA41: 53258485 | AB41: Škol
D42: bez č.p. | E42: Pardubice | F42: 530 03 | G42: 8084 | H42: 4300 | I42: 990 | J42: 6930 | K42: Pardubický kraj | L42: 2 | M42: 1980 | N42: budova | O42: zděná | P42: plochá | Q42: střešní fólie | R42: školní jídelna, kuchyně | S42: gastro-technologie,klimatizace | T42: 3 | U42: ne | V42: standartní (RHP) | W42: kamerový systém | X42: ano | Y42: skleněná s plastovým rámem / plastové s prosklením | Z42: vandalismus, vzrostlé stromy | AA42: 33374880 | AB42: Škol
D43: bez č.p. | E43: Pardubice | F43: 530 03 | G43: 8085 | H43: 4300 | I43: 194 | J43: 776 | K43: Pardubický kraj | L43: 1 | M43: 194 | N43: budova | O43: zděná | P43: plochá | Q43: střešní fólie | R43: sklad | S43: ne | T43: 2 | U43: ne | V43: standartní (RHP) | W43: minimální (oplocení areálu) | X43: ano | Y43: skleněná s dřevěným rámeme / dřevěné | Z43: vzrostlé stromy | AA43: 3737216 | AB43: Škol
A44: 20 | B44: Gymnázium, Pardubice, Mozartova 449 | C44: 48161063 | D44: Mozartova 449 | E44: Pardubice | F44: 530 09 | G44: 6872 | H44: 4300 | I44: 5207 | J44: 21235 | K44: Pardubický kraj | L44: 3 | M44: 15621 | N44: budova | O44: zděná | P44: plochá | Q44: střešní fólie | R44: škola | S44: vzduchotechnika - kuchyně | T44: 2 | U44: minimální množství chemických látek v laboratoři | V44: RHP, hydranty | W44: EZS | X44: ano | Y44: skleněná s dřevěným rámem / kovové s prosklením | Z44: vandalismus | AA44: 102270578 | AB44: Škol
A45: 21 | B45: Gymnázium, Polička, Nábřeží svobody 306 | C45: 62032178 | D45: Nábřeží svobody 306 | E45: Polička | F45: 57201 | G45: 909, 3489 | H45: 4300 | I45: 1908 | J45: 21784 | K45: Pardubický kraj | L45: 3 | M45: 5724 | N45: budova | O45: zděná | P45: valbová | Q45: plech | R45: škola, tělocvična školy | S45: vzduchotechnika, klimatizace | T45: 1 | U45: minimální množství chemických látek ve skladu (pro laboratoř) | V45: RHP, hydranty | W45: bezpečnostní vchodové dveře, kódové zabezpečení dveří - učebna fyziky a PC | X45: ano | Y45: skleněná s dřevěným,plastovým rámem / dřevěné s prosklením | Z45: minimální | AA45: 178307584 | AB45: Škol
A46: 22 | B46: Gymnázium a Střední odborná škola Přelouč | C46: 72543159 | D46: Obránců míru 1025 | E46: Přelouč | F46: 535 01 | G46: 1044 | H46: 4300 | I46: 2182 | J46: 28417 | K46: Pardubický kraj | L46: 3 | M46: 6546 | N46: budova | O46: zděná | P46: valbová | Q46: střešní tašky | R46: učebny školy | S46: ne | T46: 3 | U46: ne | V46: RHP, hydranty | W46: EZS | X46: ano | Y46: skleněná s dřevěným rámem / dřevěné s prosklením | Z46: vandalismus | AA46: 137443824 | AB46: Škol
D47: bez č.p. | E47: Přelouč | F47: 535 01 | G47: 1946 | I47: 46 | J47: 122 | K47: Pardubický kraj | L47: 1 | M47: 46 | N47: budova | O47: zděná | P47: plochá | Q47: střešní fólie
D48: bez č.p. | E48: Přelouč | F48: 535 01 | G48: 2147 | H48: 4300 | I48: 870 | J48: 4950 | K48: Pardubický kraj | L48: 2 | M48: 1740 | N48: budova | O48: zděná | P48: plochá | Q48: střešní fólie | R48: učebny školy | S48: ne | T48: 2 | U48: ne | V48: RHP, vnitřní hydrant | W48: EZS, oplocení zadní části objektu | X48: ano | Y48: skleněná s dřevěným rámem / kovové s prosklením | Z48: vandalismus | AA48: 23839200 | AB48: Škol
D49: bez č.p. | E49: Přelouč | F49: 535 01 | G49: 2148 | H49: 4300 | I49: 47 | J49: 140 | K49: Pardubický kraj | L49: 1 | M49: 47 | N49: budova | O49: zděná | P49: plochá | Q49: střešní fólie | R49: trafostanice | S49: ne | T49: 2 | U49: ne | V49: standartní (RHP) | W49: oplocení objektu | X49: ano | Y49: ne / plechové | Z49: vandalismus | AA49: 674240 | AB49: Škol
D50: Dukelské nám. 1513 | E50: Přelouč | F50: 535 01 | G50: 2162/1,2162/2,2162/3 | H50: 4300 | I50: 595 | J50: 5200 | K50: Pardubický kraj | L50: 3 | M50: 1785 | N50: budova | O50: zděná | P50: plochá | Q50: střešní fólie | R50: škola | S50: ne | T50: 1 | U50: ne | V50: RHP, hydranty | W50: oplocení objektu | X50: ne, částečně pronajaté | Y50: skleněná s dřevěným rámem / dřevěné s prosklením | Z50: vandalismus | AA50: 25043200 | AB50: Škol
D51: bez č.p. | E51: Přelouč | F51: 535 01 | G51: 540/1 | H51: 4300 | I51: 971 | J51: 5900 | K51: Pardubický kraj | L51: 1 | M51: 971 | N51: budova | O51: zděná | P51: pultová | Q51: plech, eternit | R51: sklad, dílny | S51: ne | T51: 3 | U51: ne | V51: standartní (RHP) | W51: oplocení areálu | X51: ne | Y51: skleněné s dřevěným, kovovým rámem / dřevěné, kovové s prosklením | Z51: vandalismus, vzrostlé stromy | AA51: 28414400 | AB51: Škol
D52: bez č.p. | E52: Přelouč | F52: 535 01 | G52: 1938 | H52: 4300 | I52: 326 | J52: 1400 | K52: Pardubický kraj | L52: 1 | M52: 326 | N52: budova | O52: zděná | P52: sedlová | Q52: vlnitý plech | R52: dílny, šatny | S52: ne | T52: 3 | U52: ne | V52: standartní (RHP) | W52: okenní mříže, oplocení pozemku | X52: ne | Y52: skleněné s dřevěným rámem / dřevěné | Z52: minimální | AA52: 6142400 | AB52: Škol
D53: bez č.p. | E53: Přelouč | F53: 535 01 | G53: 2152 | H53: 4300 | I53: 63 | J53: 190 | K53: Pardubický kraj | L53: 1 | M53: 63 | N53: garáž | O53: kovová | P53: sedlová | Q53: vlnitý plech | R53: garáž | S53: ne | T53: 3 | U53: ne | V53: ne | W53: oplocení objektu | X53: ne | Y53: plastová v kovovém rámu / plechová vrata | Z53: vzrostlé stromy, vandalismus | AA53: 915040 | AB53: Škol
D54: Jaselská 1499 | E54: Přelouč | F54: 535 01 | G54: 542/1 | H54: 4300 | I54: 2592 | J54: 14100 | K54: Pardubický kraj | L54: 2 | M54: 5184 | N54: budova | O54: zděná | P54: plochá | Q54: střešní fólie | R54: učebny SOU, dílny OV | S54: strojírenská | T54: 2 | U54: minimální množství acetonu, svařovací soupravy | V54: RHP, hydranty | W54: EZS, oplocení areálu | X54: ano | Y54: skleněná s dřevěným rámem / kovové s prosklením | Z54: minimální | AA54: 25043200 | AB54: Škol
D55: Jaselská 1505 | E55: Přelouč | F55: 535 01 | G55: 542/7 | H55: 4300 | I55: 38 | J55: 115 | K55: Pardubický kraj | L55: 1 | M55: 38 | N55: budova | O55: zděná | P55: sedlová | Q55: střešní tašky | R55: sklad | S55: ne | T55: 3 | U55: ne | V55: standartní (RHP) | W55: oplocení areálu, visací zámek | X55: ano | Y55: skleněná s dřevěným rámem / dřevěné | Z55: vandalismus, vzrostlé stromy | AA55: 553840 | AB55: Škol
D56: Jaselská 1506 | E56: Přelouč | F56: 535 01 | G56: 542/8 | H56: 4300 | I56: 508 | J56: 3100 | K56: Pardubický kraj | L56: 1 | M56: 508 | N56: budova | O56: zděná | P56: sedlová | Q56: plech | R56: budova pro volný čas | T56: 3 | U56: ne | V56: standartní (RHP) | W56: oplocení areálu | X56: ano | Y56: skleněná s dřevěným rámem / dřevěné | Z56: vandalismus | AA56: 14929600 | AB56: Škol
D57: Jaselská 1507 | E57: Přelouč | F57: 535 01 | G57: 542/6 | H57: 4300 | I57: 916 | J57: 14200 | K57: Pardubický kraj | L57: 3 | M57: 2748 | N57: budova | O57: zděná | P57: plochá | Q57: střešní fólie | R57: domov mládeže | S57: ne | T57: 3 | U57: ne | V57: RHP, vnitřní hydranty | W57: oplocení areálu, částečně mříže na oknech | X57: ano | Y57: skleněná s dřevěným nebo plastovým rámem / kovová | Z57: minimální | AA57: 68387200 | AB57: Škol
A58: 23 | B58: Gymnázium, Ústí nad Orlicí , T. G. Masaryka 106 | C58: 00401081 | D58: T. G. Masaryka 106 | E58: Ústí nad Orlicí | F58: 56201 | G58: 726 | H58: 4300 | I58: 1424 | J58: 22800 | K58: Pardubický kraj | L58: 3 | M58: 4272 | N58: budova | O58: zděná | P58: valbová | Q58: střešní tašky | R58: škola | S58: ne | T58: 2 | U58: ne | V58: RHP, hydranty | W58: minimální | X58: ano | Y58: skleněná s dřevěným rámem / dřevěné | Z58: vandalismus, vzrostlé stromy | AA58: 13484800 | AB58: Škol
D59: T. G. Masaryka 101 | E59: Ústí nad Orlicí | F59: 56201 | G59: 727 | H59: 4300 | I59: 588 | J59: 4700 | K59: Pardubický kraj | L59: 2 | M59: 1176 | N59: budova | O59: zděná | P59: valbová | Q59: střešní tašky | R59: tělocvična školy | S59: ne | T59: 3 | U59: ne | V59: standartní (RHP) | W59: minimální (oplocení areálu) | X59: ano | Y59: skleněná s dřevěným rámem / dřevěné s prosklením | Z59: minimální | AA59: 22635200 | AB59: Škol
D60: bez č.p. | E60: Ústí nad Orlicí | F60: 56201 | G60: 3583 | H60: 4300 | I60: 65 | J60: 160 | K60: Pardubický kraj | L60: 1 | M60: 65 | N60: budova | O60: zděná | P60: valbová | Q60: pálená taška | R60: altán | S60: ne | T60: 2 | U60: ne | V60: standartní (RHP) | W60: minimální (oplocení areálu) | X60: ano | Y60: ne | Z60: vzrostlé stromy | AA60: 770560 | AB60: Škol
A61: 24 | B61: Gymnázium Vysoké Mýto | C61: 49314645 | D61: nám. Vaňorného 163 | E61: Vysoké Mýto | F61: 56601 | G61: 226.227 | H61: 4300 | I61: =568+854 -> 1422 | K61: v majetku města | L61: 3 | M61: 4266 | N61: budova | O61: zděná | P61: valbová | Q61: kanadský šindel | R61: škola | S61: ne | T61: 2 | U61: minimální množství chemických látek v laboratoři | V61: RHP, hydranty | W61: EZS | X61: ano | Y61: skleněná s dřevěným rámem / dřevěné s prosklením | Z61: vandalismus | AB61: Škol
A62: 25 | B62: Gymnázium, Žamberk, Nádražní 48 | C62: 49314891 | D62: Nádražní 48 | E62: Žamberk | F62: 56401 | G62: 799/1 | H62: 4300 | I62: 816 | J62: 13100 | K62: Pardubický kraj | L62: 3 | M62: 2448 | N62: budova | O62: zděná | P62: valbová | Q62: střešní tašky | R62: škola, tělocvična školy | S62: vzduchotechnika | T62: 2 | U62: ne | V62: RHP, hydranty | W62: minimální (osvětlení objektu) | X62: ano | Y62: skleněná s dřevěným rámem / dřevěné s prosklením | Z62: vandalismus | AA62: 63089600 | AB62: Škol
D63: Komenského 1136 | E63: Žamberk | F63: 56401 | G63: 791/1 | H63: 4300 | I63: 1325 | J63: 9976 | K63: Pardubický kraj | L63: 2 | M63: 2650 | N63: hala | O63: zděná | P63: plochá | Q63: střešní fólie | R63: tělocvična školy | S63: vzduchotechnika | T63: 3 | U63: ne | V63: standartní (RHP) | W63: mříže na dveřích, oplocení zadní části objektu | X63: ano | Y63: skleněná s dřevěným rámem / kovové s prosklením | Z63: vandalismus | AA63: 48044416 | AB63: Škol
A64: 26 | B64: Sportovní gymnázium, Pardubice, Dašická 268 | C64: 48161012 | D64: Dašická 268 | E64: Pardubice | F64: 530 03 | G64: 1244/1 | H64: 4300 | I64: 1756 | J64: 19688 | K64: Pardubický kraj | L64: 3 | M64: 5268 | N64: budova | O64: zděná | P64: valbová | Q64: plech, střešní tašky | R64: učebny | S64: ne | T64: 3 | U64: ne | V64: RHP, hydranty | W64: minimální (zadní část objektu oplocena) | X64: ano | Y64: skleněná s dřevěným rámem / dřevěné s prosklením | Z64: vandalismus | AA64: 94817408 | AB64: Škol
D65: bez čp. | E65: Pardubice | F65: 530 03 | G65: 10109 | H65: 4300 | I65: 995 | J65: 15360 | K65: Pardubický kraj | L65: 1 | M65: 995 | N65: hala | O65: zděná | P65: plochá | Q65: střešní fólie | R65: tělocvična školy | S65: ne | T65: 3 | U65: ne | V65: standartní (RHP) | W65: minimální (oplocení objektu) | X65: ano | Y65: skleněná s dřevěným rámem + prosklení stěn / kovové s prosklením | Z65: minimální | AA65: 73973760 | AB65: Škol
A66: 27 | B66: Integrovaná střední škola Moravská Třebová | C66: 15034496 | D66: Brněnská 41 | E66: Moravská Třebová | F66: 57101 | G66: 299/4 | H66: 4300 | I66: 427 | J66: 2340 | K66: Pardubický kraj | L66: 2 | M66: 854 | N66: budova | O66: zděná | P66: plochá | Q66: střešní fólie | R66: škola | S66: ne | T66: 2 | U66: ne | V66: RHP, hydranty | W66: minimální | X66: ano | Y66: skleněná s plastovým rámem / dřevěné | Z66: vandalismus | AA66: 11197829 | AB66: Škol
D67: bez č.p. | E67: Moravská Třebová | F67: 57101 | G67: 300,301/1-2,303/3 | H67: 4300 | I67: =37+480+53+486 -> 1056 | J67: 5465 | K67: Pardubický kraj | L67: 4 | M67: 4224 | N67: budova | O67: zděná | P67: plochá | Q67: střešní fólie | R67: škola, spojovací úseky | S67: ne | T67: 3 | U67: ne | V67: RHP, hydranty | W67: miniální | X67: ne | Y67: skleněná s plastovým rámem / plastové se skleněnou výplní | Z67: vandalismus | AA67: 26152594 | AB67: Škol
D68: bez č.p. | E68: Moravská Třebová | F68: 57101 | G68: 303/4-7 | H68: 4300 | I68: =33+292+64+287 -> 676 | J68: =7284-425 -> 6859 | K68: Pardubický kraj | L68: 4 | M68: 2704 | N68: budova | O68: zděná | P68: plochá | Q68: střešní fólie | R68: škola, spojovací úseky | S68: ne | T68: 3 | U68: ne | V68: RHP, hydranty | W68: minimální | X68: ano | Y68: skleněná s plastovým rámem / plastové se skleněnou výplní | Z68: vandalismus | AA68: 34857363 | AB68: Škol
D69: Milovy 35 | E69: Sněžné na Moravě | F69: 59202 | G69: 239 | H69: 4300 | I69: 233 | J69: 1165 | K69: Pardubický kraj | L69: 1 | M69: 233 | N69: budova | O69: zděná | P69: valbová | Q69: plech | R69: školící a výcvikové středisko školy | S69: ne | T69: 3 | U69: ne | V69: standartní (RHP) | W69: minimální | X69: ano | Y69: skleněná s dřevěným rámem / dřevěné se skleněnou výplní | Z69: vzrostlé stromy, vandalismus | AA69: 5575073 | AB69: Škol
D70: bez č.p. | E70: Moravská Třebová | F70: 57101 | G70: 303/14 | I70: 25 | J70: 425 | K70: Pardubický kraj | L70: 1 | M70: 25 | N70: garáž | O70: zděná | P70: plochá | Q70: střešní fólie | R70: garáž
D71: Lanškrounská 5 | E71: Svitavy | F71: 568 02 | G71: 390/1 | H71: 4300 | I71: 440 | J71: 3845 | K71: Pardubický kraj | L71: 2 | M71: 880 | N71: budova | O71: zděná | P71: sedlová | Q71: střešní tašky | R71: nevyužito | S71: ne | T71: 4 | U71: ne | V71: ne | W71: ne | X71: ne | Y71: skleněná s dřevěným rámem / dřevěné s prosklením | Z71: vzrostlý strom,vandalismus | AA71: 18400132 | AB71: Škol
D72: Dukelská 57 | E72: Moravská Třebová | F72: 57101 | G72: 436/2 | H72: 4300 | I72: 607 | J72: 8555 | K72: Pardubický kraj | L72: 3 | M72: 1821 | N72: budova | O72: zděná | P72: plochá | Q72: střešní fólie | R72: internát | S72: ne | T72: 3 | U72: ne | V72: RHP, hydranty | W72: minimální | X72: ano | Y72: skeněná s plastovým rámem / plechové se skleněnou výplní | Z72: vandalismus | AA72: 40939696 | AB72: Škol
D73: 9. května 5 | E73: Moravská Třebová | F73: 57101 | G73: 661/1 | H73: 4300 | I73: 1215 | J73: 14592 | K73: Pardubický kraj | L73: 3 | M73: =L73*I73 -> 3645 | N73: budova | O73: zděná | P73: plochá | Q73: střešní fólie | R73: škola | S73: ne | T73: 3 | U73: ne | V73: RHP, hydranty | W73: minimální | X73: ano | Y73: skleněná s dřevěným rámem / plechové se skleněnou výplní | Z73: vandalismus | AA73: 69829578 | AB73: Škol
D74: J. K. Tyla 9 | E74: Moravská Třebová | F74: 57101 | G74: 1336/1 | H74: 4300 | I74: 620 | J74: 6900 | K74: Pardubický kraj | L74: 2 | M74: 1240 | N74: budova | O74: zděná | P74: plochá | Q74: střešní fólie | R74: škola | S74: vzduchotechnika | T74: 3 | U74: ne | V74: standartní (RHP) | W74: minimální (zadní část objektu oplocena) | X74: ano | Y74: skleněná s dřevěným rámem / plastové se skleněnou výplní | Z74: vandalismus | AA74: 52889014 | AB74: Škol
D75: J. K. Tyla 9 | E75: Moravská Třebová | F75: 57101 | G75: 1336/1 | I75: 660 | K75: Pardubický kraj | L75: 1 | M75: =L75*I75 -> 660 | N75: budova | O75: zděná | P75: plochá | Q75: střešní fólie | R75: škola, tlaková stanice | S75: vzduchotechnika | T75: 3 | U75: tlakové láhve | V75: standartní (RHP) | W75: minimální (zadní část objektu oplocena) | X75: ano | Y75: skleněná s dřevěným rámem / plastové se skleněnou výplní | Z75: vandalismus
D76: bez č.p. | E76: Moravská Třebová | F76: 57101 | G76: 1338/2 | I76: 78 | J76: 300 | K76: Pardubický kraj | L76: 1 | M76: 78 | N76: budova | O76: kovová | P76: sedlová | Q76: plech
D77: bez č.p. | E77: Moravská Třebová | F77: 57101 | G77: 1337 | I77: 655 | J77: 3852 | K77: Pardubický kraj | L77: 1 | M77: 655 | N77: budova | O77: zděná | P77: sedlová | Q77: střešní tašky, plech
D78: bez č.p. | E78: Moravská Třebová | F78: 57101 | G78: 1347/3 | H78: 4300 | I78: 1076 | J78: 8560 | K78: Pardubický kraj | L78: 2 | M78: 2152 | N78: budova | O78: zděná | P78: plochá, sedlová | Q78: plech | R78: tělocvična | S78: ne | T78: 3 | U78: ne | V78: standartní (RHP) | W78: minimální (oplocení areálu) | X78: ano | Y78: skleněná s dřevěným rámem / plastové se skleněnou výplní | Z78: minimální | AA78: 40963623 | AB78: Škol
A79: 28 | B79: Integrovaná střední škola technická, Vysoké Mýto, Mládežnická 380 | C79: 15028585 | D79: Mládežnická 380 | E79: Vysoké Mýto | F79: 56601 | G79: 1917/1 | H79: 4300 | I79: 5478 | J79: 44696 | K79: Pardubický kraj | L79: 3 | M79: 16434 | N79: budova | O79: zděná | P79: plochá | Q79: střešní fólie | R79: škola, dílny, ubytovna, kuchyně, jídelna | S79: strojírenská,vzduchotechnicka,klimatizace | T79: 1 | U79: ne | V79: RHP, hydranty | W79: minimální | X79: ano | Y79: skleněná s plastovým rámem / plastové s prosklením | Z79: vandalismus, vzrostlé stromy | AA79: 192192800 | AB79: Škol
A80: 29 | B80: Konzervatoř, Pardubice, Sukova třída 1260 | C80: 48161110 | D80: Sukova třída 1260 | E80: Pardubice | F80: 530 02 | G80: 8119 | H80: 4300 | I80: 4389 | J80: 39900 | K80: Pardubický kraj | L80: 5 | M80: 21945 | N80: budova | O80: zděná | P80: plochá | Q80: střešní fólie | R80: konzervatoř | S80: ne | T80: 1 | U80: ne | V80: RHP, hydranty,EPS | W80: EZS | X80: ano | Y80: skleněná s dřevěným rámem / kovové s prosklením | Z80: vandalismus | AA80: 193487616 | AB80: Škol
D81: bez č.p. | E81: Pardubice | F81: 530 02 | G81: 8121 | H81: 4300 | I81: 69 | J81: 276 | K81: Pardubický kraj | L81: 1 | M81: 69 | N81: budova | O81: zděná | P81: plochá | Q81: střešní fólie,násyp | R81: garáže, dílna | S81: ne | T81: 1 | U81: oleje, PHM | V81: standartní (RHP) | W81: minimální | X81: ano | Y81: skleněná s dřevěným rámem / kovové s prosklením | Z81: vandalismus, vzrostlé stromy | AA81: 1329216 | AB81: Škol
A82: 30 | B82: Obchodní akademie, Chrudim, Tyršovo náměstí 250 | C82: 60103345 | D82: Tyršovo nám. 250 | E82: Chrudim | F82: 53760 | G82: 991 | H82: 4300 | I82: 1110 | J82: 19800 | K82: Pardubický kraj | L82: 4 | M82: 4440 | N82: budova | O82: zděná | P82: sedlová | Q82: plechová | R82: škola | S82: ne | T82: 3 | U82: ne | V82: RHP, hydranty | W82: minimální | X82: ano | Y82: skleněná s dřevěným rámem / dřevěná s prosklením | Z82: vandalismus | AA82: 95356800 | AB82: Škol
A83: 31 | B83: Obchodní akademie a Jazyková škola s právem státní jazykové zkoušky, Pardubice, Štefánikova 325 | C83: 48161209 | D83: Štefánikova 325 | E83: Pardubice | F83: 530 43 | G83: 609/2 | H83: 4300 | I83: 684 | J83: 4518 | K83: Pardubický kraj | L83: 3 | M83: 2052 | N83: budova | O83: zděná | P83: sedlová | Q83: střešní tašky | R83: škola | S83: ne | T83: 2 | U83: ne | V83: RHP, hydranty | W83: minimální | X83: ano | Y83: skleněná s dřevěným rámem / dřevěné | Z83: vandalismus | AA83: 21758688 | AB83: Škol
A84: 32 | B84: Obchodní akademie a Střední odborná škola cestovního ruchu Choceň | C84: 49314661 | D84: T. G. Masaryka 1000 | E84: Choceň | F84: 56536 | G84: 1061 | H84: 4300 | I84: 980 | K84: v majetku města | L84: 3 | M84: 2940 | N84: budova | O84: zděná | P84: plochá | Q84: plech | R84: škola | S84: ne | T84: 2 | U84: ne | V84: RHP, hydranty | W84: minimální | X84: ano | Y84: skleněná s dřevěným rámem / dřevěné s prosklením | Z84: vandalismus | AB84: Škol
D85: Bj. Krawce 1883 | E85: Choceň | F85: 565 36 | G85: 164/2,164/4 | I85: 997 | J85: 7840 | K85: Pardubický kraj | L85: 1 | M85: 997 | N85: budova | O85: zděná | P85: sedlová, valbová | Q85: plech, šindel | R85: tělocvična | S85: ne | T85: 3 | U85: ne | V85: standartní (RHP) | W85: minimální | X85: ano | Y85: skleněná s dřevěným rámem / plastové s prosklením | Z85: vandalismus | AB85: Škol
D86: Tyršovo nám. 220 | E86: Choceň | F86: 56536 | G86: 415 | H86: 4300 | I86: 789 | J86: 9300 | K86: Pardubický kraj | L86: 3 | M86: 2367 | N86: budova | O86: zděná | P86: pultová, sedlová | Q86: eternit | R86: škola | S86: ne | T86: 1 | U86: ne | V86: RHP, hydranty | W86: minimální | X86: ano | Y86: skleněná s plastovým, dřevěným rámem / plastové s prosklením | Z86: vandalismus | AA86: 51670800 | AB86: Škol
D87: Vysokomýtská 1206 | E87: Choceň | F87: 565 36 | G87: 682 | H87: 4300 | I87: 550 | J87: 4240 | K87: Pardubický kraj | L87: 1 | M87: 550 | N87: budova | O87: zděná | P87: valbová | Q87: šindel | R87: odloučené pracoviště-odborná výuka | S87: gastro-technologie | T87: 3 | U87: ne | V87: standartní (RHP) | W87: oplocení areálu | X87: ano | Y87: skleněná s dřevěným rámem / dřevěné s prosklením | Z87: vandalismus | AA87: 23557440 | AB87: Škol
D88: bez č.p. | E88: Choceň | F88: 565 36 | G88: 624/2, 624/4 | H88: 4300 | I88: =156+798 -> 954 | J88: 670 | K88: Pardubický kraj | L88: 1 | M88: 954 | N88: budova | O88: zděná | P88: pultová | Q88: plech | R88: odloučené pracoviště-dílny školy, sklad | S88: strojírenská | T88: 3 | U88: ne | V88: standartní (RHP) | W88: objekt v uzamčeném dvoře | X88: ano | Y88: skleněná s dřevěným rámem / dřevěné | Z88: vzrostlé stromy | AA88: 3722520 | AB88: Škol
D89: bez č.p. | E89: Choceň | F89: 565 36 | G89: 624/3 | H89: 4300 | I89: 946 | J89: 5120 | K89: Pardubický kraj | L89: 2 | M89: 1892 | N89: budova | O89: zděná | P89: plochá | Q89: plech | R89: škola | S89: ne | T89: 3 | U89: ne | V89: standartní (RHP) | W89: oplocení zadní části objektu | X89: ano | Y89: skleněná s plastovým rámem / plastové s prosklením | Z89: vandalismus | AA89: 28446720 | AB89: Škol
D90: bez č.p. | E90: Choceň | F90: 565 36 | G90: 624/1 | H90: 4300 | I90: 267 | J90: 1120 | K90: Pardubický kraj | L90: 1 | M90: 267 | N90: budova | O90: zděná | P90: pultová | Q90: plech | R90: odloučené pracoviště-dílny školy | S90: strojírenská | T90: 3 | U90: ne | V90: standartní (RHP) | W90: objekt v uzavřeném dvoře | X90: ano | Y90: skleněná s dřevěným rámem / dřevěné | Z90: vandalismus | AA90: 6222720 | AB90: Škol
D91: Husova 146/IV | E91: Vysoké Mýto | F91: 566 01 | G91: 1515/6 | H91: 4300 | I91: 1439 | J91: 16965 | K91: Pardubický kraj | L91: 3 | M91: 4317 | N91: budova | O91: zděná | P91: valbová | Q91: plech | R91: odloučené pracoviště-škola | S91: ne | T91: 2 | U91: ne | V91: RHP, hydranty | W91: minimální | X91: ano | Y91: skleněná s dřevěným rámem / dřevěné s prosklením | Z91: vandalismus | AA91: 94257540 | AB91: Škol
D92: bez čp. | E92: Choceň | F92: 56536 | G92: 421/4 | H92: 4300 | I92: 118 | J92: 350 | K92: Pardubický kraj | L92: 1 | M92: 118 | N92: přístřešek, garáž | O92: zděná | P92: pultová | Q92: eternit | R92: garáž | S92: ne | T92: 1 | U92: ne | V92: standartní (RHP) | W92: minimální | X92: ano | Y92: skleněná s dřevěným rámem / dřevěná vrata | Z92: vzrostlé stromy | AA92: 1944600 | AB92: Škol
D93: Komenského 435 | E93: Choceň | F93: 56536 | G93: 411 | H93: 4300 | I93: 161 | J93: 608 | K93: Pardubický kraj | L93: 1 | M93: 161 | N93: garáž | O93: zděná | P93: plochá | Q93: plech | R93: garáž | S93: ne | T93: 3 | U93: ne | V93: standartní (RHP) | W93: minimální | X93: ano | Y93: prosklení / plechová vrata | Z93: vandalismus | AA93: 3378048 | AB93: Škol
D94: bez čp. | E94: Choceň | F94: 56536 | G94: 421/3 | H94: 4300 | I94: 62 | J94: 332 | K94: Pardubický kraj | L94: 1 | M94: 62 | N94: garáž | O94: zděná | P94: pultová | Q94: střešní fólie | R94: garáž | S94: ne | T94: 4 | U94: ne | V94: standartní (RHP) | W94: minimální | X94: ano | Y94: prosklení / plechová vrata | Z94: vzrostlé stromy | AA94: 1844592 | AB94: Škol
D95: Paraple 2000 | E95: Choceň | F95: 56536 | G95: 3419 | H95: 4300 | I95: 652 | J95: 8589 | K95: Pardubický kraj | L95: 3 | M95: 1956 | N95: budova | O95: zděná | P95: plochá | Q95: plech | R95: domov mládeže, školní jídelna, suterén garáž | S95: gastro-technologie,klimatizace | T95: 1 | U95: ne | V95: RHP, hyndranty | W95: oplocení areálu | X95: ano | Y95: skleněná s plastovým rámem / plastové s prosklením | Z95: minimální | AA95: 47720484 | AB95: Škol
A96: 33 | B96: Obchodní akademie a Vyšší odborná škola ekonomická, Svitavy, T. G. Masaryka 47 | C96: 62033077 | D96: T. G. Masaryka 47 | E96: Svitavy | F96: 56802 | G96: 492/1,492/3 | H96: 4300 | I96: 1636 | J96: 17224 | K96: Pardubický kraj,parcela č.492/3 v majetku jiné fyzické osoby | L96: 3 | M96: 4908 | N96: budova | O96: zděná | P96: sedlová | Q96: střešní tašky | R96: škola, jídelna, kuchyně, tělocvična školy | S96: vzduchotechnika, klimatizace, gastro-technologie | T96: 1 | U96: ne | V96: RHP, hydranty | W96: minimální | X96: ano | Y96: skleněná s plastovým, dřevěným rámem / plastové s prosklením | Z96: vandalismus | AA96: 82950784 | AB96: Škol
D97: bez č.p. | E97: Svitavy | F97: 56802 | G97: 492/2 | H97: 4300 | I97: 207 | J97: 872 | K97: Pardubický kraj | L97: 1 | M97: 207 | N97: budova | O97: zděná | P97: pultová | Q97: plech | R97: sborovna, prádelna, kotelna, sklad | S97: strojní vybavení kotelny a prádelny | T97: 2 | U97: zemní plyn-kotelna | V97: RHP, hydranty | W97: objekt v uzavřeném dvoře | X97: ano | Y97: skleněná s dřevěným rámem / dřevěné | Z97: minimální | AA97: 4199552 | AB97: Škol
D98: Kijevská 1909 | E98: Svitavy | F98: 56802 | G98: 2568 | H98: 4300 | I98: 911 | J98: 5430 | K98: Pardubický kraj | L98: 2 | M98: 1822 | N98: budova | O98: zděná | P98: plochá | Q98: střešní fólie | R98: domov mládeže | S98: ne | T98: 1 | U98: ne | V98: RHP, hydranty | W98: oplocený areál | X98: ano | Y98: skleněná s plastovým rámem / plastové s prosklením | Z98: vandalismus | AA98: 26150880 | AB98: Škol
A99: 34 | B99: Pedagogicko-psychologická poradna Pardubice | C99: 48160806 | D99: Sukova třída 1260 | E99: Pardubice | F99: 53002 | G99: 8119 | H99: 4300 | I99: 4389 | J99: 39900 | K99: Pardubický kraj | L99: 5 | M99: 21945 | N99: budova | O99: zděná | P99: plochá | Q99: střešní fólie | R99: pedagogicko-psychologická poradna (pronajaté prostory konzervatoře) | S99: ne | T99: 1 | U99: ne | V99: EPS, RHP, hydranty | W99: EZS | X99: ano | Y99: skleněná s dřevěným rámem / kovové s prosklením | Z99: vandalismus | AA99: budova pojištěna - Konzervatoř Pardubice | AB99: Škol
D100: Poděbradova 842 | E100: Chrudim | F100: 53701 | G100: 302/1 | H100: 4300 | I100: 1142 | J100: 19400 | K100: Pardubický kraj | L100: 6 | M100: 6852 | N100: budova | O100: zděná | P100: plochá | Q100: střešní fólie | R100: poradna / součást budovy domova mládeže / | S100: ne | T100: 3 | U100: ne | V100: RHP, hydranty | W100: minimální (oplocení areálu) | X100: ano | Y100: skleněná s plastovým rámem / kovové s prosklením | Z100: vzrostlé stromy | AA100: budova pojištěna - SŠZ a VOŠ Chrudim | AB100: Škol
D101: Internátní 217 | E101: Třemošnice | F101: 53843 | G101: 219 | H101: 4300 | I101: 3760 | K101: v majetku města | L101: 3 | M101: 11280 | N101: budova | O101: zděná | P101: plochá | Q101: střešní fólie | R101: pedagogicko-psychologická poradna (součást budovy) | S101: ne | T101: 2 | U101: ne | V101: RHP, hydranty | W101: minimální | X101: ano | Y101: skleněná s dřevěným rámem / dřevěné s prosklením | Z101: vandalismus | AB101: Škol
D102: Nádražní 548 | E102: Hlinsko | F102: 53901 | G102: 600/1 | H102: 4300 | I102: 851 | K102: v majetku města | L102: 2 | M102: 1702 | N102: budova | O102: zděná | P102: plochá | Q102: střešní fólie | R102: poradna | S102: ne | T102: 3 | U102: ne | V102: standartní (RHP) | W102: minimální | X102: ano | Y102: skleněná s plastovým rámem / plastové s prosklením | Z102: vandalismus | AB102: Škol
A103: 35 | B103: Pedagogicko-psychologická poradna, Ústí nad Orlicí, Královéhradecká 513 | C103: 70847142 | D103: Královéhradecká 513 | E103: Ústí nad Orlicí | F103: 56201 | G103: 621 | H103: 4300 | I103: 139 | J103: 1362 | K103: Pardubický kraj | L103: 2 | M103: 278 | N103: budova | O103: zděná | P103: sedlová | Q103: pálená taška | R103: poradna | S103: ne | T103: 2 | U103: ne | V103: standartní (RHP) | W103: minimální | X103: ano | Y103: skleněná s dřevěným rámem / dřevěné | Z103: vandalismus | AA103: 9973926 | AB103: Škol
D104: Dobrovského 630 | E104: Lanškroun | F104: 56301 | G104: 1275/1 | H104: 4300 | I104: 1125 | K104: v majetku města | L104: 2 | M104: 2250 | N104: budova | O104: zděná | P104: sedlová | Q104: střešní tašky | R104: pedagogicko-psychologická poradna (součást budovy) | S104: ne | T104: 1 | U104: ne | V104: standartní (RHP) | W104: minimální | X104: ano | Y104: skleněná s dřevěným rámem / dřevěné s prosklením | Z104: vandalismus | AB104: Škol
D105: Královéhradecká 630 | E105: Ústí nad Orlicí | F105: 56201 | G105: 574/2 | H105: 12000 | I105: 312 | J105: 2576 | K105: Pardubický kraj | L105: 3 | M105: 936 | N105: budova | O105: zděná | P105: pultová / sedlová | Q105: plech | R105: poradna | S105: ne | T105: 1 | U105: ne | V105: RHP, hydrant, EPS | W105: EZS | X105: ano | Y105: skleněná s plastovým rámem / plastové s prosklením | Z105: vandalismus | AA105: 18864048 | AB105: Škol
D106: Plk-B.Kohouta 914 | E106: Vysoké Mýto | F106: 566 01 | G106: 4664/105 | I106: 1219 | K106: v majetku města | L106: 3 | M106: 3657 | N106: budova | O106: zděná | P106: plochá | Q106: střešní fólie | R106: pedagogicko-psychologická poradna (součást budovy) | S106: klimatizace | T106: 1 | U106: ne | V106: RHP, EPS | W106: EZS | X106: ano | Y106: skleněná s plastovým rámem / plastové s prosklením | Z106: vandalismus | AB106: Škol
D107: Riegrova 2063/11 | E107: Svitavy | F107: 56802 | G107: 2918/3 | H107: 4300 | I107: 331 | J107: 3864 | K107: Pardubický kraj | L107: 3 | M107: 993 | N107: budova | O107: zděná | P107: plochá | Q107: střešní fólie | R107: poradna | S107: ne | T107: 2 | U107: ne | V107: RHP, hydrant | W107: minimální (oplocení objektu) | X107: ano | Y107: skleněná s dřevěným rámem / kovové s prosklením | Z107: vzrostlé stromy | AA107: 28296072 | AB107: Škol
D108: Riegrova 2063/11 | E108: Svitavy | F108: 568 02 | G108: 2919/2 | H108: 4300 | I108: 84 | J108: 252 | K108: Pardubický kraj | L108: 1 | M108: 84 | N108: budova | O108: zděná | P108: pultová | Q108: plech | R108: garáž, sklad | S108: ne | T108: 2 | U108: ne | V108: standartní (RHP) | W108: minimální | X108: ano | Y108: ne / plechová vrata | Z108: vandalismus | AA108: 1845396 | AB108: Škol
D109: Nádražní 550 | E109: Žamberk | F109: 56401 | G109: 796 | H109: 4300 | I109: 178 | K109: Pardubický kraj | L109: 3 | M109: 534 | N109: budova | O109: zděná | P109: sedlová | Q109: asfaltový šindel | R109: část objektu ve výpůjčce - poradna | S109: ne | T109: 3 | U109: ne | V109: RHP, hydranty | W109: minimální (zadní část objektu oplocena) | X109: ano | Y109: skleněná s plastovým rámem / plastové s prosklením | Z109: vandalismus, vzrostlé stromy | AA109: budova pojištěna u Spec. SŠ a ZŠ Žamberk | AB109: Škol
D110: T.G. Masaryka 1160 | E110: Litomyšl | F110: 57001 | G110: 2247 | I110: 274 | K110: Pardubický kraj | L110: 1 | M110: 274 | N110: budova | O110: zděná | P110: sedlová | Q110: střešní tašky | R110: poradna | S110: ne | T110: 2 | U110: ne | V110: standartní (RHP) | W110: minimální ( oplocení objektu ) | X110: ano | Y110: skleněná s plastovým rámem / dřevěné s prosklením | Z110: vzrostlé stromy | AA110: budova pojištěna u SŠ zahradnické a technické Litomyšl | AB110: Škol
A111: 36 | B111: Průmyslová střední škola Letohrad | C111: 49314912 | D111: Komenského 472 | E111: Letohrad | F111: 56151 | G111: 530 | H111: 4300 | I111: 1609 | J111: 15700 | K111: Pardubický kraj | L111: 4 | M111: 6436 | N111: budova | O111: zděná | P111: plochá | Q111: plech | R111: škola | S111: ne | T111: 1 | U111: ne | V111: RHP, hydrant | W111: EZS, oplocení areálu | X111: ano | Y111: skleněná s plastovým rámem / plastové s prosklením | Z111: vzrostlé stromy | AA111: 75611200 | AB111: Škol
D112: Na Stráni 785 | E112: Letohrad | F112: 56151 | G112: 1254 | H112: 4300 | I112: 503 | J112: 6030 | K112: Pardubický kraj | L112: 3 | M112: 1509 | N112: budova | O112: zděná | P112: polovalbová | Q112: střešní tašky | R112: škola | S112: ne | T112: 2 | U112: ne | V112: RHP, hydrant | W112: minimální (oplocení areálu) | X112: ano | Y112: skleněná s dřevěným rámem / dřevěné s prosklením | Z112: minimální | AA112: 29040480 | AB112: Škol
D113: bez č.p. | E113: Letohrad | F113: 56151 | G113: 1154 | H113: 4300 | I113: 411 | J113: 6165 | K113: Pardubický kraj | L113: 3 | M113: 1233 | N113: budova | O113: zděná | P113: polovalbová | Q113: střešní tašky | R113: škola, domov mládeže | S113: ne | T113: 1 | U113: ne | V113: RHP, hydrant | W113: minimální (oplocení areálu) | X113: ano | Y113: skleněná s plastovým rámem / plastové s prosklením | Z113: minimální | AA113: 29680640 | AB113: Škol
D114: bez č.p. | E114: Letohrad | F114: 56151 | G114: 1341 | H114: 4300 | I114: 954 | J114: 6700 | K114: Pardubický kraj | L114: 1 | M114: 954 | N114: budova | O114: zděná | P114: plochá | Q114: plech | R114: tělocvična školy | S114: vzduchotechnika | T114: 1 | U114: ne | V114: RHP, hydrant | W114: minimální (oplocení areálu) | X114: ano | Y114: skleněná s dřevěným rámem / kovové s prosklením | Z114: minimální | AA114: 32267200 | AB114: Škol
D115: bez č.p. | E115: Letohrad | F115: 56151 | G115: 1340 | H115: 4300 | I115: 831 | J115: 7500 | K115: Pardubický kraj | L115: 2 | M115: 1662 | N115: budova | O115: zděná | P115: plochá | Q115: plech | R115: kuchyně, jídelna | S115: vzduchotechnika, gastro-technologie | T115: 2 | U115: ne | V115: RHP, hydrant | W115: oplocení areálu, částečně okenní mříže | X115: ano | Y115: skleněná s dřevěným rámem / kovové s prosklením | Z115: vzrostlé stromy | AA115: 36120000 | AB115: Škol
D116: bez č.p. | E116: Letohrad | F116: 56151 | G116: 1342 | H116: 4300 | I116: 24 | J116: 60 | K116: Pardubický kraj | L116: 1 | M116: 24 | N116: přístřešek | O116: zděná | P116: pultová | Q116: střešní fólie | R116: sklad | S116: ne | T116: 3 | U116: ne | V116: standartní (RHP) | W116: minimální (oplocení areálu) | X116: ano | Y116: skleněná s plastovým rámem / dřevěné | Z116: vzrostlé stromy | AA116: 288960 | AB116: Škol
D117: Ústecká 36 | E117: Letohrad | F117: 56151 | G117: 293 | H117: 4300 | I117: 1333 | J117: 8800 | K117: Pardubický kraj | L117: 1 | M117: 1333 | N117: budova | O117: zděná | P117: pultová | Q117: plech | R117: dílny školy | S117: strojírenská | T117: 3 | U117: ne | V117: standartní (RHP) | W117: EZS, oplocení areálu | X117: ano | Y117: skleněná s dřevěným rámem / dřevěné s prosklením | Z117: vzrostlé stromy, vodní toky | AA117: 42380800 | AB117: Škol
D118: bez č.p. | E118: Letohrad | F118: 56151 | G118: 920/1 | H118: 4300 | I118: 340 | J118: 2900 | K118: Pardubický kraj | L118: 3 | M118: 1020 | N118: budova | O118: zděná | P118: sedlová | Q118: plech | R118: škola | S118: ne | T118: 2 | U118: ne | V118: standartní (RHP) | W118: minimální (oplocení areálu) | Y118: skleněná s plastovým rámem | Z118: vzrostlé stromy, vodní toky | AA118: 13966400 | AB118: Škol
D119: bez č.p. | E119: Letohrad | F119: 56151 | G119: 1255/1 | H119: 4300 | I119: 100 | J119: 455.1 | K119: Pardubický kraj | L119: 2 | M119: 200 | N119: budova | O119: zděná | P119: plochá | Q119: střešní fólie | R119: trafostanice | S119: trafo | T119: 3 | U119: olej v transtormátoru | V119: standartní (RHP) | W119: minimální (oplocení areálu) | X119: ano | Y119: prosklení / plechová vrata, dveře | Z119: vzrostlé stromy | AA119: 2191280 | AB119: Škol
D120: bez č.p. | E120: Letohrad | F120: 56151 | G120: 480,1519, 64/2 | H120: 4300 | I120: =42+2+59 -> 103 | J120: 495 | K120: Pardubický kraj | L120: 1 | M120: 103 | N120: budova | O120: zděná | P120: sedlová | Q120: střešní tašky | R120: malá vodní elektrárna | S120: strojní vybavení elektrárny | T120: 3 | U120: ne | V120: standartní (RHP) | W120: minimální (oplocení areálu) | X120: ano | Y120: skleněná s dřevěným rámem / dřevěné s prosklením | Z120: vzrostlé stromy, vodní toky | AA120: 2383920 | AB120: Škol
A121: 37 | B121: Střední odborná škola elektrotechnická a strojní a Střední odborné učiliště, Pardubice, Do Nového 1131 | C121: 15050351 | D121: Do Nového 1131 | E121: Pardubice | F121: 530 03 | G121: 4881/1,3 | H121: 4300 | I121: 580 | J121: 9300 | K121: Pardubický kraj | L121: 5 | M121: 2900 | N121: budova | O121: zděná | P121: plochá | Q121: střešní fólie | R121: škola | S121: ne | T121: 3 | U121: ne | V121: RHP, hydranty | W121: minimální (oplocení areálu) | X121: ano | Y121: skleněná s dřevěným rámem / dřevěné s prosklením | Z121: minimální | AA121: 44258700 | AB121: Škol
D122: Do Nového 1131 | E122: Pardubice | F122: 530 03 | G122: 4881/3 | I122: 590 | K122: Pardubický kraj | L122: 2 | M122: =L122*I122 -> 1180 | N122: budova | O122: zděná | P122: plochá | Q122: střešní fólie | R122: škola, kotelna | S122: strojní vybavení kotelny | T122: 3 | U122: zemní plyn | V122: RHP, hydranty | W122: minimální (oplocení areálu) | X122: ano | Y122: skleněná s dřevěným rámem / dřevěné s prosklením | Z122: minimální
D123: bez č.p. | E123: Pardubice | F123: 530 03 | G123: 4881/2 | H123: 4300 | I123: 20 | J123: 50 | K123: Pardubický kraj | L123: 1 | M123: 20 | N123: budova | O123: dřevěná | P123: sedlová | Q123: eternit | R123: vrátnice školy | S123: ne | T123: 3 | U123: ne | V123: standartní (RHP) | W123: minimální (oplocení areálu) | X123: ano | Y123: skleněná s dřevěným rámem / dřevěné s prosklením | Z123: minimální | AA123: 237950 | AB123: Škol
D124: bez č.p. | E124: Pardubice | F124: 530 03 | G124: 4882/3,4,5 | H124: 4300 | I124: =958+15+31 -> 1004 | J124: 2375 | K124: Pardubický kraj | L124: 1 | M124: 1004 | N124: budova | O124: dřevěná | P124: sedlová | Q124: vlnitý plech | R124: sklady, šatny, provozní úsek a spojovací chodba | S124: solární panely | T124: 3 | U124: ne | V124: standartní (RHP) | W124: minimální (oplocení areálu) | X124: ano | Y124: skleněná s dřevěným rámem / dřevěné s prosklením | Z124: minimální | AA124: 11302625 | AB124: Škol
D125: bez č.p. | E125: Pardubice | F125: 53003 | G125: 4881/4,5 | H125: 1055 | I125: =150+29 -> 179 | J125: 540 | K125: Pardubický kraj | L125: 1 | M125: 179 | N125: budova | O125: zděná, dřevěná | P125: pultová, sedlová | Q125: vlnitý plech, plech | R125: sklad, sklad chemikálií | S125: ne | T125: 3 | U125: omezené množství chemických látek | V125: standartní (RHP) | W125: minimální (oplocení areálu) | X125: ano | Y125: skleněná s dřevěným rámem / plechová vrata | Z125: vzrostlé stromy | AA125: 2569860 | AB125: Škol
D126: Do Nového 94 | E126: Pardubice | F126: 530 03 | G126: 504/1 | H126: 4300 | I126: 347 | J126: 2720 | K126: Pardubický kraj | L126: 2 | M126: 694 | N126: budova | O126: zděná | P126: valbová | Q126: plech | R126: škola | S126: ne | T126: 3 | U126: ne | V126: RHP, hydranty | W126: minimální (oplocení areálu) | X126: ano | Y126: skleněná s dřevěným rámem / dřevěné s prosklením | Z126: minimální | AA126: 12944480 | AB126: Škol
D127: bez č.p. | E127: Pardubice | F127: 530 03 | G127: 504/3, 504/8 | H127: 4300 | I127: =694+524 -> 1218 | J127: 13398 | K127: Pardubický kraj | L127: 3 | M127: 3654 | N127: budova | O127: zděná | P127: plochá | Q127: střešní fólie | R127: škola | S127: ne | T127: 3 | U127: ne | V127: RHP, hydranty | W127: EZS, oplocení areálu | X127: ano | Y127: skleněná s dřevěným rámem / dřevěné s prosklením | Z127: minimální | AA127: 63761082 | AB127: Škol
D128: bez č.p. | E128: Pardubice | F128: 530 03 | G128: 504/4,504/9 | H128: 4300 | I128: =204+44 -> 248 | J128: 744 | K128: Pardubický kraj | L128: 1 | M128: 248 | N128: budova | O128: zděná | P128: sedlová | Q128: plech | R128: sklad | S128: ne | T128: 3 | U128: ne | V128: standartní (RHP) | W128: oplocení areálu, částečně okenní mříže | X128: ano | Y128: skleněná s dřevěným rámem / dřevěné s prosklením | Z128: vzrostlé stromy | AA128: 3540696 | AB128: Škol
D129: bez č.p. | E129: Pardubice | F129: 53003 | G129: 8353/1,8353/2 | H129: 4300 | I129: =110+29 -> 139 | J129: 1100 | K129: Pardubický kraj | L129: 1 | M129: 139 | N129: budova | O129: zděná | P129: pultová | Q129: střešní fólie | R129: budova trafostanice | S129: trafo | T129: 2 | U129: olej v transtormátoru | V129: standartní (RHP) | W129: minimální (oplocení areálu) | X129: ano | Y129: ventilace / plechová vrata | Z129: minimální | AA129: 5234900 | AB129: Škol
D130: Do Nového 1406 | E130: Pardubice | F130: 530 03 | G130: 4880/3, 4880/4 | H130: 4300 | I130: =146+272 -> 418 | J130: 3080 | K130: Pardubický kraj | L130: 2 | M130: 836 | N130: budova | O130: zděná | P130: sedlová | Q130: plech | R130: učebny praktického výcviku, reklamní agentura | S130: ne | T130: 3 | U130: ne | V130: RHP, hydranty | W130: minimální (oplocení areálu) | X130: ano | Y130: skleněná s dřevěným rámem / plastové s prosklením | Z130: vzrostlé stromy | AA130: 14657720 | AB130: Škol
D131: č.p. 67 | E131: Benecko | F131: 512 37 | G131: 54 | H131: 4300 | I131: 215 | J131: 1075 | K131: Pardubický kraj | L131: 1 | M131: 215 | N131: budova | O131: zděná, dřevěná | P131: sedlová | Q131: plech | R131: školící a výcvikové středisko | S131: ne | T131: 3 | U131: ne | V131: standartní (RHP) | W131: minimální | X131: ne | Y131: skleněná s dřevěným rámem / dřevěné | Z131: vzrostlé stromy, vandalismus | AA131: 5115825 | AB131: Škol
A132: =+A121+1 -> 38 | B132: Střední průmyslová škola stavební Pardubice | C132: 00191191 | D132: Sokolovská 148 | E132: Rybitví | F132: 533 54 | G132: 372-invent. č. 61 | H132: 4300 | I132: 377 | J132: 6409 | K132: Pardubický kraj | L132: 3 | M132: 1131 | N132: budova | O132: zděná | P132: sedlová | Q132: plech | R132: sklad | S132: ne | T132: 3 | U132: ne | V132: standartní (RHP) | W132: minimální (oplocení areálu) | X132: ne | Y132: skleněná s dřevěným rámem / dřevěné | Z132: minimální | AA132: 30865744 | AB132: Škol
D133: bez č.p. | E133: Rybitví | F133: 533 54 | G133: 822-invent. č. 58 | H133: 4300 | I133: 723 | J133: 7960 | K133: Pardubický kraj | L133: 3 | M133: 2169 | N133: budova | O133: zděná | P133: plochá | Q133: plech | R133: PSV dílny, kovářské dílny | S133: strojírenská, vzduchotechnika | T133: 3 | U133: ne | V133: standartní (RHP) | W133: EZS, oplocení areálu | X133: ano | Y133: skleněná s plastovým rámem / plechová vrata | Z133: minimální | AA133: 42501200 | AB133: Škol
D134: bez č.p. | E134: Rybitví | F134: 533 54 | G134: 370-invent. č. 57 | I134: 153 | J134: 865 | K134: Pardubický kraj | L134: 1 | M134: 153 | N134: přístřešek | O134: kovová | P134: sedlová | Q134: vlnitý plech | R134: sklad plechu | S134: ne | T134: 3 | U134: ne | V134: ne | W134: minimální (oplocení areálu | X134: ano | Y134: ne | Z134: minimální
D135: bez č.p. | E135: Rybitví | F135: 533 54 | G135: 823-invent. č. 59 | H135: 4300 | I135: 850 | J135: 2784 | K135: Pardubický kraj | L135: 2 | M135: 1700 | N135: budova | O135: zděná | P135: plochá | Q135: střešní fólie | R135: administrativní budova | S135: ne | T135: 2 | U135: ne | V135: standartní (RHP) | W135: kamerový systém, oplocení areálu | X135: ano | Y135: skleněná s dřevěným rámem / dřevěné s prosklením | Z135: minimální | AA135: 13407744 | AB135: Škol
D136: bez č.p. | E136: Rybitví | F136: 533 54 | G136: 370-invent. č. 170 | H136: 4300 | I136: 24 | J136: 72 | K136: Pardubický kraj | L136: 1 | M136: 24 | N136: garáž | O136: zděná | P136: plochá | Q136: plech | R136: sklad, garáž | S136: ne | T136: 3 | U136: invent. č. 170 - hořlaviny | V136: standartní (RHP) | W136: minimální (oplocení areálu) | X136: ano | Y136: prosklení / plechová vrata | Z136: minimální | AA136: 693504 | AB136: Škol
D137: bez č.p. | E137: Rybitví | F137: 533 54 | G137: 370-invent. č. 203 | I137: 24 | J137: 72 | K137: Pardubický kraj | L137: 1 | M137: 24 | N137: garáž | O137: zděná | P137: plochá | Q137: plech | R137: sklad, garáž | S137: ne | T137: 3 | U137: ne | V137: standartní (RHP) | W137: minimální (oplocení areálu) | X137: ano | Y137: prosklení / plechová vrata | Z137: minimální
D138: bez č.p. | E138: Rybitví | F138: 533 54 | G138: 370-invent. č. 34 | H138: 4300 | I138: 875 | J138: 1872 | K138: Pardubický kraj | L138: 1 | M138: 875 | N138: budova | O138: zděná | P138: plochá | Q138: střešní fólie | R138: tělocvična školy | S138: vzduchotechnika | T138: 2 | U138: ne | V138: standartní (RHP) | W138: kamerový systém,v přízemí okenní mříže,oplocení areálu | X138: ano | Y138: skleněná v kovovém a dřevěném rámu / dřevěné | Z138: minimální | AA138: 9015552 | AB138: Škol
D139: Sokolovská 147 | E139: Rybitví | F139: 533 54 | G139: 374-invent. č. 60 | H139: 4300 | I139: 379 | J139: 6443 | K139: Pardubický kraj | L139: 3 | M139: 1137 | N139: budova | O139: zděná | P139: sedlová | Q139: plech | R139: domov mládeže | S139: ne | T139: 3 | U139: ne | V139: RHP, hydranty | W139: minimální (oplocení areálu) | X139: ano | Y139: skleněná s dřevěným rámem / dřevěné s prosklením | Z139: minimální | AA139: 31029488 | AB139: Škol
D140: Sokolovská 164 | E140: Rybitví | F140: 533 54 | G140: 601-invent. č. 62 | H140: 4300 | I140: 528 | J140: 6912 | K140: Pardubický kraj | L140: 3 | M140: 1584 | N140: budova | O140: zděná | P140: sedlová | Q140: plech | R140: učebny, sklad, ubytovna | S140: ne | T140: 3 | U140: ne | V140: EPS, RHP, hydranty | W140: 1. patro EZS, oplocení areálu | X140: ano | Y140: skleněná s dřevěným rámem / dřevěné s prosklením | Z140: minimální | AA140: 33288192 | AB140: Škol
D141: bez č.p. | E141: Rybitví | F141: 533 54 | G141: 681-invent. č. 7727 | H141: 4300 | I141: 475 | J141: 6580 | K141: Pardubický kraj | L141: 4 | M141: 1900 | N141: budova | O141: zděná | P141: plochá | Q141: střešní fólie | R141: internát školy | S141: ne | T141: 2 | U141: ne | V141: protipožární dveře,RHP,hydrant | W141: minimální (oplocení areálu) | X141: ano | Y141: skleněná s dřevěným,plastovým rámem / kovové s prosklením | Z141: minimální | AA141: 31689280 | AB141: Škol
D142: bez č.p. | E142: Rybitví | F142: 533 54 | G142: 683-invent. č.55 a 218 | H142: 4300 | I142: 984 | J142: 5760 | K142: Pardubický kraj | L142: 1 | M142: 984 | N142: budova | O142: zděná | P142: sedlová | Q142: plech | R142: kuchyně, jídelna školy | S142: gastro-technologie | T142: 2 | U142: zemní plyn | V142: RHP, hydrant | W142: částečně mříže na oknech a dveřích, oplocení areálu | X142: ano | Y142: skleněná s plastovým rámem / dřevěné s prosklením | Z142: minimální | AA142: 27740160 | AB142: Škol
D143: bez č.p. | E143: Rybitví | F143: 533 54 | G143: 684-invent. č. 7728 | H143: 4300 | I143: 489 | J143: 3010 | K143: Pardubický kraj | L143: 2 | M143: =L143*I143 -> 978 | N143: budova | O143: zděná | P143: plochá | Q143: střešní fólie | R143: vrátnice školy | S143: ne | T143: 3 | U143: ne | V143: RHP, hydrant | W143: minimální (zadní část objektu oplocena) | X143: ano | Y143: skleněná s dřevěným rámem / dřevěné s prosklením | Z143: vandalismus | AA143: 14496160 | AB143: Škol
D144: bez č.p. | E144: Rybitví | F144: 533 54 | G144: 370-invent. č. 56 | H144: 4300 | I144: 2172 | J144: 9383 | K144: Pardubický kraj | L144: 3 | M144: 6516 | N144: budova | O144: zděná | P144: plochá | Q144: střešní fólie | R144: škola | S144: ne | T144: 1 | U144: ne | V144: EPS, hydranty | W144: EZS, oplocení areálu | X144: ano | Y144: skleněná s plastovým rámem / plastové s prosklením | Z144: minimální | AA144: 13407744 | AB144: Škol
D145: Sokolovská 150 | E145: Rybitví | F145: 533 54 | G145: 682-inv.č.7729,7730,10032 | H145: 4300 | I145: 1111 | J145: 4037 | K145: Pardubický kraj | L145: 1 | M145: 1111 | N145: budova | O145: zděná | P145: plochá | Q145: střešní fólie | R145: dílny školy | S145: strojírenská | T145: 3 | U145: ne | V145: standartní (RHP) | W145: EZS, oplocení areálu | X145: ano | Y145: skleněná s dřevěným rámem / kovové s prosklením | Z145: minimální | AA145: 46532192 | AB145: Škol
D146: bez č.p. | E146: Rybitví | F146: 533 54 | G146: 743-invent.č. 10025 | I146: 1262 | J146: 5625 | K146: Pardubický kraj | L146: 1 | M146: 1262 | N146: budova | O146: zděná | P146: plochá | Q146: střešní fólie | R146: dílny školy | S146: strojírenská | T146: 3 | U146: ne | V146: standartní(RHP) | W146: EZS, oplocení areálu | X146: ano | Y146: skleněná s dřevěným rámem / kovové s prosklením | Z146: minimální
D147: J. Potůčka 260 | E147: Pardubice | F147: 530 09 | G147: 390-invent. č. 6795 | H147: 4300 | I147: 424 | J147: 3180 | K147: Pardubický kraj | L147: 2 | M147: 848 | N147: budova | O147: zděná | P147: plochá | Q147: střešní fólie | R147: škola | S147: ne | T147: 3 | U147: ne | V147: RHP, hydrant | W147: minimální (oplocení areálu) | X147: ano | Y147: skleněná s dřevěným rámem / kovové s prosklením | Z147: vzrostlé stromy | AA147: 15314880 | AB147: Škol
D148: bez č.p. | E148: Pardubice | F148: 530 09 | G148: 394-invent. č. 6835 | H148: 4300 | I148: 94 | J148: 100 | K148: Pardubický kraj | L148: 1 | M148: 94 | N148: přístřešek | O148: zděná | P148: pultová | Q148: plech | R148: sklad | S148: ne | T148: 3 | U148: ne | V148: ne | W148: minimální (oplocení areálu) | X148: ano | Y148: ne / kovová vrata | Z148: vzrostlé stromy | AA148: 481600 | AB148: Škol
D149: Na Lužci | E149: Lázně Bohdaneč | F149: 533 41 | G149: 2156-invent. č. 1801001 | H149: 4300 | I149: 377 | J149: 2156 | K149: Pardubický kraj | L149: 1 | M149: 377 | N149: budova | O149: zděná | P149: plochá | Q149: střešní fólie | R149: do pronájmu | S149: ne | T149: 3 | U149: ne | V149: standartní (RHP) | W149: okenní mříže (oplocení zadní části objektu) | X149: ano | Y149: skleněná s dřevěným rámem / dřevěné | Z149: vandalismus | AA149: 6236720 | AB149: Škol
A150: 39 | B150: Střední odborná škola a Střední odborné učiliště Lanškroun | C150: 15028216 | D150: Kollárova 445 | E150: Lanškroun | F150: 56301 | G150: 1444 | H150: 4300 | I150: 408 | J150: 8976 | K150: Pardubický kraj | L150: 4 | M150: 1632 | N150: budova | O150: zděná | P150: plochá | Q150: střešní fólie | R150: škola | S150: ne | T150: 2 | U150: ne | V150: RHP, hydrant | W150: EZS | X150: ano | Y150: skleněná s plastovým rámem / dřevěné s prosklením | Z150: vandalismus | AA150: 42362412 | AB150: Škol
D151: Krátká 310 | E151: Lanškroun | F151: 56301 | G151: 3054 | H151: 4300 | I151: 1013 | J151: 6700 | K151: Pardubický kraj | L151: 2 | M151: 2026 | N151: budova | O151: zděná | P151: plochá | Q151: střešní fólie | R151: domov mládeže | S151: ne | T151: 3 | U151: ne | V151: RHP, hydrant | W151: EZS, oplocení areálu | X151: ano | Y151: skleněná s plastovým rámem / plastové s prosklením | Z151: vzrostlé stromy | AA151: 31620784 | AB151: Škol
D152: Krátká 310 | E152: Lanškroun | F152: 56301 | G152: 1801/5 | H152: 1000 | J152: 1247.647 | K152: Pardubický kraj | M152: 0 | R152: sportovní hřiště | S152: ne | T152: 2 | U152: ne | V152: hydrant | W152: oplocení | X152: ano | Z152: vandalismus, vzrostlé stromy | AA152: 5889961 | AB152: Škol
D153: Lidická 199 | E153: Lanškroun | F153: 56301 | G153: 563/2 | H153: 4300 | I153: 436 | J153: 5930 | K153: Pardubický kraj | L153: 2 | M153: 872 | N153: budova | O153: zděná | P153: plochá | Q153: střešní fólie | R153: škola | S153: ne | T153: 3 | U153: ne | V153: RHP, hydrant | W153: EZS | X153: ano | Y153: skleněná s plastovým rámem / plastové s prosklením | Z153: vandalismus | AA153: 27986754 | AB153: Škol
D154: Sokolská 288 | E154: Lanškroun | F154: 56301 | G154: 3347/1 | H154: 4300 | I154: 3120 | J154: 24960 | K154: Pardubický kraj | L154: 2 | M154: 6240 | N154: budova | O154: zděná | P154: sedlová | Q154: vlnitý plech | R154: škola | S154: gastro-technologie, vzduchotechnika, klimatizace | T154: 1 | U154: ne | V154: RHP, hydrant | W154: EZS, osvětlení a oplocení objektu | X154: ano | Y154: skleněná s plastovým rámem / plastová s prosklením | Z154: vzrostlé stromy | AA154: 117799219 | AB154: Škol
A155: 40 | B155: Střední odborná škola a Střední odborné učiliště obchodu a služeb, Chrudim, Čáslavská 205 | C155: 13582259 | D155: Čáslavská 205 | E155: Chrudim | F155: 53701 | G155: 328/1 | H155: 4300 | I155: 1852 | J155: 16281 | K155: Pardubický kraj | L155: 3 | M155: 5556 | N155: budova | O155: zděná | P155: sedlová | Q155: pálená taška | R155: škola | S155: gastro-technologie | T155: 2 | U155: ne | V155: RHP, EPS | W155: EZS, oplocení objektu | X155: ano | Y155: skleněná s dřevěným rámem / dřevěné | Z155: vzrostlé stromy | AA155: 78409296 | AB155: Škol
D156: bez č.p. | E156: Chrudim | F156: 53701 | G156: 328/3 | H156: 4300 | I156: 956 | J156: 8596 | K156: Pardubický kraj | L156: 1 | M156: 956 | N156: hala | O156: dřevěná | P156: plochá | Q156: asfaltová lepenka | R156: sportovní hala školy | S156: vzduchotechnika | T156: 1 | U156: ne | V156: standartní (RHP) | W156: minimální (oplocení areálu) | X156: ano | Y156: skleněná s plastovým rámem / plastové s prosklením | Z156: minimální | AA156: 41398336 | AB156: Škol
A157: 41 | B157: Střední odborná škola a střední odborné učiliště, Polička, Čs. armády 485 | C157: 62031961 | D157: Čs. armády 485 | E157: Polička | F157: 57221 | G157: 1255/1 | H157: 4300 | I157: 1413 | J157: 15550 | K157: Pardubický kraj | L157: 3 | M157: 4239 | N157: budova | O157: zděná | P157: valbová | Q157: plech | R157: škola, jídelna, kotelna | S157: strojní vybavení kotelny, gastro-technologie, klimatizace | T157: 2 | U157: ne | V157: RHP, vnitřní hydranty | W157: bezpečnostní vložky zámku, oplocení areálu | X157: ano | Y157: skleněná s plastovým rámem / plastové s prosklením | Z157: minimální | AA157: 74888800 | AB157: Škol
D158: Mánesova 718 | E158: Polička | F158: 57221 | G158: 2119 | H158: 4300 | I158: 390 | J158: 2450 | K158: Pardubický kraj | L158: 1 | M158: 390 | N158: budova | O158: zděná | P158: plochá | Q158: střešní fólie | R158: dílny školy | S158: ne | T158: v rekonstrukci | U158: ne | V158: ne | W158: minimální (oplocení objektu) | X158: v rekonstrukci | Y158: ne | Z158: vzrostlé stromy | AA158: 11799200 | AB158: Škol
D159: bez č.p. | E159: Polička | F159: 57221 | G159: 1255/2 | H159: 4300 | I159: 846 | J159: 8000 | K159: Pardubický kraj | L159: 3 | M159: 2538 | N159: budova | O159: zděná | P159: plochá | Q159: střešní fólie | R159: škola | S159: ne | T159: 1 | U159: ne | V159: RHP, hydranty | W159: minimální (oplocení objektu) | X159: ano | Y159: skleněná s plastovým rámem / plastové s prosklením | Z159: minimální | AA159: 38528000 | AB159: Škol
D160: bez č.p. | E160: Polička | F160: 57221 | G160: 1255/3 | H160: 4300 | I160: 403 | J160: 1782 | K160: Pardubický kraj | L160: 1 | M160: 403 | N160: budova | O160: zděná | P160: sedlová | Q160: plech | R160: dílny školy | S160: ne | T160: 3 | U160: ne | V160: RHP, hydranty | W160: částečné mříže na oknech, oplocení zadní části objektu | X160: ano | Y160: skleněná s dřevěným rámem / dřevěné s prosklením | Z160: vandalismus | AA160: 8582112 | AB160: Škol
A161: 42 | B161: Střední odborná škola a Střední odborné učiliště technické, Třemošnice, Sportovní 322 | C161: 15052796 | D161: Sportovní 322 | E161: Třemošnice | F161: 53843 | G161: 408 | H161: 4300 | I161: 781 | J161: 9000 | K161: Pardubický kraj | L161: 4 | M161: 3124 | N161: budova | O161: zděná | P161: plochá | Q161: lepenka | R161: domov mládeže, správa školy, byty | S161: ne | T161: 1 | U161: ne | V161: RHP, hydranty, EPS | W161: EZS - učebna PC, spisovna; oplocení | X161: ano | Y161: skleněná s plastovým rámem / plastové s prosklením | Z161: minimální | AA161: 38700000 | AB161: Škol
D162: bez č.p. | E162: Třemošnice | F162: 53843 | G162: 404 | H162: 4300 | I162: 44 | J162: 132 | K162: Pardubický kraj | L162: 2 | M162: 88 | N162: budova | O162: zděná | P162: plochá | Q162: střešní fólie | R162: trafostanice | S162: trafo | T162: 1 | U162: olej v transtormátoru | V162: standartní (RHP) | W162: minimální (oplocení areálu) | X162: ano | Y162: prosklení / plechová vrata | Z162: vzrostlé stromy | AA162: 567600 | AB162: Škol
D163: bez č.p. | E163: Třemošnice | F163: 53843 | G163: 405 | H163: 4300 | I163: 397 | J163: 1985 | K163: Pardubický kraj | L163: 1 | M163: 397 | N163: budova | O163: zděná | P163: plochá | Q163: střešní fólie | R163: truhlářská dílna | S163: truhlářské technologie | T163: 2 | U163: ne | V163: RHP, hydrant, EPS | W163: minimální (oplocení objektu) | X163: ano | Y163: skleněná s dřevěným rámem / dřevěné s prosklením | Z163: vzrostlé stromy, vodní toky | AA163: 8535500 | AB163: Škol
D164: bez č.p. | E164: Třemošnice | F164: 53843 | G164: 406 | H164: 4300 | I164: 438 | J164: 4035 | K164: Pardubický kraj | L164: 3 | M164: 1314 | N164: budova | O164: zděná | P164: plochá | Q164: střešní fólie | R164: škola | S164: ne | T164: 1 | U164: ne | V164: RHP, hydrant, EPS | W164: EZS | X164: ano | Y164: skleněná s plastovým rámem / bezpečnostní dveře | Z164: vandalismus | AA164: 17350500 | AB164: Škol
D165: bez č.p. | E165: Třemošnice | F165: 53843 | G165: 407 | H165: 4300 | I165: 1041 | J165: 6924 | K165: Pardubický kraj | L165: 1 | M165: 1041 | N165: budova | O165: zděná | P165: pultová | Q165: střešní fólie | R165: tělocvična | S165: ne | T165: 2 | U165: ne | V165: standartní (RHP) | W165: minimální | X165: ano | Y165: skleněná s dřevěným rámem / kovové s prosklením | Z165: vandalismus | AA165: 29773200 | AB165: Škol
D166: bez č.p. | E166: Třemošnice | F166: 53843 | G166: 403 | H166: 4300 | I166: 1451 | J166: 10160 | K166: Pardubický kraj | L166: 2 | M166: 2902 | N166: budova | O166: zděná | P166: plochá | Q166: střešní fólie | R166: dílny | S166: strojírenská | T166: 2 | U166: ne | V166: RHP, hydrant, EPS | W166: EZS - učebna PC | X166: ano | Y166: skleněná s dřevěným rámem / kovové s prosklením | Z166: vzrostlé stromy, vodní toky | AA166: 43688000 | AB166: Škol
D167: bez č.p. | E167: Třemošnice | F167: 53843 | G167: 878 | H167: 4300 | I167: 80 | J167: 198 | K167: Pardubický kraj | L167: 1 | M167: 80 | N167: budova | O167: zděná | P167: pultová | Q167: střešní fólie | R167: garáže | S167: ne | T167: 1 | U167: ne | V167: standartní (RHP) | W167: minimální | X167: ano | Y167: prosklení / plechová | Z167: minimální | AA167: 851400 | AB167: Škol
D168: bez č.p. | E168: Třemošnice | F168: 53843 | G168: 884 | H168: 4300 | I168: 58 | J168: 162 | K168: Pardubický kraj | L168: 1 | M168: 58 | N168: budova | O168: zděná | P168: plochá | Q168: střešní fólie | R168: truhlářská dílna | S168: strojírenská | T168: 1 | U168: ne | V168: RHP, hydrant, EPS | W168: minimální | X168: ano | Y168: skleněná s dřevěným rámem / plechové | Z168: vandalismus | AA168: 696600 | AB168: Škol
A169: 43 | B169: Střední odborné učiliště opravárenské, Králiky, Předměstí 427 | C169: 00087939 | D169: Předměstí 427 | E169: Králíky | F169: 561 69 | G169: 580 | H169: 4300 | I169: 366 | J169: 37536 | K169: Pardubický kraj | L169: 2 | M169: 732 | N169: budova | O169: zděná | P169: pultová | Q169: plech | R169: učebny školy, dílny školy | S169: vzduchotechnika | T169: 3 | U169: ne | V169: RHP, hydrant | W169: kamerový systém, bezpečnostní vložka zámku, oplocení | X169: ano | Y169: skleněná s dřevěným rámem / dřevěné s prosklením | Z169: vandalismus | AA169: 180773376 | AB169: Škol
D170: Předměstí 427 | E170: Králíky | F170: 561 69 | G170: 580 | I170: 4360 | K170: Pardubický kraj | L170: 1 | M170: =L170*I170 -> 4360 | N170: budova | O170: zděná | P170: pultová | Q170: plech | R170: učebny školy, dílny školy, hala | S170: vzduchotechnika | T170: 3 | U170: ne | V170: RHP, hydrant | W170: kamerový systém, bezpečnostní vložka zámku, oplocení | X170: ano | Y170: skleněná s dřevěným rámem / dřevěné s prosklením | Z170: vandalismus
D171: Předměstí 430, 431 | E171: Králíky | F171: 56169 | G171: 607.608 | H171: 4300 | I171: =149+149 -> 298 | J171: 2700 | K171: Pardubický kraj | L171: 2 | M171: 596 | N171: budova | O171: zděná | P171: valbová | Q171: eternit | R171: ubytovna | S171: ne | T171: 3 | U171: ne | V171: RHP, hydrant | W171: kamerový systém, bezpečnostní vložka zámku, oplocení | X171: ano | Y171: skleněná s dřevěným rámem / kovové s prosklením | Z171: vandalismus | AA171: 13003200 | AB171: Škol
D172: bez č.p. | E172: Králíky | F172: 56169 | G172: 1056 | H172: 4300 | I172: 36 | J172: 200 | K172: Pardubický kraj | L172: 1 | M172: 36 | N172: budova | O172: zděná | P172: pultová | Q172: eternit | R172: trafostanice | S172: trafo | T172: 3 | U172: olej v transtormátoru | V172: standartní (RHP) | W172: kamerový systém | X172: ano | Y172: prosklení / plechové | Z172: vzrostlé stromy | AA172: 963200 | AB172: Škol
D173: bez č.p. | E173: Králíky | F173: 56169 | G173: 1055 | H173: 4300 | I173: 333 | J173: 1733 | K173: Pardubický kraj | L173: 1 | M173: 333 | N173: garáž | O173: zděná | P173: plochá | Q173: plech | R173: garáže | S173: ne | T173: 2 | U173: ne | V173: standartní (RHP) | W173: kamerový systém, bezpečnostní vložky zámků, oplocení | X173: ano | Y173: prosklení / plechová vrata | Z173: vzrostlé stromy | AA173: 8346128 | AB173: Škol
D174: bez č.p. | E174: Králíky | F174: 56169 | G174: 1436 | H174: 4300 | I174: 282 | J174: 1740 | K174: Pardubický kraj | L174: 1 | M174: 282 | N174: hala | O174: železobeton, ocel | P174: sedlová | Q174: plech | R174: sklad | S174: ne | T174: 3 | U174: ne | V174: standartní (RHP) | W174: kamerový systém, bezpečnostní vložka zámku, oplocení | X174: ano | Y174: skleněná s kovovým rámem / plechová vrata | Z174: vzrostlé stromy | AA174: 8379840 | AB174: Škol
D175: bez č.p. | E175: Králíky | F175: 56169 | G175: 610 | H175: 4300 | I175: 226 | J175: 968 | K175: Pardubický kraj | L175: 1 | M175: 226 | N175: budova | O175: zděná | P175: sedlová | Q175: eternit | R175: sklad | S175: ne | T175: 3 | U175: omezené množství HK | V175: standartní (RHP) | W175: kamerový systém, bezpečnostní vložka zámku, oplocení | X175: ano | Y175: skleněná s dřevěným rámem / plechové | Z175: vzrostlé stromy | AA175: 4661888 | AB175: Škol
D176: Předměstí 432 | E176: Králíky | F176: 56169 | G176: 581 | H176: 4300 | I176: 319 | J176: 2560 | K176: Pardubický kraj | L176: 2 | M176: 638 | N176: budova | O176: zděná | P176: valbová,pultová | Q176: eternit, plech | R176: jídelna | S176: gastro-technologie,klimatizace | T176: 1 | U176: ne | V176: RHP, hydrant | W176: kamerový systém, bezpečnostní vložka zámku, oplocení | X176: ano | Y176: skleněná s dřevěným rámem / dřevěné s prosklením | Z176: vzrostlé stromy | AA176: 12328960 | AB176: Škol
